Dept/Family,Entity,Expense Type,Expense Area,Supplier,Description,Payment Date, Amount ,SME,UNSPCC code,UNSPCC Description
Communities and Local Government,Homes and Communities Agency,Economic Assets Nw Prog,North West,BARTON GRANGE LANDSCAPES,DAP1671-SERVICE-To flail grass area next to Taylor Whimpey de,08/09/2017, 380.00 ,L,72101500,Building maintenance and repair services
Communities and Local Government,Homes and Communities Agency,Capital Grant to Local Authorities,North East And Yorkshire,BARNSLEY METROPOLITAN BOROUGH COUNCIL,Daily IMS payment,05/09/2017," 9,000.00 ",G,N/A,Grants
Communities and Local Government,Homes and Communities Agency,Capital Grant to Local Authorities,North East And Yorkshire,BARNSLEY METROPOLITAN BOROUGH COUNCIL,Daily IMS payment,27/09/2017," 9,000.00 ",G,N/A,Grants
Communities and Local Government,Homes and Communities Agency,Capital Grant to Local Authorities,North East And Yorkshire,SHEFFIELD CITY COUNCIL,Daily IMS payment,28/09/2017," 15,000.00 ",G,N/A,Grants
Communities and Local Government,Homes and Communities Agency,Capital Grant to Local Authorities,North East And Yorkshire,GATESHEAD METROPOLITAN BOROUGH COUNCIL,Daily IMS payment,28/09/2017, 591.00 ,G,N/A,Grants
Communities and Local Government,Homes and Communities Agency,Capital Grant to Local Authorities,North East And Yorkshire,GATESHEAD METROPOLITAN BOROUGH COUNCIL,Daily IMS payment,28/09/2017," 1,423.00 ",G,N/A,Grants
Communities and Local Government,Homes and Communities Agency,Capital Grant to Local Authorities,North East And Yorkshire,GATESHEAD METROPOLITAN BOROUGH COUNCIL,Daily IMS payment,29/09/2017," 3,364.00 ",G,N/A,Grants
Communities and Local Government,Homes and Communities Agency,Capital Grant to Local Authorities,North East And Yorkshire,CITY OF BRADFORD METROPOLITAN DISTRICT,Daily IMS payment,26/09/2017," 62,512.00 ",G,N/A,Grants
Communities and Local Government,Homes and Communities Agency,Capital Grant to Local Authorities,North East And Yorkshire,LEEDS CITY COUNCIL,Daily IMS payment,15/09/2017," 20,852.00 ",G,N/A,Grants
Communities and Local Government,Homes and Communities Agency,Capital Grant to Local Authorities,North East And Yorkshire,LEEDS CITY COUNCIL,Daily IMS payment,27/09/2017," 13,901.00 ",G,N/A,Grants
Communities and Local Government,Homes and Communities Agency,Capital Grant to Local Authorities,North East And Yorkshire,LEEDS CITY COUNCIL,Daily IMS payment,27/09/2017," 20,852.00 ",G,N/A,Grants
Communities and Local Government,Homes and Communities Agency,Capital Grant to Local Authorities,North East And Yorkshire,LEEDS CITY COUNCIL,Daily IMS payment,27/09/2017," 20,852.00 ",G,N/A,Grants
Communities and Local Government,Homes and Communities Agency,Capital Grant to Local Authorities,North East And Yorkshire,LEEDS CITY COUNCIL,Daily IMS payment,27/09/2017," 20,852.00 ",G,N/A,Grants
Communities and Local Government,Homes and Communities Agency,Capital Grant to Local Authorities,North East And Yorkshire,LEEDS CITY COUNCIL,Daily IMS payment,27/09/2017," 6,950.00 ",G,N/A,Grants
Communities and Local Government,Homes and Communities Agency,Capital Grant to Local Authorities,North East And Yorkshire,LEEDS CITY COUNCIL,Daily IMS payment,28/09/2017," 13,901.00 ",G,N/A,Grants
Communities and Local Government,Homes and Communities Agency,Capital Grant to Local Authorities,North East And Yorkshire,EAST RIDING OF YORKSHIRE COUNCIL,Daily IMS payment,26/09/2017," 18,750.00 ",G,N/A,Grants
Communities and Local Government,Homes and Communities Agency,Capital Grant to Local Authorities,North East And Yorkshire,EAST RIDING OF YORKSHIRE COUNCIL,Daily IMS payment,26/09/2017," 18,750.00 ",G,N/A,Grants
Communities and Local Government,Homes and Communities Agency,Capital Grant to Local Authorities,North East And Yorkshire,EAST RIDING OF YORKSHIRE COUNCIL,Daily IMS payment,29/09/2017," 18,750.00 ",G,N/A,Grants
Communities and Local Government,Homes and Communities Agency,Capital Grant to Local Authorities,North East And Yorkshire,EAST RIDING OF YORKSHIRE COUNCIL,Daily IMS payment,29/09/2017," 18,750.00 ",G,N/A,Grants
Communities and Local Government,Homes and Communities Agency,Estate Management Yorks,North West,ASDA STORES LTD,"DAM3547-SERVICE-WESTBROOK LIBRARY, WESTBROOK, WARRINGTON",21/09/2017, 277.81 ,L,80131500,Lease and rental of property or building
Communities and Local Government,Homes and Communities Agency,Estate Management Yorks,North West,ASDA STORES LTD,"DAM3547-SERVICE-WESTBROOK LIBRARY, WESTBROOK, WARRINGTON",25/09/2017, 614.46 ,L,80131500,Lease and rental of property or building
Communities and Local Government,Homes and Communities Agency,Budget 2013 - Midlands Wm,Midlands,MK FIRE LIMITED,DAP1681-SERVICE-Maintenance of Fire Extinguishers at Stretton,20/09/2017," 1,272.49 ",M,72102900,Facility maintenance and repair services
Communities and Local Government,Homes and Communities Agency,Economic Assets Nw Prog,North West,CBRE LTD,DNW0028-SERVICE-ESTUARY SERVICE CHARGES,08/09/2017," 9,900.00 ",M,80131800,Real estate management services
Communities and Local Government,Homes and Communities Agency,Capital Grant to Local Authorities,Midlands,BOLSOVER DISTRICT COUNCIL,Daily IMS payment,02/10/2017," 80,000.00 ",G,N/A,Grants
Communities and Local Government,Homes and Communities Agency,Budget 2013 - Midlands Wm,Midlands,SIMON TRANTER LANDSCAPE CONTRACTORS,DAP2063-SERVICE-Barnsley Hall - fencing repairs and replaceme,06/09/2017," 2,478.00 ",G,N/A,Grants
Communities and Local Government,Homes and Communities Agency,Budget 2013 - Midlands Wm,Midlands,SIMON TRANTER LANDSCAPE CONTRACTORS,DAP2062-SERVICE-Lea Castle - re-boarding and property repairs,06/09/2017," 2,890.00 ",S,72101500,Building maintenance and repair services
Communities and Local Government,Homes and Communities Agency,East And Se Cambs Herts And Bu,East And South East,CROWN ESTATE COMMISSIONERS,DEE0044-SERVICE-Payment of consultants for planning app.,08/09/2017," 1,093.65 ",L,80131500,Lease and rental of property or building
Communities and Local Government,Homes and Communities Agency,Estate Management Yorks,North West,STOCKTON ON TEES BOROUGH COUNCIL,DAP0583-SERVICE-Emptying 5 litter bins three times a week at,11/09/2017, 875.00 ,G,72153501,Building exterior cleaning service  
Communities and Local Government,Homes and Communities Agency,Comms Transition Budget,Finance & Corporate Services,KNIGHT FRANK LLP,DAP0162-SERVICE-Service charge relating to Building 5,01/09/2017," 2,325.02 ",L,80131500,Lease and rental of property or building
Communities and Local Government,Homes and Communities Agency,Company Secretary Mh,Finance & Corporate Services,IRON MOUNTAIN (UK) LTD,DAP1504-SERVICE-Iron Mountain Storage,12/09/2017," 8,933.85 ",L,78131800,Specialized warehousing and storage
Communities and Local Government,Homes and Communities Agency,Public Land and Regeneration,Programmes,VALUATION OFFICE AGENCY ADMINISTRATION,IT73413-SERVICE-Public Sector Land Programme - valuation (HCA,14/09/2017," 2,700.00 ",G,80131800,Real estate management services
Communities and Local Government,Homes and Communities Agency,Spatial Intelligence Telford,Programmes,VALUATION OFFICE AGENCY ADMINISTRATION,IT73977-SERVICE-Chorley Rugby Club,18/09/2017," 2,500.00 ",G,80131800,Real estate management services
Communities and Local Government,Homes and Communities Agency,Land And Regeneration National,Programmes,VALUATION OFFICE AGENCY ADMINISTRATION,IT69823-SERVICE-Land at Stoke on Trent,21/09/2017, 569.15 ,G,80131800,Real estate management services
Communities and Local Government,Homes and Communities Agency,Land And Regeneration National,Programmes,VALUATION OFFICE AGENCY ADMINISTRATION,IT72829-SERVICE-Public Sector Land Programme - Valuation (HCA,21/09/2017," 1,250.00 ",G,80131800,Real estate management services
Communities and Local Government,Homes and Communities Agency,Economic Assets Ne-Y Prog,North East And Yorkshire,VALUATION OFFICE AGENCY ADMINISTRATION,IT73967-SERVICE-Valuation of XPO site on Ladysmith Road,21/09/2017," 2,250.00 ",G,80131800,Real estate management services
Communities and Local Government,Homes and Communities Agency,Economic Assets Ne-Y Prog,North East And Yorkshire,C A BLACKWELL (CONTRACTS) LIMITED,"DAP2432-SERVICE-The Avenue site - construction of a reed bed,",28/09/2017," 189,765.49 ",L,72101500,Building maintenance and repair services
Communities and Local Government,Homes and Communities Agency,Comms Transition Budget,Finance & Corporate Services,MK LONDON LINK,DAP1880-SERVICE-Courier service for HCA Bedford,04/09/2017," 1,094.86 ",S,78102200,Postal and small parcel and courier services
Communities and Local Government,Homes and Communities Agency,Comms Transition Budget,Finance & Corporate Services,BAGNALL & MORRIS WASTE SERVICES LTD,"DAP0095-SERVICE-Collection, processing and disposal of waste",07/09/2017, 400.42 ,M,76121500,Refuse collection and disposal
Communities and Local Government,Homes and Communities Agency,Estate Management Yorks,North West,GROUND CONTROL LIMITED,DAP0447-SERVICE-Crawley - Clear the pile of soil from the are,05/09/2017, 620.00 ,L,72101500,Building maintenance and repair services
Communities and Local Government,Homes and Communities Agency,Regulation,North East And Yorkshire,CEDR SOLVE,DAP2270-SERVICE-CEDR - Complaint against Peter Lee v HCA,13/09/2017, 800.00 ,S,80121600,Business law services
Communities and Local Government,Homes and Communities Agency,Capital Grant to Local Authorities,North East And Yorkshire,HARROGATE BOROUGH COUNCIL,Daily IMS payment,29/09/2017," 49,500.00 ",,N/A,Grants
Communities and Local Government,Homes and Communities Agency,Public Land and Regeneration,Programmes,LANCASTER CITY COUNCIL,LANCASTER CITY COUNCIL,04/09/2017," 12,787.00 ",G,80131500,Lease and rental of property or building
Communities and Local Government,Homes and Communities Agency,Capital Grant to RPs,North West,GOLDEN GATES HOUSING TRUST,Daily IMS payment,07/09/2017," 9,000.00 ",,N/A,Grants
Communities and Local Government,Homes and Communities Agency,Capital Grant to RPs,North West,GOLDEN GATES HOUSING TRUST,Daily IMS payment,07/09/2017," 9,000.00 ",,N/A,Grants
Communities and Local Government,Homes and Communities Agency,Capital Grant to RPs,North West,GOLDEN GATES HOUSING TRUST,Daily IMS payment,07/09/2017," 9,000.00 ",,N/A,Grants
Communities and Local Government,Homes and Communities Agency,Capital Grant to RPs,North West,GOLDEN GATES HOUSING TRUST,Daily IMS payment,07/09/2017," 9,000.00 ",,N/A,Grants
Communities and Local Government,Homes and Communities Agency,Capital Grant to RPs,East And South East,YMCA DOWNSLINK GROUP,Daily IMS payment,02/10/2017," 337,500.00 ",,N/A,Grants
Communities and Local Government,Homes and Communities Agency,Capital Grant to RPs,North East And Yorkshire,KARBON HOMES -ISOS HOUSING LIMITED,Daily IMS payment,29/09/2017," 40,250.00 ",,N/A,Grants
Communities and Local Government,Homes and Communities Agency,Capital Grant to RPs,North East And Yorkshire,KARBON HOMES -ISOS HOUSING LIMITED,Daily IMS payment,02/10/2017," 187,500.00 ",,N/A,Grants
Communities and Local Government,Homes and Communities Agency,Capital Grant to RPs,North East And Yorkshire,KARBON HOMES -ISOS HOUSING LIMITED,Daily IMS payment,02/10/2017," 37,500.00 ",,N/A,Grants
Communities and Local Government,Homes and Communities Agency,Capital Grant to RPs,North East And Yorkshire,KEELMAN HOMES,Daily IMS payment,06/09/2017," 1,250.00 ",,N/A,Grants
Communities and Local Government,Homes and Communities Agency,Capital Grant to RPs,North East And Yorkshire,KEELMAN HOMES,Daily IMS payment,06/09/2017," 7,500.00 ",,N/A,Grants
Communities and Local Government,Homes and Communities Agency,Capital Grant to RPs,North East And Yorkshire,KEELMAN HOMES,Daily IMS payment,07/09/2017," 5,000.00 ",,N/A,Grants
Communities and Local Government,Homes and Communities Agency,Capital Grant to RPs,North East And Yorkshire,KEELMAN HOMES,Daily IMS payment,14/09/2017," 7,500.00 ",,N/A,Grants
Communities and Local Government,Homes and Communities Agency,Capital Grant to RPs,North East And Yorkshire,KEELMAN HOMES,Daily IMS payment,26/09/2017," 5,250.00 ",,N/A,Grants
Communities and Local Government,Homes and Communities Agency,Capital Grant to RPs,North West,REGENDA LIMITED,Daily IMS payment,06/09/2017," 18,750.00 ",,N/A,Grants
Communities and Local Government,Homes and Communities Agency,Capital Grant to RPs,North West,J & M RESIDENTIAL LETTINGS LIMITED,Daily IMS payment,04/09/2017," 5,000.00 ",,N/A,Grants
Communities and Local Government,Homes and Communities Agency,Capital Grant to RPs,East And South East,HELLENS RESIDENTIAL LTD,Daily IMS payment,19/09/2017," 140,000.00 ",,N/A,Grants
Communities and Local Government,Homes and Communities Agency,Capital Grant to RPs,East And South East,HELLENS RESIDENTIAL LTD,Daily IMS payment,19/09/2017," 279,000.00 ",,N/A,Grants
Communities and Local Government,Homes and Communities Agency,Capital Grant to RPs,East And South East,HELLENS RESIDENTIAL LTD,Daily IMS payment,19/09/2017," 90,000.00 ",,N/A,Grants
Communities and Local Government,Homes and Communities Agency,Capital Grant to RPs,North East And Yorkshire,TCUK HOMES LIMITED,Daily IMS payment,14/09/2017," 16,500.00 ",,N/A,Grants
Communities and Local Government,Homes and Communities Agency,Capital Grant to RPs,North East And Yorkshire,TCUK HOMES LIMITED,Daily IMS payment,15/09/2017," 5,500.00 ",,N/A,Grants
Communities and Local Government,Homes and Communities Agency,Capital Grant to RPs,North East And Yorkshire,SOUTH TYNESIDE HOUSING VENTURE TRUST LTD,Daily IMS payment,02/10/2017," 8,950.00 ",,N/A,Grants
Communities and Local Government,Homes and Communities Agency,Capital Grant to RPs,North East And Yorkshire,FORTIS LIVING GROUP,Daily IMS payment,19/09/2017," 41,250.00 ",,N/A,Grants
Communities and Local Government,Homes and Communities Agency,Capital Grant to RPs,North East And Yorkshire,FORTIS LIVING GROUP,Daily IMS payment,02/10/2017," 240,000.00 ",,N/A,Grants
Communities and Local Government,Homes and Communities Agency,Capital Grant to RPs,North East And Yorkshire,YMCA NORTH TYNESIDE,Daily IMS payment,25/09/2017," 56,500.00 ",,N/A,Grants
Communities and Local Government,Homes and Communities Agency,Capital Grant to RPs,North East And Yorkshire,COUNTY DURHAM HOUSING GROUP,Daily IMS payment,11/09/2017," 177,000.00 ",,N/A,Grants
Communities and Local Government,Homes and Communities Agency,Area Dir Mids Worcs-Shrop-Here,Midlands,AMION CONSULTING LTD,IT72655-SERVICE-Green Book Appraisal,04/09/2017," 2,066.00 ",S,81121500,Economic analysis
Communities and Local Government,Homes and Communities Agency,Land And Regeneration National,Programmes,AMION CONSULTING LTD,IT73566-SERVICE-Senior Specialist Economics Cover ,04/09/2017," 5,363.73 ",S,81121500,Economic analysis
Communities and Local Government,Homes and Communities Agency,Land And Regeneration Mh,Programmes,ADECCO UK LTD,DAP1958-SERVICE-Adecco Agency Staff - Namd Ind,08/09/2017, 553.00 ,L,80111600,Temporary personnel services
Communities and Local Government,Homes and Communities Agency,Land And Regeneration Mh,Programmes,ADECCO UK LTD,DAP1958-SERVICE-Adecco Agency Staff - Named Ind,12/09/2017, 442.40 ,L,80111600,Temporary personnel services
Communities and Local Government,Homes and Communities Agency,Land And Regeneration Mh,Programmes,ADECCO UK LTD,DAP1958-SERVICE-Adecco Agency Staff - Named Ind,14/09/2017, 331.80 ,L,80111600,Temporary personnel services
Communities and Local Government,Homes and Communities Agency,Land And Regeneration Mh,Programmes,ADECCO UK LTD,DAP1958-SERVICE-Adecco Agency Staff - Named Ind,19/09/2017, 553.00 ,L,80111600,Temporary personnel services
Communities and Local Government,Homes and Communities Agency,Land And Regeneration Mh,Programmes,ADECCO UK LTD,DAP1958-SERVICE-Adecco Agency Staff - Named Ind,27/09/2017, 513.50 ,L,80111600,Temporary personnel services
Communities and Local Government,Homes and Communities Agency,Economic Assets Hub Transition,Economic Assets Hub,AQUINNA DEVELOPMENTS LIMITED,"STF  -Manor road, Tongham - LD - Sep 17",26/09/2017," 645,151.00 ",,N/A,Loans
Communities and Local Government,Homes and Communities Agency,Ftbi South East,East And South East,ATKINS LTD,IT71327-SERVICE-Northstowe Phase 2 Cost Consultancy,08/09/2017," 3,000.00 ",L,80131800,Real estate management services
Communities and Local Government,Homes and Communities Agency,Economic Assets Nw Prog,North West,ATKINS LTD,IT73897-SERVICE-Planning advice in relation to HCA's south Wa,11/09/2017," 3,250.00 ",L,80131800,Real estate management services
Communities and Local Government,Homes and Communities Agency,Liverpool Cheshire Warrington,North West,ATKINS LTD,IT70894-SERVICE-HCA Land at Grappenhall Heys,27/09/2017," 1,250.00 ",L,80131800,Real estate management services
Communities and Local Government,Homes and Communities Agency,Liverpool Cheshire Warrington,North West,ATKINS LTD,IT70890-SERVICE-HCA Land at Appleton Cross,27/09/2017," 1,250.00 ",L,80131800,Real estate management services
Communities and Local Government,Homes and Communities Agency,Ftbi South East,East And South East,ATKINS LTD,IT71327-SERVICE-Northstowe Phase 2 Cost Consultancy,28/09/2017," 2,960.00 ",L,80131800,Real estate management services
Communities and Local Government,Homes and Communities Agency,Budget 2013 - Midlands Wm,Midlands,WESTERN POWER DISTRIBUTION,"DAP2282-SERVICE-Lea Castle, Kidderminster DY10 3PP - disconne",12/09/2017," 3,314.01 ",S,72101500,Building maintenance and repair services
Communities and Local Government,Homes and Communities Agency,East And Se Cambs Herts And Bu,East And South East,ALPHABET (GB) LTD,DGC0802-SERVICE-LEASE RENTAL,05/09/2017," 1,282.05 ",L,25101500,Passenger motor vehicles
Communities and Local Government,Homes and Communities Agency,East And Se Cambs Herts And Bu,East And South East,ALPHABET (GB) LTD,DGC0802-SERVICE-SERVICE RENTAL,05/09/2017," 1,702.80 ",L,25101500,Passenger motor vehicles
Communities and Local Government,Homes and Communities Agency,Land And Regeneration National,Programmes,ALPHABET (GB) LTD,DGC1543-SERVICE-INFORMAL EXT SERVICE COSTS,07/09/2017, 259.47 ,L,25101500,Passenger motor vehicles
Communities and Local Government,Homes and Communities Agency,East And South East,East And South East,ALPHABET (GB) LTD,DGC1707-SERVICE-CAR HIRE S GREENER,14/09/2017, 685.72 ,L,25101500,Passenger motor vehicles
Communities and Local Government,Homes and Communities Agency,Area Dir Cumbria Lancs Skelmer,North West,ARCHAEOLOGICAL SERVICES WYAS,DAP1877-SERVICE-Geophysical survey of Altcar Lane,05/09/2017," 3,395.00 ",S,80131800,Real estate management services
Communities and Local Government,Homes and Communities Agency,Economic Assets Hub Transition,Economic Assets Hub,ABERFELDY NEW VILLAGE LLP,LTF - Aberfeldy New Village - Ln- Sep 17,22/09/2017," 657,581.54 ",,N/A,Loans
Communities and Local Government,Homes and Communities Agency,It - Rda Transition,Finance & Corporate Services,ACS BUSINESS SUPPLIES,DAP1669-SERVICE-13 x HP Zbook Studio G3 T7W01ET,05/09/2017," 17,727.32 ",M,43211900,Computer displays
Communities and Local Government,Homes and Communities Agency,It - Rda Transition,Finance & Corporate Services,ACS BUSINESS SUPPLIES,DAP1680-SERVICE-20 x HP EliteBook 820 G3 T9X42EA,05/09/2017," 20,400.00 ",M,43211900,Computer displays
Communities and Local Government,Homes and Communities Agency,Economic Assets Hub Transition,Economic Assets Hub,ASH GREEN (HOLDINGS) LTD,STF-Slaken Lane-Sept17,13/09/2017," 124,983.37 ",,N/A,Loans
Communities and Local Government,Homes and Communities Agency,Economic Assets Ne-Y Prog,North East And Yorkshire,AIREDALE FORESTRY,DAP1159-SERVICE-Provision of Landscape maintenance works for,07/09/2017, 362.83 ,S,72101500,Building maintenance and repair services
Communities and Local Government,Homes and Communities Agency,Ne-Y North East Washington,North East And Yorkshire,AIREDALE FORESTRY,DAP0435-SERVICE-Landscape maintenance at St Georges for one y,11/09/2017, 635.50 ,S,72101500,Building maintenance and repair services
Communities and Local Government,Homes and Communities Agency,Economic Assets Ne-Y Prog,North East And Yorkshire,AIREDALE FORESTRY,"DAP1737-SERVICE-Burt Street Units, Blyth Quayside.",11/09/2017, 270.00 ,S,72101500,Building maintenance and repair services
Communities and Local Government,Homes and Communities Agency,#N/A,#N/A,AIREDALE FORESTRY,DAP2111-SERVICE-Consett Magistrates Court - Install 2no drop,20/09/2017," 1,064.00 ",S,72101500,Building maintenance and repair services
Communities and Local Government,Homes and Communities Agency,Economic Assets Ne-Y Prog,North East And Yorkshire,AIREDALE FORESTRY,"DAP1977-SERVICE-Electrolux, Spennymoor - General Securing wor",21/09/2017, 987.00 ,S,72101500,Building maintenance and repair services
Communities and Local Government,Homes and Communities Agency,Ne-Y North East Washington,North East And Yorkshire,AIREDALE FORESTRY,DAP0189-SERVICE-Events Car Park (North Shore & Tees),29/09/2017, 438.95 ,S,72101500,Building maintenance and repair services
Communities and Local Government,Homes and Communities Agency,Assistant Chief Exec National,Executive Office,AGILE BUSINESS CONSORTIUM,DAP2469-SERVICE-Conference for Lee Amor (2 days) & Bayo Dosun,27/09/2017, 856.00 ,S,86101800,In service training and manpower development
Communities and Local Government,Homes and Communities Agency,Corporate Assurance-Mh,Finance & Corporate Services,ARNOLD CLARK FINANCE LIMITED,DGC1384-SERVICE-LEASE COSTS,11/09/2017," 3,293.28 ",L,25101500,Passenger motor vehicles
Communities and Local Government,Homes and Communities Agency,Corporate Assurance-Mh,Finance & Corporate Services,ARNOLD CLARK FINANCE LIMITED,DGC1384-SERVICE-SERVICE COSTS,11/09/2017," 3,845.88 ",L,25101500,Passenger motor vehicles
Communities and Local Government,Homes and Communities Agency,Land And Regeneration National,Programmes,ARNOLD CLARK FINANCE LIMITED,DGC1503-SERVICE-LEASE COSTS,18/09/2017," 2,086.80 ",L,25101500,Passenger motor vehicles
Communities and Local Government,Homes and Communities Agency,Land And Regeneration National,Programmes,ARNOLD CLARK FINANCE LIMITED,DGC1503-SERVICE-SERVICE COSTS,18/09/2017," 2,794.44 ",L,25101500,Passenger motor vehicles
Communities and Local Government,Homes and Communities Agency,Land And Regeneration National,Programmes,ARNOLD CLARK FINANCE LIMITED,DGC0660-SERVICE-LEASE COSTS 7957.68,19/09/2017," 1,989.42 ",L,25101500,Passenger motor vehicles
Communities and Local Government,Homes and Communities Agency,Land And Regeneration National,Programmes,ARNOLD CLARK FINANCE LIMITED,DGC0660-SERVICE-LEASE COSTS SERVICE 9642.00,19/09/2017," 2,410.50 ",L,25101500,Passenger motor vehicles
Communities and Local Government,Homes and Communities Agency,South West Hants-Iow-Dorset-Bu,South West,ARNOLD CLARK FINANCE LIMITED,DGC0689-SERVICE-LEASE RENTAL,19/09/2017," 2,217.48 ",L,25101500,Passenger motor vehicles
Communities and Local Government,Homes and Communities Agency,South West Hants-Iow-Dorset-Bu,South West,ARNOLD CLARK FINANCE LIMITED,DGC0689-SERVICE-SERVICE RENTAL,19/09/2017," 2,541.12 ",L,25101500,Passenger motor vehicles
Communities and Local Government,Homes and Communities Agency,Land And Regeneration Mh,Programmes,BERWIN LEIGHTON PAISNER,"TS00006-SERVICE-27562 - Fairbridge Developments Ltd,  Fairbri",04/09/2017," 25,000.00 ",L,80121600,Business law services
Communities and Local Government,Homes and Communities Agency,East And Se And Surr And Suss,East And South East,BERWIN LEIGHTON PAISNER,IS10340-SERVICE-Land south of Graylingwell Drive,08/09/2017," 8,512.50 ",L,80121600,Business law services
Communities and Local Government,Homes and Communities Agency,Public Land and Regeneration,Programmes,BERWIN LEIGHTON PAISNER,IS12061-SERVICE-Trumpet Junction,13/09/2017," 20,000.00 ",L,80121600,Business law services
Communities and Local Government,Homes and Communities Agency,Company Secretary Mh,Finance & Corporate Services,BERWIN LEIGHTON PAISNER,IS12912-SERVICE-Money Laundering; ; (Georgia Henderson-Clelan,14/09/2017," 4,909.00 ",L,80121600,Business law services
Communities and Local Government,Homes and Communities Agency,East And Se And Surr And Suss,East And South East,BERWIN LEIGHTON PAISNER,IS10340-SERVICE-Land south of Graylingwell Drive,15/09/2017," 18,906.00 ",L,80121600,Business law services
Communities and Local Government,Homes and Communities Agency,East And Se And Surr And Suss,East And South East,BERWIN LEIGHTON PAISNER,IS10340-SERVICE-Land south of Graylingwell Drive,15/09/2017," 17,942.50 ",L,80121600,Business law services
Communities and Local Government,Homes and Communities Agency,East And Se Essex And Kent,East And South East,BERWIN LEIGHTON PAISNER,IS11740-SERVICE-Officer's Mess,15/09/2017," 7,279.50 ",L,80121600,Business law services
Communities and Local Government,Homes and Communities Agency,East And Se And Surr And Suss,East And South East,BERWIN LEIGHTON PAISNER,IS10340-SERVICE-Land south of Graylingwell Drive,15/09/2017," 11,909.00 ",L,80121600,Business law services
Communities and Local Government,Homes and Communities Agency,Economic Assets Hub Transition,Economic Assets Hub,BLOSSOM IRON DEVELOPMENTS LIMITED,BtR-Blossom Iron-Sept17,19/09/2017," 763,698.39 ",,N/A,Loans
Communities and Local Government,Homes and Communities Agency,Estate Management Yorks,North West,BROWNE JACOBSON LLP,IS11993-SERVICE-Relaxation of restrictive covenant on land at,01/09/2017, 850.00 ,L,80121600,Business law services
Communities and Local Government,Homes and Communities Agency,South West Of Eng-Glouc-Oxford,South West,BROWNE JACOBSON LLP,IS12147-SERVICE-Filwood Park,04/09/2017," 4,000.00 ",L,80121600,Business law services
Communities and Local Government,Homes and Communities Agency,Budget 2013 - Midlands Wm,Midlands,BROWNE JACOBSON LLP,IS12898-SERVICE-City Deal - AMH Funding Agreement Plots 5 and,05/09/2017," 1,500.00 ",L,80121600,Business law services
Communities and Local Government,Homes and Communities Agency,East And South East,East And South East,BROWNE JACOBSON LLP,IS12869-SERVICE-Queenborough and Rushenden Phase 1,06/09/2017," 1,800.00 ",L,80121600,Business law services
Communities and Local Government,Homes and Communities Agency,Economic Assets S&Sw Prog,South West,BROWNE JACOBSON LLP,IS11753-SERVICE-Centenary Quay,07/09/2017," 2,293.50 ",L,80121600,Business law services
Communities and Local Government,Homes and Communities Agency,Economic Assets S&Sw Prog,South West,BROWNE JACOBSON LLP,IS11753-SERVICE-Centenary Quay,07/09/2017," 1,000.00 ",L,80121600,Business law services
Communities and Local Government,Homes and Communities Agency,Spatial Intelligence Telford,Programmes,BROWNE JACOBSON LLP,IS12993-SERVICE-Birchwood Park,07/09/2017," 1,250.00 ",L,80121600,Business law services
Communities and Local Government,Homes and Communities Agency,Economic Assets S&Sw Prog,South West,BROWNE JACOBSON LLP,IS12900-SERVICE-King Point Marina,08/09/2017," 1,850.00 ",L,80121600,Business law services
Communities and Local Government,Homes and Communities Agency,East And South East,East And South East,BROWNE JACOBSON LLP,IS12691-SERVICE-Freehold Disposal preceeded by Building Agree,08/09/2017," 1,500.00 ",L,80121600,Business law services
Communities and Local Government,Homes and Communities Agency,Economic Assets S&Sw Prog,South West,BROWNE JACOBSON LLP,IS11176-SERVICE-Centenary Quay Phase 4,11/09/2017, 950.00 ,L,80121600,Business law services
Communities and Local Government,Homes and Communities Agency,Economic Assets S&Sw Prog,South West,BROWNE JACOBSON LLP,IS10995-SERVICE-Beacon Technology Park,12/09/2017, 750.00 ,L,80121600,Business law services
Communities and Local Government,Homes and Communities Agency,Budget 2013 - Midlands Wm,Midlands,BROWNE JACOBSON LLP,IS11848-SERVICE-Abbots Lane - Coventry - Disbursements,12/09/2017, 392.00 ,L,80121600,Business law services
Communities and Local Government,Homes and Communities Agency,Budget 2013 - Midlands Wm,Midlands,BROWNE JACOBSON LLP,IS11848-SERVICE-Correct to 2500 account code,12/09/2017," 7,501.13 ",L,80121600,Business law services
Communities and Local Government,Homes and Communities Agency,Area Dir Mids Worcs-Shrop-Here,Midlands,BROWNE JACOBSON LLP,IS12680-SERVICE-Land adjacent to Dairy Farm House,12/09/2017, 850.00 ,L,80121600,Business law services
Communities and Local Government,Homes and Communities Agency,Land And Regeneration Mh,Programmes,BROWNE JACOBSON LLP,IS11590-SERVICE-Phase 2,12/09/2017, 500.00 ,L,80121600,Business law services
Communities and Local Government,Homes and Communities Agency,Area Dir Cumbria Lancs Skelmer,North West,BROWNE JACOBSON LLP,IS11539-SERVICE-Eastway Employment Phase,14/09/2017," 5,000.00 ",L,80121600,Business law services
Communities and Local Government,Homes and Communities Agency,East And South East,East And South East,BROWNE JACOBSON LLP,IS12948-SERVICE-Former Peugeot gargae sites,18/09/2017," 1,500.00 ",L,80121600,Business law services
Communities and Local Government,Homes and Communities Agency,East And South East,East And South East,BROWNE JACOBSON LLP,IS10876-SERVICE-Northfleet Disposal - Red Lion Wharf/Former P,21/09/2017," 4,000.00 ",L,80121600,Business law services
Communities and Local Government,Homes and Communities Agency,Public Land and Regeneration,Programmes,BROWNE JACOBSON LLP,IS11275-SERVICE-City gateway,27/09/2017," 3,201.00 ",L,80121600,Business law services
Communities and Local Government,Homes and Communities Agency,Area Dir Mids Worcs-Shrop-Here,Midlands,BROWNE JACOBSON LLP,IS10088-SERVICE-Plot 6 T54 move to phase 5 SL,28/09/2017, 750.00 ,L,80121600,Business law services
Communities and Local Government,Homes and Communities Agency,South West Of Eng-Glouc-Oxford,South West,BROWNE JACOBSON LLP,IS11007-SERVICE-Locking Parklands,29/09/2017, 750.00 ,L,80121600,Business law services
Communities and Local Government,Homes and Communities Agency,Land And Regeneration Mh,Programmes,BROWNE JACOBSON LLP,TS00015-SERVICE-27559 - Wycliffe Estates Ltd - Gilbury hill P,29/09/2017," 20,371.90 ",L,80121600,Business law services
Communities and Local Government,Homes and Communities Agency,Public Land and Regeneration,Programmes,BROADWAY MALYAN LTD,IT68031-SERVICE-Planning application,14/09/2017," 1,750.00 ",L,80131800,Real estate management services
Communities and Local Government,Homes and Communities Agency,Spatial Intelligence Telford,Programmes,BUILDING DESIGN PARTNERSHIP,IT73821-SERVICE-Technical Support Manager Secondment,26/09/2017," 10,000.00 ",L,80131800,Real estate management services
Communities and Local Government,Homes and Communities Agency,East And South East,East And South East,PETER BRETT ASSOCIATES LLP,IT74006-SERVICE-3rd party consultation on tranlocaiton of rep,06/09/2017," 1,664.00 ",L,80131800,Real estate management services
Communities and Local Government,Homes and Communities Agency,Land And Regeneration Mh,Programmes,PETER BRETT ASSOCIATES LLP,IT73958-SERVICE-3yr Engineering for Kingsmead South,11/09/2017," 1,482.00 ",L,80131800,Real estate management services
Communities and Local Government,Homes and Communities Agency,Economic Assets S&Sw Prog,South West,PETER BRETT ASSOCIATES LLP,IT73512-SERVICE-Bridgewater Innovia - Plot A.  PBA constraint,22/09/2017," 1,850.00 ",L,80131800,Real estate management services
Communities and Local Government,Homes and Communities Agency,Economic Assets S&Sw Prog,South West,PETER BRETT ASSOCIATES LLP,IT73727-SERVICE-Drummond Park Luggershall ,27/09/2017," 4,990.00 ",L,80131800,Real estate management services
Communities and Local Government,Homes and Communities Agency,Budget 2013 - Midlands Wm,Midlands,PETER BRETT ASSOCIATES LLP,IT73382-SERVICE-Spatial Mapping - EBNS,29/09/2017," 1,500.00 ",L,80131800,Real estate management services
Communities and Local Government,Homes and Communities Agency,Economic Assets Ne-Y Prog,North East And Yorkshire,BIFFA WASTE SERVICE LTD,"DAP0852-SERVICE-Burt Street, Blyth - Biffa Contract Number 14",28/09/2017, 400.80 ,L,76121500,Refuse collection and disposal
Communities and Local Government,Homes and Communities Agency,It - Rda Transition,Finance & Corporate Services,BRITISH TELECOMMUNICATIONS PLC,DAP0673-SERVICE-Broadband usage for Contractual Homeworkers,04/09/2017," 1,330.91 ",L,83111500,Local and long distance telephone communications
Communities and Local Government,Homes and Communities Agency,It - Rda Transition,Finance & Corporate Services,BRITISH TELECOMMUNICATIONS PLC,DAP0673-SERVICE-14 x EBB Wireless Hub at 50 each,08/09/2017, 550.00 ,L,83111500,Local and long distance telephone communications
Communities and Local Government,Homes and Communities Agency,It - Rda Transition,Finance & Corporate Services,BRITISH TELECOMMUNICATIONS PLC,"DGC0056-SERVICE-General nationwide BT phone svcs: voice,VC,fa",15/09/2017, 342.33 ,L,83111500,Local and long distance telephone communications
Communities and Local Government,Homes and Communities Agency,It - Rda Transition,Finance & Corporate Services,BRITISH TELECOMMUNICATIONS PLC,DAP0673-SERVICE-Enterprise Broadband (EBB) Activation,15/09/2017, 500.00 ,L,83111500,Local and long distance telephone communications
Communities and Local Government,Homes and Communities Agency,It - Rda Transition,Finance & Corporate Services,BRITISH TELECOMMUNICATIONS PLC,DAP1356-SERVICE-VP50329470AC - Homeworker Broadband quarterly,25/09/2017, 598.56 ,L,83111500,Local and long distance telephone communications
Communities and Local Government,Homes and Communities Agency,It - Rda Transition,Finance & Corporate Services,BRITISH TELECOMMUNICATIONS PLC,DAP0673-SERVICE-Broadband usage for Contractual Homeworkers,25/09/2017, 943.00 ,L,83111500,Local and long distance telephone communications
Communities and Local Government,Homes and Communities Agency,#N/A,#N/A,BURN FENCING LTD,DAP2361-SERVICE-Fencing work at Doncaster Court,29/09/2017," 1,760.00 ",S,72101500,Building maintenance and repair services
Communities and Local Government,Homes and Communities Agency,Ne-Yh Sheffield And Humb Ne-Y,North East And Yorkshire,JACOBS UK LTD,DYH0251-SERVICE-Replaces PO YH00093 - Prof Consultancy,14/09/2017," 9,714.34 ",L,80131800,Real estate management services
Communities and Local Government,Homes and Communities Agency,Ne-Yh Sheffield And Humb Ne-Y,North East And Yorkshire,JACOBS UK LTD,DYH0251-SERVICE-Replaces PO YH00093 - Prof Consultancy,14/09/2017," 2,925.44 ",L,80131800,Real estate management services
Communities and Local Government,Homes and Communities Agency,Ne-Yh Sheffield And Humb Ne-Y,North East And Yorkshire,JACOBS UK LTD,DYH0251-SERVICE-Replaces PO YH00093 - Prof Consultancy,14/09/2017," 2,163.02 ",L,80131800,Real estate management services
Communities and Local Government,Homes and Communities Agency,Ne-Yh Sheffield And Humb Ne-Y,North East And Yorkshire,JACOBS UK LTD,DYH0251-SERVICE-Replaces PO YH00093 - Prof Consultancy,14/09/2017," 1,442.00 ",L,80131800,Real estate management services
Communities and Local Government,Homes and Communities Agency,Economic Assets Ne-Y Prog,North East And Yorkshire,JEREMY BENN ASSOCIATES LTD,DAP2428-SERVICE-IDB consultancy re Project Indigo at Goole36,28/09/2017, 790.71 ,L,77101500,Environmental auditing
Communities and Local Government,Homes and Communities Agency,Public Land and Regeneration,Programmes,BRITISH GAS BUSINESS,DAM3165-SERVICE-Electricity supply - The former Halifax Magis,11/09/2017, 850.24 ,L,83101800,Electric utilities
Communities and Local Government,Homes and Communities Agency,#N/A,#N/A,BRITISH GAS BUSINESS,DAP2326-SERVICE-Electricity Charges - Estuary,14/09/2017, 532.72 ,L,83101800,Electric utilities
Communities and Local Government,Homes and Communities Agency,Economic Assets S&Sw Prog,South West,BRITISH GAS BUSINESS,DSW1144-SERVICE-Daedalus Waterfront - site electricity bill,19/09/2017, 454.51 ,L,83101600,Oil and gas utilities
Communities and Local Government,Homes and Communities Agency,Economic Assets S&Sw Prog,South West,BRITISH GAS BUSINESS,DSW1144-SERVICE-Daedalus Waterfront - site electricity bill,19/09/2017, 450.63 ,L,83101800,Electric utilities
Communities and Local Government,Homes and Communities Agency,Budget 2013 - Midlands Wm,Midlands,BIRMINGHAM CITY COUNCIL,DAP2340-SERVICE-Void Business Rates,15/09/2017," 3,562.87 ",G,80131500,Lease and rental of property or building
Communities and Local Government,Homes and Communities Agency,Land And Regeneration National,Programmes,BBP REGENERATION LTD,IT73724-SERVICE-Maternity cover for Cynthia Kalyan for the pe,06/09/2017," 6,400.00 ",S,81121500,Economic analysis
Communities and Local Government,Homes and Communities Agency,Mk Development Control Mk,Midlands,BETTS ECOLOGY,DAP1082-SERVICE-Ransome Road - Final Report Invertebrate,15/09/2017, 950.00 ,S,77101500,Environmental auditing
Communities and Local Government,Homes and Communities Agency,Economic Assets Hub Transition,Economic Assets Hub,BROADACRES SERVICES LIMITED,STF-Richmond House-Sept17,11/09/2017," 109,441.00 ",,N/A,Loans
Communities and Local Government,Homes and Communities Agency,Land And Regeneration National,Programmes,BC LEGAL,INSTRUCTION COSTS,04/09/2017," 10,084.00 ",S,80121600,Business law services
Communities and Local Government,Homes and Communities Agency,Land And Regeneration National,Programmes,BC LEGAL,DGC1718-SERVICE-J WARBURTON Vs HCA DISBURSEMENT,19/09/2017," 1,475.00 ",S,80121600,Business law services
Communities and Local Government,Homes and Communities Agency,Land And Regeneration National,Programmes,BC LEGAL,DGC1719-SERVICE-R HUTCHFIELD Vs HCA DISBURSEMENT,19/09/2017," 1,075.00 ",S,80121600,Business law services
Communities and Local Government,Homes and Communities Agency,Economic Assets Hub Transition,Economic Assets Hub,BATTY DEVELOPMENTS LIMITED,"STF - Acacia Drive, Sandy Lane - Sep 17",29/09/2017," 430,000.00 ",,N/A,Loans
Communities and Local Government,Homes and Communities Agency,Land And Regeneration National,Programmes,BC LEGAL,DGC1705-SERVICE-R HUTCHFIELD V HCA,13/09/2017," 1,040.00 ",S,80121600,Business law services
Communities and Local Government,Homes and Communities Agency,Land And Regeneration National,Programmes,BC LEGAL,DGC1706-SERVICE-E WESTERN VS HCA,13/09/2017, 358.55 ,S,80121600,Business law services
Communities and Local Government,Homes and Communities Agency,Public Land and Regeneration,Programmes,BAWDEN CONTRACTING SERVICES LIMITED,"DAP0393-SERVICE-Newburn sidings, Health and Safety works and",29/09/2017," 1,656.50 ",S,72101500,Building maintenance and repair services
Communities and Local Government,Homes and Communities Agency,Economic Assets Hub Transition,Economic Assets Hub,BLAST PROPERTIES LTD,STF - Blast Properties Ltd - LD - Sep 17,26/09/2017," 371,153.69 ",,N/A,Loans
Communities and Local Government,Homes and Communities Agency,Comms Transition Budget,Finance & Corporate Services,BRITISH GAS BUSINESS,DOF0401-SERVICE-BIS %,11/09/2017," 1,630.04 ",L,83101800,Electric utilities
Communities and Local Government,Homes and Communities Agency,Comms Transition Budget,Finance & Corporate Services,BRITISH GAS BUSINESS,DOF0401-SERVICE-afegd 1106 01,11/09/2017," 3,533.23 ",L,83101800,Electric utilities
Communities and Local Government,Homes and Communities Agency,Economic Assets Hub Transition,Economic Assets Hub,BOVIS HOMES LTD,LTF - Stanton Cross - Ln Drdn - Sep 17,26/09/2017," 1,384,276.16 ",,N/A,Loans
Communities and Local Government,Homes and Communities Agency,Land And Regeneration Mh,Programmes,BNP PARIBAS REAL ESTATE,IT69739-SERVICE-Following previous discussions and the Monito,13/09/2017, 500.00 ,L,80131800,Real estate management services
Communities and Local Government,Homes and Communities Agency,Land And Regeneration Mh,Programmes,BNP PARIBAS REAL ESTATE,IT71581-SERVICE-Eccleshill Bradford,26/09/2017," 2,500.00 ",L,80131800,Real estate management services
Communities and Local Government,Homes and Communities Agency,Land And Regeneration Mh,Programmes,BNP PARIBAS REAL ESTATE,IT72771-SERVICE-Deer Park,27/09/2017," 2,950.00 ",L,80131800,Real estate management services
Communities and Local Government,Homes and Communities Agency,Land And Regeneration Mh,Programmes,BNP PARIBAS REAL ESTATE,IT73629-SERVICE-Intial monitoring report and monthly monitori,27/09/2017," 1,350.00 ",L,80131800,Real estate management services
Communities and Local Government,Homes and Communities Agency,Land And Regeneration Mh,Programmes,BNP PARIBAS REAL ESTATE,IT72773-SERVICE-Eastfields,28/09/2017," 2,950.00 ",L,80131800,Real estate management services
Communities and Local Government,Homes and Communities Agency,Land And Regeneration Mh,Programmes,BNP PARIBAS REAL ESTATE,IT72809-SERVICE-Golden Ash Homes,28/09/2017," 2,750.00 ",L,80131800,Real estate management services
Communities and Local Government,Homes and Communities Agency,Land And Regeneration Mh,Programmes,BNP PARIBAS REAL ESTATE,IT73682-SERVICE-Walrus (Vinyl Revival) Ltd,28/09/2017," 2,450.00 ",L,80131800,Real estate management services
Communities and Local Government,Homes and Communities Agency,Land And Regeneration Mh,Programmes,BNP PARIBAS REAL ESTATE,IT72844-SERVICE-Warkworth House Red Book Valuation,29/09/2017, 750.00 ,L,80131800,Real estate management services
Communities and Local Government,Homes and Communities Agency,Land And Regeneration Mh,Programmes,BNP PARIBAS REAL ESTATE,IT72805-SERVICE-Deeble Ventures Two,29/09/2017," 4,950.00 ",L,80131800,Real estate management services
Communities and Local Government,Homes and Communities Agency,Land And Regeneration Mh,Programmes,BNP PARIBAS REAL ESTATE,IT73667-SERVICE-Dunelm Stables,29/09/2017," 1,150.00 ",L,80131800,Real estate management services
Communities and Local Government,Homes and Communities Agency,Land And Regeneration Mh,Programmes,BNP PARIBAS REAL ESTATE,IT73586-SERVICE-Moordale (North East) Ltd - Land to the rear ,29/09/2017," 1,250.00 ",L,80131800,Real estate management services
Communities and Local Government,Homes and Communities Agency,Economic Assets S&Sw Prog,South West,BRISTOL CITY COUNCIL,DAP2465-SERVICE-31-49 Newfoundland  Court - 13987025078 - Bus,29/09/2017," 8,120.84 ",G,80131500,Lease and rental of property or building
Communities and Local Government,Homes and Communities Agency,Estate Management Yorks,North West,G BURLEY & SONS LTD,DAM3101-SERVICE-LC156     Northampton Town and Brackmills Lan,07/09/2017," 2,056.29 ",S,72101500,Building maintenance and repair services
Communities and Local Government,Homes and Communities Agency,Estate Management Yorks,North West,G BURLEY & SONS LTD,DAM2211-SERVICE-BASILDON     Call off order.,13/09/2017, 730.00 ,S,72101500,Building maintenance and repair services
Communities and Local Government,Homes and Communities Agency,Ne-Yh Sheffield And Humb Ne-Y,North East And Yorkshire,G BURLEY & SONS LTD,DAP0500-SERVICE-Carr Lodge Farm - supply and spread fresh top,27/09/2017, 307.70 ,S,72101500,Building maintenance and repair services
Communities and Local Government,Homes and Communities Agency,Estate Management Yorks,North West,BERRYS,IT72469-SERVICE-National Rural Core Services Contract 2015 -2,22/09/2017," 9,000.00 ",S,80131800,Real estate management services
Communities and Local Government,Homes and Communities Agency,Public Land and Regeneration,Programmes,CAMPBELL REITH,IT72497-SERVICE-Instruction for TEP in relation to building o,01/09/2017, 556.60 ,S,77101500,Environmental auditing
Communities and Local Government,Homes and Communities Agency,East And South East,East And South East,CAMPBELL REITH,IT73460-SERVICE-Planning permission,04/09/2017," 8,734.77 ",S,77101500,Environmental auditing
Communities and Local Government,Homes and Communities Agency,East And South East,East And South East,CAMPBELL REITH,IT73460-SERVICE-Planning permission,04/09/2017," 32,014.00 ",S,77101500,Environmental auditing
Communities and Local Government,Homes and Communities Agency,#N/A,#N/A,CAMPBELL REITH,IT74020-SERVICE-Demolition and Outline PlanningConsett Magist,07/09/2017," 6,831.25 ",S,77101500,Environmental auditing
Communities and Local Government,Homes and Communities Agency,#N/A,#N/A,CAMPBELL REITH,IT73846-SERVICE-Wealstun,14/09/2017," 16,595.56 ",S,77101500,Environmental auditing
Communities and Local Government,Homes and Communities Agency,Economic Assets S&Sw Prog,South West,CAMPBELL REITH,IT74091-SERVICE-Bat Monitoring,15/09/2017," 1,392.13 ",S,77101500,Environmental auditing
Communities and Local Government,Homes and Communities Agency,Economic Assets S&Sw Prog,South West,CAMPBELL REITH,IT74075-SERVICE-Noise Survey Ross House Junction,15/09/2017," 1,773.75 ",S,77101500,Environmental auditing
Communities and Local Government,Homes and Communities Agency,East And South East,East And South East,CAMPBELL REITH,IT72201-SERVICE-Site Supervision and Contract Administration,18/09/2017," 2,689.33 ",S,77101500,Environmental auditing
Communities and Local Government,Homes and Communities Agency,Economic Assets S&Sw Prog,South West,CAMPBELL REITH,IT73720-SERVICE-Ecology works neccessary for demolition of th,25/09/2017," 3,917.50 ",S,77101500,Environmental auditing
Communities and Local Government,Homes and Communities Agency,Land And Regeneration National,Programmes,CAMPBELL REITH,IT73914-SERVICE-Condition Survey for the Infirmary Building a,27/09/2017," 2,500.00 ",S,77101500,Environmental auditing
Communities and Local Government,Homes and Communities Agency,East And South East,East And South East,CARTER JONAS,IT74001-SERVICE-Co-Op valuation,06/09/2017," 4,500.00 ",L,80131800,Real estate management services
Communities and Local Government,Homes and Communities Agency,East And South East,East And South East,CARTER JONAS,IT73962-SERVICE-Valuation Site B Thorby avenue,08/09/2017," 2,000.00 ",L,80131800,Real estate management services
Communities and Local Government,Homes and Communities Agency,South West Of Eng-Glouc-Oxford,South West,CARTER JONAS,IT73756-SERVICE-Lead Consultant for bringing forward the Chal,12/09/2017," 13,660.10 ",L,80131800,Real estate management services
Communities and Local Government,Homes and Communities Agency,Public Land and Regeneration,Programmes,CARTER JONAS,IT72419-SERVICE-Valuations advice for plot 1 St James Hospita,29/09/2017," 5,000.00 ",L,80131800,Real estate management services
Communities and Local Government,Homes and Communities Agency,Spatial Intelligence Telford,Programmes,CORONA ENERGY,DAP1261-SERVICE-Gas Supply 5%,04/09/2017, 433.33 ,L,83101600,Oil and gas utilities
Communities and Local Government,Homes and Communities Agency,Comms Transition Budget,Finance & Corporate Services,CORONA ENERGY,DAP1889-SERVICE-GAS SUPPLIED TO HCA GATESHEAD,13/09/2017, 255.06 ,L,83101600,Oil and gas utilities
Communities and Local Government,Homes and Communities Agency,Public Land and Regeneration,Programmes,CORONA ENERGY,DAM3460-SERVICE-ST JAMES HOSPITAL     Gas bills.,13/09/2017, 496.77 ,L,83101600,Oil and gas utilities
Communities and Local Government,Homes and Communities Agency,Spatial Intelligence Telford,Programmes,CORONA ENERGY,"DAP2334-SERVICE-Gas supply to Doncaster County Court, Custome",15/09/2017," 1,218.78 ",L,83101600,Oil and gas utilities
Communities and Local Government,Homes and Communities Agency,#N/A,#N/A,CORONA ENERGY,DAP2348-SERVICE-Gas supply to Wakefield Magistrates Court. Cu,18/09/2017," 4,607.72 ",L,83101600,Oil and gas utilities
Communities and Local Government,Homes and Communities Agency,Spatial Intelligence Telford,Programmes,CORONA ENERGY,"DAP2371-SERVICE-Gas Supply, Skegness Magistrates Court, Park",21/09/2017, 443.89 ,L,83101600,Oil and gas utilities
Communities and Local Government,Homes and Communities Agency,Spatial Intelligence Telford,Programmes,CORONA ENERGY,"DAP2334-SERVICE-Gas supply to Doncaster County Court, Custome",25/09/2017, 301.68 ,L,83101600,Oil and gas utilities
Communities and Local Government,Homes and Communities Agency,#N/A,#N/A,CORONA ENERGY,DAP2441-SERVICE-Supply of gas to Oldham Magistrates Court.,25/09/2017, 598.04 ,L,83101600,Oil and gas utilities
Communities and Local Government,Homes and Communities Agency,Comms Transition Budget,Finance & Corporate Services,CLAYTON HOTELS,"DAP2215-SERVICE-14 car parking permits at Clayton Hotel, Leed",11/09/2017," 4,200.00 ",L,80131500,Lease and rental of property or building
Communities and Local Government,Homes and Communities Agency,East And South East,East And South East,F M CONWAY LIMITED,DAP2177-SERVICE-Chatham Maritime - Various works to repair ro,04/09/2017," 5,329.62 ",L,72101500,Building maintenance and repair services
Communities and Local Government,Homes and Communities Agency,Ftbi South East,East And South East,CAMBRIDGE ARCHAEOLOGY UNIT,DAP0684-SERVICE-Part 2 (of several): Archaeology mitigation w,08/09/2017," 117,770.47 ",L,80131800,Real estate management services
Communities and Local Government,Homes and Communities Agency,Ftbi South East,East And South East,CAMBRIDGE ARCHAEOLOGY UNIT,DAP0684-SERVICE-Part 2 (of several): Archaeology mitigation w,20/09/2017," 122,655.36 ",L,80131800,Real estate management services
Communities and Local Government,Homes and Communities Agency,East And South East,East And South East,CHATHAM MARITIME TRUST,DAP2244-SERVICE-Service Charges - Chatham Maritime,11/09/2017," 3,284.00 ",S,80131800,Real estate management services
Communities and Local Government,Homes and Communities Agency,East And South East,East And South East,CHATHAM MARITIME TRUST,DAP2244-SERVICE-Service Charges - Chatham Maritime,11/09/2017," 4,231.00 ",S,80131800,Real estate management services
Communities and Local Government,Homes and Communities Agency,East And South East,East And South East,CHATHAM MARITIME TRUST,DAP2244-SERVICE-Service Charges - Chatham Maritime,11/09/2017," 3,166.00 ",S,80131800,Real estate management services
Communities and Local Government,Homes and Communities Agency,East And South East,East And South East,CHATHAM MARITIME TRUST,DAP2244-SERVICE-Service Charges - Chatham Maritime,11/09/2017," 30,694.00 ",S,80131800,Real estate management services
Communities and Local Government,Homes and Communities Agency,It - Rda Transition,Finance & Corporate Services,CAPITA BUSINESS SERVICES LTD,"DAP2349-SERVICE-Portfolio, Programme & Offices P30 Course",18/09/2017," 1,071.00 ",L,86101800,In service training and manpower development
Communities and Local Government,Homes and Communities Agency,Comms Transition Budget,Finance & Corporate Services,COURIER DIRECT LTD,DSW0022-SERVICE-HCA Bristol Office Courier Charges,12/09/2017, 461.50 ,S,78102200,Postal and small parcel and courier services
Communities and Local Government,Homes and Communities Agency,Economic Assets S&Sw Prog,South West,C.M.A. (NEMESIS) LTD,DAP1481-SERVICE-Annual vermin control commission - Colt Havan,01/09/2017, 875.00 ,S,72102100,Pest control
Communities and Local Government,Homes and Communities Agency,Economic Assets S&Sw Prog,South West,C.M.A. (NEMESIS) LTD,DAP1481-SERVICE-Annual vermin control commission - Colt Havan,01/09/2017, 330.00 ,S,72102100,Pest control
Communities and Local Government,Homes and Communities Agency,Economic Assets S&Sw Prog,South West,C.M.A. (NEMESIS) LTD,DAP1305-SERVICE-Waterfront Pest Control Services - Daedalus,01/09/2017, 285.00 ,S,72102100,Pest control
Communities and Local Government,Homes and Communities Agency,Economic Assets Hub Transition,Economic Assets Hub,CAPTIVA HOMES,STF-Castle Street Old Cowes Rd-Sept17,08/09/2017," 217,613.54 ",,N/A,Loans
Communities and Local Government,Homes and Communities Agency,Economic Assets Hub Transition,Economic Assets Hub,CLEE MEADOWS LTD,STF-Ladysmith Road-Sept17,05/09/2017," 309,485.15 ",,N/A,Loans
Communities and Local Government,Homes and Communities Agency,Economic Assets S&Sw Prog,South West,CLAPHAMS LANDSCAPE SERVICES LTD,DAP1448-SERVICE-Initial site clearance June 2017 - Ashton Gat,11/09/2017," 2,000.00 ",S,72101500,Building maintenance and repair services
Communities and Local Government,Homes and Communities Agency,Economic Assets S&Sw Prog,South West,CLAPHAMS LANDSCAPE SERVICES LTD,DAP1808-SERVICE-Blackberry Hill Hospital landscaping July - D,26/09/2017, 773.50 ,S,72101500,Building maintenance and repair services
Communities and Local Government,Homes and Communities Agency,Economic Assets S&Sw Prog,South West,CLAPHAMS LANDSCAPE SERVICES LTD,"DAP1088-SERVICE-Gateway North Swindon, landscape maintenance",26/09/2017, 875.00 ,S,72101500,Building maintenance and repair services
Communities and Local Government,Homes and Communities Agency,Economic Assets S&Sw Prog,South West,CLAPHAMS LANDSCAPE SERVICES LTD,DAP1357-SERVICE-Winterstoke Road Weston Super Mare - June 201,26/09/2017, 390.00 ,S,72101500,Building maintenance and repair services
Communities and Local Government,Homes and Communities Agency,Economic Assets Hub Transition,Economic Assets Hub,CLL (RUSKIN ROAD) LTD,STF - Bush Nurseries - Ln Drdn - Sep 17,26/09/2017," 68,006.00 ",,N/A,Loans
Communities and Local Government,Homes and Communities Agency,Public Land and Regeneration,Programmes,CONCEPT BUILDING SERVICES  (SOUTHERN) LTD,"DSW0637-SERVICE-Broxhead House, Louisburg Barracks, Bordon, H",07/09/2017," 109,041.00 ",M,72101500,Building maintenance and repair services
Communities and Local Government,Homes and Communities Agency,Area Dir Mids South East Midla,Midlands,K D CHILDS STONEWORK DEVELOPMENTS,DAP1083-SERVICE-Corby - Southern Asset Overdue Repairs to Hoa,11/09/2017," 4,500.00 ",S,72101500,Building maintenance and repair services
Communities and Local Government,Homes and Communities Agency,Budget 2013 - Midlands Wm,Midlands,K D CHILDS STONEWORK DEVELOPMENTS,DAP1652-SERVICE-Emergency Works following traveller incurison,11/09/2017," 4,850.00 ",S,72101500,Building maintenance and repair services
Communities and Local Government,Homes and Communities Agency,East And South East,East And South East,C-ELECT ASSOCIATES LIMITED,"DAP1874-SERVICE-Dover Magistrates Court, call off order",14/09/2017," 4,965.45 ",S,72101500,Building maintenance and repair services
Communities and Local Government,Homes and Communities Agency,Economic Assets S&Sw Prog,South West,C-ELECT ASSOCIATES LIMITED,DAP2360-SERVICE-Colt International Havant - Re-energising sit,20/09/2017, 570.00 ,S,72101500,Building maintenance and repair services
Communities and Local Government,Homes and Communities Agency,Economic Assets S&Sw Prog,South West,CASTLE WATER LTD,DAP2421-SERVICE-Daedalus - Site water bills for 2017-2018,22/09/2017, 677.68 ,M,77101500,Environmental auditing
Communities and Local Government,Homes and Communities Agency,Economic Assets S&Sw Prog,South West,CASTLE WATER LTD,DAP2421-SERVICE-Daedalus - Site water bills for 2017-2018,22/09/2017," 1,240.94 ",M,77101500,Environmental auditing
Communities and Local Government,Homes and Communities Agency,Economic Assets S&Sw Prog,South West,CASTLE WATER LTD,DAP2421-SERVICE-Daedalus - Site water bills for 2017-2018,22/09/2017," 1,200.87 ",M,77101500,Environmental auditing
Communities and Local Government,Homes and Communities Agency,Economic Assets S&Sw Prog,South West,CASTLE WATER LTD,DAP2421-SERVICE-Daedalus - Site water bills for 2017-2018,22/09/2017," 1,313.75 ",M,77101500,Environmental auditing
Communities and Local Government,Homes and Communities Agency,Economic Assets S&Sw Prog,South West,CASTLE WATER LTD,DAP2421-SERVICE-Daedalus - Site water bills for 2017-2018,22/09/2017," 1,556.35 ",M,77101500,Environmental auditing
Communities and Local Government,Homes and Communities Agency,Economic Assets S&Sw Prog,South West,CASTLE WATER LTD,DAP2421-SERVICE-Daedalus - Site water bills for 2017-2018,22/09/2017," 1,616.18 ",M,77101500,Environmental auditing
Communities and Local Government,Homes and Communities Agency,Economic Assets S&Sw Prog,South West,CASTLE WATER LTD,DAP2421-SERVICE-Daedalus - Site water bills for 2017-2018,22/09/2017," 1,396.05 ",M,77101500,Environmental auditing
Communities and Local Government,Homes and Communities Agency,Economic Assets S&Sw Prog,South West,CASTLE WATER LTD,DAP2421-SERVICE-Daedalus - Site water bills for 2017-2018,22/09/2017," 5,601.75 ",M,77101500,Environmental auditing
Communities and Local Government,Homes and Communities Agency,Economic Assets S&Sw Prog,South West,CAIN BIO-ENGINEERING LTD,DAP1259-SERVICE-Grounds maintenance of vacant plots - Hermita,22/09/2017," 1,270.00 ",S,72101500,Building maintenance and repair services
Communities and Local Government,Homes and Communities Agency,Estate Management Yorks,North West,CONTINENTAL LANDSCAPES - GREENHAND,DAM2990-SERVICE-MERSEYSIDE     To carry out works as per Land,04/09/2017, 275.07 ,L,72101500,Building maintenance and repair services
Communities and Local Government,Homes and Communities Agency,Economic Assets Nw Prog,North West,CONTINENTAL LANDSCAPES - GREENHAND,DNW0615-SERVICE-Year 1 of the EAP.NW.012 contract - Wavertree,12/09/2017, 277.73 ,L,72101500,Building maintenance and repair services
Communities and Local Government,Homes and Communities Agency,Economic Assets Nw Prog,North West,CONTINENTAL LANDSCAPES - GREENHAND,DNW0615-SERVICE-Year 1 of the EAP.NW.012 contract - Hooton,12/09/2017, 360.08 ,L,72101500,Building maintenance and repair services
Communities and Local Government,Homes and Communities Agency,Ad Manchester Trafford,North West,CONTINENTAL LANDSCAPES - GREENHAND,DNW0615-SERVICE-Year 1 EAP.NW.012 contract - Innovation Park,12/09/2017, 360.96 ,L,72101500,Building maintenance and repair services
Communities and Local Government,Homes and Communities Agency,Economic Assets Nw Prog,North West,CONTINENTAL LANDSCAPES - GREENHAND,DNW0615-SERVICE-Year 1 of the EAP.NW.012 contract - Croft,12/09/2017, 390.96 ,L,72101500,Building maintenance and repair services
Communities and Local Government,Homes and Communities Agency,Economic Assets Nw Prog,North West,CONTINENTAL LANDSCAPES - GREENHAND,DNW0615-SERVICE-Year 1 of the EAP.NW.012 contract - Boulevard,12/09/2017, 685.34 ,L,72101500,Building maintenance and repair services
Communities and Local Government,Homes and Communities Agency,Estate Management Yorks,North West,CONTINENTAL LANDSCAPES - GREENHAND,DAM3279-SERVICE-WARRINGTON     Warrington landscape maintenan,13/09/2017, 786.55 ,L,72101500,Building maintenance and repair services
Communities and Local Government,Homes and Communities Agency,Area Dir Mids Worcs-Shrop-Here,Midlands,CONTINENTAL LANDSCAPES - GREENHAND,DWM0823-SERVICE-Year 3 extension of NL430-2015-2018,15/09/2017, 550.77 ,L,72101500,Building maintenance and repair services
Communities and Local Government,Homes and Communities Agency,Economic Assets Hub Transition,Economic Assets Hub,CARLTON GROUP DEVELOPMENTS LIMITED,STF-Carlton House-Sept17,06/09/2017," 498,232.26 ",,N/A,Loans
Communities and Local Government,Homes and Communities Agency,Public Land and Regeneration,Programmes,CB RICHARD ELLIS,IT73095-SERVICE-EPC's Leeman Road Site Site B Leemans Yard,15/09/2017," 2,440.00 ",L,80131800,Real estate management services
Communities and Local Government,Homes and Communities Agency,Land And Regeneration Mh,Programmes,CB RICHARD ELLIS,IT73280-SERVICE-Heathcote Street,22/09/2017," 4,500.00 ",L,,Real estate management services
Communities and Local Government,Homes and Communities Agency,Area Dir Mids Worcs-Shrop-Here,Midlands,COLLIERS INTERNATIONAL,DAP2359-SERVICE- Warwick Bar - Property Management Fee for th,19/09/2017, 905.75 ,L,80131500,Lease and rental of property or building
Communities and Local Government,Homes and Communities Agency,Area Dir Mids Worcs-Shrop-Here,Midlands,COLLIERS INTERNATIONAL,DAP2359-SERVICE- Warwick Bar - Property Management Fee for th,19/09/2017, 970.25 ,L,80131500,Lease and rental of property or building
Communities and Local Government,Homes and Communities Agency,Area Dir Mids Worcs-Shrop-Here,Midlands,COLLIERS INTERNATIONAL,DAP2359-SERVICE- Warwick Bar - Property Management Fee for th,19/09/2017," 1,849.00 ",L,80131500,Lease and rental of property or building
Communities and Local Government,Homes and Communities Agency,Economic Assets Nw Prog,North West,CENTRAL POWER SERVICES LIMITED,DAP2243-SERVICE-Visit standby generator - full service inc ma,21/09/2017," 1,020.00 ",M,72101500,Building maintenance and repair services
Communities and Local Government,Homes and Communities Agency,Economic Assets Nw Prog,North West,CENTRAL POWER SERVICES LIMITED,DAP2243-SERVICE-For an engineer to attend site to investigate,22/09/2017, 593.32 ,M,72101500,Building maintenance and repair services
Communities and Local Government,Homes and Communities Agency,Ad Manchester Trafford,North West,CELL:CM CHARTERED SURVEYORS,DNW0497-SERVICE-Professional consultancy fees for facilitatin,22/09/2017, 962.00 ,S,80131800,Real estate management services
Communities and Local Government,Homes and Communities Agency,Ad Manchester Trafford,North West,CELL:CM CHARTERED SURVEYORS,DNW0498-SERVICE-Professional consultancy fees for facilitatin,22/09/2017," 1,014.00 ",S,80131800,Real estate management services
Communities and Local Government,Homes and Communities Agency,East And South East,East And South East,CREATIVE CONCERN LTD,DAP1339-SERVICE-Communications Support,29/09/2017," 2,395.00 ",S,82101500,Print advertising
Communities and Local Government,Homes and Communities Agency,East And South East,East And South East,CHANNEL ENGINEERING LTD,"DAP1177-SERVICE-Queenborough and Rushenden, call off order.",04/09/2017," 1,637.00 ",S,72101500,Building maintenance and repair services
Communities and Local Government,Homes and Communities Agency,East And South East,East And South East,CHANNEL ENGINEERING LTD,"DAP1960-SERVICE-Buckland Mill, Dover - Extra gate works - Mat",14/09/2017, 314.00 ,S,72101500,Building maintenance and repair services
Communities and Local Government,Homes and Communities Agency,East And South East,East And South East,CHANNEL ENGINEERING LTD,DAP1898-SERVICE-Install New Gate - Labour,14/09/2017," 1,195.00 ",S,72101500,Building maintenance and repair services
Communities and Local Government,Homes and Communities Agency,East And South East,East And South East,CHANNEL ENGINEERING LTD,DAP1898-SERVICE-Install new gate - Materials,14/09/2017," 1,800.00 ",S,72101500,Building maintenance and repair services
Communities and Local Government,Homes and Communities Agency,Comms Transition Budget,Finance & Corporate Services,CAM-TEC SYSTEMS LIMITED,DAP2022-SERVICE-Rebrand all the staff ID/passes (700 plus). T,11/09/2017," 3,685.17 ",S,72102900,Facility maintenance and repair services
Communities and Local Government,Homes and Communities Agency,Ne-Yh Sheffield And Humb Ne-Y,North East And Yorkshire,COMMISSION AIR,DYH0250-SERVICE-replaces PO YH00101 - Aerial Photography,13/09/2017, 369.00 ,S,82131600,Photographers and cinematographers
Communities and Local Government,Homes and Communities Agency,Estate Management Yorks,North West,CARTWRIGHT LANDSCAPES,"DAM3489-SERVICE-TRAIN STATION NORTH, CORBY     Scrub clearanc",11/09/2017, 616.11 ,S,72101500,Building maintenance and repair services
Communities and Local Government,Homes and Communities Agency,Public Land and Regeneration,Programmes,CARTWRIGHT LANDSCAPES,DAP0448-SERVICE-Wrest Park - LM&C Works 2017-2018 as per Cont,11/09/2017, 557.42 ,S,72101500,Building maintenance and repair services
Communities and Local Government,Homes and Communities Agency,Comms Transition Budget,Finance & Corporate Services,ENGIE FM LIMITED,DAP2020-SERVICE-Access control door works to HCA Warrington,04/09/2017, 304.23 ,L,72102900,Facility maintenance and repair services
Communities and Local Government,Homes and Communities Agency,Comms Transition Budget,Finance & Corporate Services,ENGIE FM LIMITED,DAP0600-SERVICE-Replacing faulty fan motor to chiller unit wi,21/09/2017," 1,104.98 ",L,72102900,Facility maintenance and repair services
Communities and Local Government,Homes and Communities Agency,Comms Transition Budget,Finance & Corporate Services,ENGIE FM LIMITED,DAP0338-SERVICE-Tenant proportion,21/09/2017, 950.85 ,L,72102900,Facility maintenance and repair services
Communities and Local Government,Homes and Communities Agency,Comms Transition Budget,Finance & Corporate Services,ENGIE FM LIMITED,"DAP0338-SERVICE-Electrical, Mechanical and Public Health",21/09/2017," 2,306.61 ",L,72102900,Facility maintenance and repair services
Communities and Local Government,Homes and Communities Agency,Comms Transition Budget,Finance & Corporate Services,ENGIE FM LIMITED,DAP1903-SERVICE-Bedford office internal walls painted from th,26/09/2017," 1,227.08 ",L,72102900,Facility maintenance and repair services
Communities and Local Government,Homes and Communities Agency,Comms Transition Budget,Finance & Corporate Services,ENGIE FM LIMITED,DAP0338-SERVICE-Tenant proportion,28/09/2017, 950.85 ,L,72102900,Facility maintenance and repair services
Communities and Local Government,Homes and Communities Agency,Comms Transition Budget,Finance & Corporate Services,ENGIE FM LIMITED,"DAP0338-SERVICE-Electrical, Mechanical and Public Health",28/09/2017," 2,306.61 ",L,72102900,Facility maintenance and repair services
Communities and Local Government,Homes and Communities Agency,Comms Transition Budget,Finance & Corporate Services,ENGIE FM LIMITED,DAP0340-SERVICE-BIS/SFA tenant proportion,28/09/2017, 926.93 ,L,72102900,Facility maintenance and repair services
Communities and Local Government,Homes and Communities Agency,Comms Transition Budget,Finance & Corporate Services,ENGIE FM LIMITED,"DAP0340-SERVICE-Electrical, Mechanical and Public Health Plan",28/09/2017," 2,009.19 ",L,72102900,Facility maintenance and repair services
Communities and Local Government,Homes and Communities Agency,Comms Transition Budget,Finance & Corporate Services,ENGIE FM LIMITED,DAP0340-SERVICE-BIS/SFA tenant proportion,29/09/2017, 926.93 ,L,72102900,Facility maintenance and repair services
Communities and Local Government,Homes and Communities Agency,Comms Transition Budget,Finance & Corporate Services,ENGIE FM LIMITED,"DAP0340-SERVICE-Electrical, Mechanical and Public Health Plan",29/09/2017," 2,009.19 ",L,72102900,Facility maintenance and repair services
Communities and Local Government,Homes and Communities Agency,It - Rda Transition,Finance & Corporate Services,OASIS UK NORTH LIMITED,DGC1157-SERVICE-Media transportaion services and secure stora,12/09/2017," 1,251.84 ",L,81111200,Data services
Communities and Local Government,Homes and Communities Agency,LIF LS Loans Private additions,Programmes,DRIVERS JONAS DELOITTE,IT72604-SERVICE-Ebbsfleet Central Market Study and developmen,19/09/2017," 75,000.00 ",L,80131800,Real estate management services
Communities and Local Government,Homes and Communities Agency,LIF LS Loans Private additions,Programmes,DRIVERS JONAS DELOITTE,DLO0078-SERVICE-Deloitte Secondment Staff,29/09/2017," 62,215.00 ",L,80131800,Real estate management services
Communities and Local Government,Homes and Communities Agency,LIF LS Loans Private additions,Programmes,DRIVERS JONAS DELOITTE,DLO0078-SERVICE-Deloitte Secondment Staff,29/09/2017," 59,350.00 ",L,80131800,Real estate management services
Communities and Local Government,Homes and Communities Agency,LIF LS Loans Private additions,Programmes,DRIVERS JONAS DELOITTE,DLO0078-SERVICE-Deloitte Secondment Staff,29/09/2017," 55,330.00 ",L,80131800,Real estate management services
Communities and Local Government,Homes and Communities Agency,Communications Allerton,Executive Office,GORKANA GROUP LTD,DBP0543-SERVICE-Gorkana press cuttings 2017/18,06/09/2017, 813.90 ,L,82101500,Print advertising
Communities and Local Government,Homes and Communities Agency,Economic Assets S&Sw Prog,South West,CUSHMAN & WAKEFIELD DEBENHAM TIE LEUNG,IT73782-SERVICE-in accordance with 13/07/17                  ,01/09/2017," 4,000.00 ",L,80131800,Real estate management services
Communities and Local Government,Homes and Communities Agency,Budget 2013 - Midlands Wm,Midlands,CUSHMAN & WAKEFIELD DEBENHAM TIE LEUNG,IT73391-SERVICE-Walkmill Lane - Planning Consutlant,05/09/2017," 15,445.00 ",L,80131800,Real estate management services
Communities and Local Government,Homes and Communities Agency,Budget 2013 - Midlands Wm,Midlands,CUSHMAN & WAKEFIELD DEBENHAM TIE LEUNG,IT73935-SERVICE-Walkmill Lane - Drainage/Utility Assessment ,05/09/2017," 8,115.00 ",L,80131800,Real estate management services
Communities and Local Government,Homes and Communities Agency,Area Dir Mids Worcs-Shrop-Here,Midlands,CUSHMAN & WAKEFIELD DEBENHAM TIE LEUNG,IT71232-SERVICE-Redditch Golf Club,05/09/2017," 5,500.00 ",L,80131800,Real estate management services
Communities and Local Government,Homes and Communities Agency,Area Dir Mids Worcs-Shrop-Here,Midlands,CUSHMAN & WAKEFIELD DEBENHAM TIE LEUNG,IT72758-SERVICE-The Croppings Phase 2,06/09/2017," 3,000.00 ",L,80131800,Real estate management services
Communities and Local Government,Homes and Communities Agency,Economic Assets Ne-Y Prog,North East And Yorkshire,CUSHMAN & WAKEFIELD DEBENHAM TIE LEUNG,IT73912-SERVICE-Release of Restrictive Covenant at Haverton H,06/09/2017," 1,500.00 ",L,80131800,Real estate management services
Communities and Local Government,Homes and Communities Agency,Area Dir Mids Leicester-Warks,Midlands,CUSHMAN & WAKEFIELD DEBENHAM TIE LEUNG,IT73899-SERVICE-Market Advice - Fenny Compton,06/09/2017," 7,000.00 ",L,80131800,Real estate management services
Communities and Local Government,Homes and Communities Agency,Economic Assets Ne-Y Prog,North East And Yorkshire,CUSHMAN & WAKEFIELD DEBENHAM TIE LEUNG,IT73987-SERVICE-Franking valuation for disposal of Maiden Law,06/09/2017," 1,500.00 ",L,80131800,Real estate management services
Communities and Local Government,Homes and Communities Agency,Area Dir Mids Leicester-Warks,Midlands,CUSHMAN & WAKEFIELD DEBENHAM TIE LEUNG,IT74012-SERVICE-Fenny Compton,06/09/2017," 9,750.00 ",L,80131800,Real estate management services
Communities and Local Government,Homes and Communities Agency,Land And Regeneration Mh,Programmes,CUSHMAN & WAKEFIELD DEBENHAM TIE LEUNG,IT72306-SERVICE-MS Reporting Services for THBF,08/09/2017," 1,600.00 ",L,80131800,Real estate management services
Communities and Local Government,Homes and Communities Agency,Land And Regeneration Mh,Programmes,CUSHMAN & WAKEFIELD DEBENHAM TIE LEUNG,IT72179-SERVICE-Project Monitoring Surveyor Services - The Or,08/09/2017, 700.00 ,L,80131800,Real estate management services
Communities and Local Government,Homes and Communities Agency,Land And Regeneration Mh,Programmes,CUSHMAN & WAKEFIELD DEBENHAM TIE LEUNG,IT72306-SERVICE-MS Reporting Services for THBF,08/09/2017, 800.00 ,L,80131800,Real estate management services
Communities and Local Government,Homes and Communities Agency,Land And Regeneration Mh,Programmes,CUSHMAN & WAKEFIELD DEBENHAM TIE LEUNG,IT72179-SERVICE-Project Monitoring Surveyor Services - The Or,08/09/2017, 700.00 ,L,80131800,Real estate management services
Communities and Local Government,Homes and Communities Agency,Public Land and Regeneration,Programmes,CUSHMAN & WAKEFIELD DEBENHAM TIE LEUNG,IT73301-SERVICE-Public Sector Land Programme - Valuation (HCA,12/09/2017," 5,000.00 ",L,80131800,Real estate management services
Communities and Local Government,Homes and Communities Agency,Land And Regeneration Mh,Programmes,CUSHMAN & WAKEFIELD DEBENHAM TIE LEUNG,IT72307-SERVICE-MS Reporting Services for THBF,13/09/2017, 800.00 ,L,80131800,Real estate management services
Communities and Local Government,Homes and Communities Agency,Area Dir Cumbria Lancs Skelmer,North West,CUSHMAN & WAKEFIELD DEBENHAM TIE LEUNG,IT73402-SERVICE-AC Market Testing ,14/09/2017," 4,950.00 ",L,80131800,Real estate management services
Communities and Local Government,Homes and Communities Agency,Ad Manchester Trafford,North West,CUSHMAN & WAKEFIELD DEBENHAM TIE LEUNG,IT73685-SERVICE-Carnforth Rangers - Alternative Sites Search,14/09/2017," 4,000.00 ",L,80131800,Real estate management services
Communities and Local Government,Homes and Communities Agency,Area Dir Mids Worcs-Shrop-Here,Midlands,CUSHMAN & WAKEFIELD DEBENHAM TIE LEUNG,IT72754-SERVICE-Luddington,18/09/2017," 15,538.00 ",L,80131800,Real estate management services
Communities and Local Government,Homes and Communities Agency,Public Land and Regeneration,Programmes,CUSHMAN & WAKEFIELD DEBENHAM TIE LEUNG,IT73409-SERVICE-Refresh of the Joint red book valuation(HCA a,21/09/2017," 1,500.00 ",L,80131800,Real estate management services
Communities and Local Government,Homes and Communities Agency,Budget 2013 - Midlands Wm,Midlands,CUSHMAN & WAKEFIELD DEBENHAM TIE LEUNG,IT74117-SERVICE-Property Advice,21/09/2017," 8,750.00 ",L,80131800,Real estate management services
Communities and Local Government,Homes and Communities Agency,East And Se Essex And Kent,East And South East,CUSHMAN & WAKEFIELD DEBENHAM TIE LEUNG,IT73858-SERVICE-Land at Haine Road - Development Appraisal fo,26/09/2017," 3,500.00 ",L,80131800,Real estate management services
Communities and Local Government,Homes and Communities Agency,East And Se Essex And Kent,East And South East,CUSHMAN & WAKEFIELD DEBENHAM TIE LEUNG,IT70672-SERVICE-Officers Mess Marketing and ongoing monitorin,26/09/2017," 4,000.00 ",L,80131800,Real estate management services
Communities and Local Government,Homes and Communities Agency,Liverpool Cheshire Warrington,North West,CUSHMAN & WAKEFIELD DEBENHAM TIE LEUNG,IT72403-SERVICE-�Provide market commentary input to the Plann,27/09/2017," 10,290.00 ",L,80131800,Real estate management services
Communities and Local Government,Homes and Communities Agency,Area Dir Mids Worcs-Shrop-Here,Midlands,CUSHMAN & WAKEFIELD DEBENHAM TIE LEUNG,IT72435-SERVICE-Land Situated at Crossgate Road,29/09/2017," 1,650.00 ",L,80131800,Real estate management services
Communities and Local Government,Homes and Communities Agency,Budget 2013 - Midlands Wm,Midlands,CUSHMAN & WAKEFIELD DEBENHAM TIE LEUNG,IT73391-SERVICE-Walkmill Lane - Planning Consutlant,29/09/2017," 3,000.00 ",L,80131800,Real estate management services
Communities and Local Government,Homes and Communities Agency,Area Dir Cumbria Lancs Skelmer,North West,CUSHMAN & WAKEFIELD DEBENHAM TIE LEUNG,IT73906-SERVICE-Whalleys 2,29/09/2017," 5,500.00 ",L,80131800,Real estate management services
Communities and Local Government,Homes and Communities Agency,Economic Assets Hub Transition,Economic Assets Hub,DANDARA LIVING BIRMINGHAM LP,STF-Dandara Birmingham-Sept17,19/09/2017," 847,403.43 ",,N/A,Loans
Communities and Local Government,Homes and Communities Agency,Economic Assets Hub Transition,Economic Assets Hub,DANDARA LIVING LEEDS (A) LP,STF-Dandara Leeds A-Sept17,19/09/2017," 447,611.49 ",,N/A,Loans
Communities and Local Government,Homes and Communities Agency,Economic Assets Hub Transition,Economic Assets Hub,DANDARA LIVING LEEDS (B) LP,STF-Dandara Leeds B-Sept17,19/09/2017," 1,087,416.03 ",,N/A,Loans
Communities and Local Government,Homes and Communities Agency,Economic Assets Hub Transition,Economic Assets Hub,DANDARA LIVING MANCHESTER (A) LP,STF - Project Bourbon - Ln Drdn - Sep 17,19/09/2017," 1,508,910.72 ",,N/A,Loans
Communities and Local Government,Homes and Communities Agency,Economic Assets Hub Transition,Economic Assets Hub,DANDARA LIVING MANCHESTER (B) LP,STF - Project Bourbon - Ln Drdn - Sep 17,19/09/2017," 590,049.85 ",,N/A,Loans
Communities and Local Government,Homes and Communities Agency,Economic Assets Hub Transition,Economic Assets Hub,DANDARA LIVING MANCHESTER (C) LP,STF - Project Bourbon - Ln Drdn - Sep 17,19/09/2017," 5,586.57 ",,N/A,Loans
Communities and Local Government,Homes and Communities Agency,Economic Assets Hub Transition,Economic Assets Hub,DEEBLE VENTURES TWO LIMITED,STF-Deeble Ventures Two Ltd-Ln Dd-Sep 17,15/09/2017," 330,773.76 ",,N/A,Loans
Communities and Local Government,Homes and Communities Agency,Economic Assets Ne-Y Prog,North East And Yorkshire,DUNELM GEOTECHNICAL & ENVIRONMENTAL LTD,DAP1849-SERVICE-Site Investigation works at Carr Lodge Phase,13/09/2017," 7,914.35 ",S,72101500,Building maintenance and repair services
Communities and Local Government,Homes and Communities Agency,Economic Assets S&Sw Prog,South West,DORSET COUNTY COUNCIL,DAP1494-SERVICE-Cleannig following demolition works - Dorset,11/09/2017," 3,000.00 ",G,80121600,Business law services
Communities and Local Government,Homes and Communities Agency,East And Se Cambs Herts And Bu,East And South East,DWF LLP,IS10497-SERVICE-Spencer Park,01/09/2017," 4,557.25 ",L,80121600,Business law services
Communities and Local Government,Homes and Communities Agency,Economic Assets Ne-Y Prog,North East And Yorkshire,DWF LLP,IS12935-SERVICE-Parcel of land,04/09/2017, 450.00 ,L,80121600,Business law services
Communities and Local Government,Homes and Communities Agency,Economic Assets Ne-Y Prog,North East And Yorkshire,DWF LLP,IS12990-SERVICE-Regus Centre (Former Evans Easy Space),05/09/2017," 1,400.00 ",L,80121600,Business law services
Communities and Local Government,Homes and Communities Agency,Estate Management Yorks,North West,DWF LLP,IS12930-SERVICE-Confrim HCA's responsibilities as landlord on,05/09/2017, 725.00 ,L,80121600,Business law services
Communities and Local Government,Homes and Communities Agency,Ad Manchester Trafford,North West,DWF LLP,IS12650-SERVICE-Harras Moor - Copeland BC Land land,07/09/2017," 3,900.00 ",L,80121600,Business law services
Communities and Local Government,Homes and Communities Agency,Liverpool Cheshire Warrington,North West,DWF LLP,IS12725-SERVICE-Parcel 1909 & 1910 Blackstock Street,11/09/2017, 675.00 ,L,80121600,Business law services
Communities and Local Government,Homes and Communities Agency,Ne-Y North East Washington,North East And Yorkshire,DWF LLP,IS12708-SERVICE-Goole 36,13/09/2017, 647.00 ,L,80121600,Business law services
Communities and Local Government,Homes and Communities Agency,Land And Regeneration Mh,Programmes,DWF LLP,"TS00008-SERVICE-27559 - Golden Ash Homes,Leicester St, Wolver",14/09/2017," 11,628.15 ",L,80121600,Business law services
Communities and Local Government,Homes and Communities Agency,East And Se Essex And Kent,East And South East,DWF LLP,IS10447-SERVICE-Endeavour Drive 16c,19/09/2017, 758.55 ,L,80121600,Business law services
Communities and Local Government,Homes and Communities Agency,Area Dir Mids Worcs-Shrop-Here,Midlands,DWF LLP,IS11596-SERVICE-Recode to 3414 20%,19/09/2017," 5,053.97 ",L,80121600,Business law services
Communities and Local Government,Homes and Communities Agency,Economic Assets S&Sw Prog,South West,DWF LLP,IS12739-SERVICE-Kingston Marine Park,20/09/2017, 800.00 ,L,80121600,Business law services
Communities and Local Government,Homes and Communities Agency,Economic Assets S&Sw Prog,South West,DWF LLP,IS12739-SERVICE-Kingston Marine Park,20/09/2017, 496.00 ,L,80121600,Business law services
Communities and Local Government,Homes and Communities Agency,Economic Assets S&Sw Prog,South West,DWF LLP,IS12408-SERVICE-Island Technology park,20/09/2017, 775.00 ,L,80121600,Business law services
Communities and Local Government,Homes and Communities Agency,Economic Assets Nw Prog,North West,DWF LLP,NETWORK ACCESS AT BICKERSHAW,22/09/2017, 650.00 ,L,80121600,Business law services
Communities and Local Government,Homes and Communities Agency,Budget 2013 - Midlands Wm,Midlands,DWF LLP,IS10823-SERVICE-James Bridge - (EZ Site),25/09/2017," 4,005.00 ",L,80121600,Business law services
Communities and Local Government,Homes and Communities Agency,Ne-Y North East Washington,North East And Yorkshire,DWF LLP,IS12560-SERVICE-Hansteen Site - Disbursements,27/09/2017, 280.00 ,L,80121600,Business law services
Communities and Local Government,Homes and Communities Agency,Ne-Y North East Washington,North East And Yorkshire,DWF LLP,IS12560-SERVICE-Hansteen Site,27/09/2017," 1,471.50 ",L,80121600,Business law services
Communities and Local Government,Homes and Communities Agency,Economic Assets Ne-Y Prog,North East And Yorkshire,DWF LLP,IS13016-SERVICE-Land at Carlbury Road,27/09/2017," 1,500.00 ",L,80121600,Business law services
Communities and Local Government,Homes and Communities Agency,Ne-Y North East Washington,North East And Yorkshire,DWF LLP,IS12644-SERVICE-High Street,28/09/2017, 596.92 ,L,80121600,Business law services
Communities and Local Government,Homes and Communities Agency,Economic Assets Nw Prog,North West,DWF LLP,IS12876-SERVICE-s38 agreement relating to the Kingsway Busine,29/09/2017, 306.45 ,L,80121600,Business law services
Communities and Local Government,Homes and Communities Agency,It - Rda Transition,Finance & Corporate Services,DEPOEL MANAGED SERVICES LTD,DAP0995-SERVICE-Named Ind Contract until 30/06/17,01/09/2017, 625.04 ,L,80111600,Temporary personnel services
Communities and Local Government,Homes and Communities Agency,It - Rda Transition,Finance & Corporate Services,DEPOEL MANAGED SERVICES LTD,"DAP0382-SERVICE-Named Ind, IMS Business Analyst",04/09/2017," 2,524.59 ",L,80111600,Temporary personnel services
Communities and Local Government,Homes and Communities Agency,It - Rda Transition,Finance & Corporate Services,DEPOEL MANAGED SERVICES LTD,DAP0374-SERVICE-Named Ind - TMS .Net Developer,04/09/2017," 2,272.83 ",L,80111600,Temporary personnel services
Communities and Local Government,Homes and Communities Agency,It - Rda Transition,Finance & Corporate Services,DEPOEL MANAGED SERVICES LTD,DAP0385-SERVICE-Named Ind - IMS Test Analyst,04/09/2017," 1,955.06 ",L,80111600,Temporary personnel services
Communities and Local Government,Homes and Communities Agency,It - Rda Transition,Finance & Corporate Services,DEPOEL MANAGED SERVICES LTD,"DAP0386-SERVICE-Named Ind, TMS Test Analyst",04/09/2017," 1,955.06 ",L,80111600,Temporary personnel services
Communities and Local Government,Homes and Communities Agency,It - Rda Transition,Finance & Corporate Services,DEPOEL MANAGED SERVICES LTD,DAP0383-SERVICE-Named Ind - TMS .Net Developer,04/09/2017," 2,743.28 ",L,80111600,Temporary personnel services
Communities and Local Government,Homes and Communities Agency,It - Rda Transition,Finance & Corporate Services,DEPOEL MANAGED SERVICES LTD,DAP0380-SERVICE-Named Ind IMS Net Developer,04/09/2017," 2,514.39 ",L,80111600,Temporary personnel services
Communities and Local Government,Homes and Communities Agency,It - Rda Transition,Finance & Corporate Services,DEPOEL MANAGED SERVICES LTD,DAP0995-SERVICE-Named Ind.Contract until 30/06/17,08/09/2017, 500.03 ,L,80111600,Temporary personnel services
Communities and Local Government,Homes and Communities Agency,It - Rda Transition,Finance & Corporate Services,DEPOEL MANAGED SERVICES LTD,"DAP0387-SERVICE-Named Ind, TMS Technical Architect",11/09/2017," 2,844.98 ",L,80111600,Temporary personnel services
Communities and Local Government,Homes and Communities Agency,It - Rda Transition,Finance & Corporate Services,DEPOEL MANAGED SERVICES LTD,"DAP0387-SERVICE-Named ind, TMS Technical Architect",11/09/2017," 2,275.98 ",L,80111600,Temporary personnel services
Communities and Local Government,Homes and Communities Agency,It - Rda Transition,Finance & Corporate Services,DEPOEL MANAGED SERVICES LTD,DAP0374-SERVICE-Named Ind - TMS .Net Developer,11/09/2017," 1,818.27 ",L,80111600,Temporary personnel services
Communities and Local Government,Homes and Communities Agency,It - Rda Transition,Finance & Corporate Services,DEPOEL MANAGED SERVICES LTD,DAP0385-SERVICE-Named Ind - IMS Test Analyst,11/09/2017," 1,564.05 ",L,80111600,Temporary personnel services
Communities and Local Government,Homes and Communities Agency,It - Rda Transition,Finance & Corporate Services,DEPOEL MANAGED SERVICES LTD,DAP0386-SERVICE-Named Ind TMS Test Analyst,11/09/2017," 1,564.05 ",L,80111600,Temporary personnel services
Communities and Local Government,Homes and Communities Agency,It - Rda Transition,Finance & Corporate Services,DEPOEL MANAGED SERVICES LTD,DAP0380-SERVICE-Named Ind IMS Net Developer,11/09/2017," 2,011.51 ",L,80111600,Temporary personnel services
Communities and Local Government,Homes and Communities Agency,It - Rda Transition,Finance & Corporate Services,DEPOEL MANAGED SERVICES LTD,DAP0378-SERVICE-Named Ind - TMS Net Developer,14/09/2017," 1,645.97 ",L,80111600,Temporary personnel services
Communities and Local Government,Homes and Communities Agency,It - Rda Transition,Finance & Corporate Services,DEPOEL MANAGED SERVICES LTD,DAP0995-SERVICE-Named Ind Contract until 30/06/17,14/09/2017, 625.04 ,L,80111600,Temporary personnel services
Communities and Local Government,Homes and Communities Agency,It - Rda Transition,Finance & Corporate Services,DEPOEL MANAGED SERVICES LTD,DAP0378-SERVICE - Named Ind - TMS Net Developer,15/09/2017," 1,645.97 ",L,80111600,Temporary personnel services
Communities and Local Government,Homes and Communities Agency,It - Rda Transition,Finance & Corporate Services,DEPOEL MANAGED SERVICES LTD,DAP0380-SERVICE-Named Ind IMS Net Developer,15/09/2017," 2,514.39 ",L,80111600,Temporary personnel services
Communities and Local Government,Homes and Communities Agency,It - Rda Transition,Finance & Corporate Services,DEPOEL MANAGED SERVICES LTD,DAP0378-SERVICE- Named Ind - TMS Net Developer,15/09/2017," 3,291.93 ",L,80111600,Temporary personnel services
Communities and Local Government,Homes and Communities Agency,It - Rda Transition,Finance & Corporate Services,DEPOEL MANAGED SERVICES LTD,DAP0383-SERVICE-Named Ind - TMS .Net Developer,15/09/2017," 2,194.62 ",L,80111600,Temporary personnel services
Communities and Local Government,Homes and Communities Agency,It - Rda Transition,Finance & Corporate Services,DEPOEL MANAGED SERVICES LTD,"DAP0387-SERVICE- Named Ind, TMS Technical Architect",15/09/2017," 2,844.98 ",L,80111600,Temporary personnel services
Communities and Local Government,Homes and Communities Agency,It - Rda Transition,Finance & Corporate Services,DEPOEL MANAGED SERVICES LTD,DAP0382-SERVICE-IMS Business Analyst,15/09/2017," 2,524.59 ",L,80111600,Temporary personnel services
Communities and Local Government,Homes and Communities Agency,It - Rda Transition,Finance & Corporate Services,DEPOEL MANAGED SERVICES LTD,DAP0374-SERVICE TMS .Net Developer,15/09/2017," 2,272.83 ",L,80111600,Temporary personnel services
Communities and Local Government,Homes and Communities Agency,It - Rda Transition,Finance & Corporate Services,DEPOEL MANAGED SERVICES LTD,DAP0385-SERVICE IMS Test Analyst,15/09/2017," 1,955.06 ",L,80111600,Temporary personnel services
Communities and Local Government,Homes and Communities Agency,It - Rda Transition,Finance & Corporate Services,DEPOEL MANAGED SERVICES LTD,DAP0386-SERVICE TMS Test Analyst,15/09/2017," 1,955.06 ",L,80111600,Temporary personnel services
Communities and Local Government,Homes and Communities Agency,It - Rda Transition,Finance & Corporate Services,DEPOEL MANAGED SERVICES LTD,DAP0383-SERVICE - TMS .Net Developer,15/09/2017," 2,743.28 ",L,80111600,Temporary personnel services
Communities and Local Government,Homes and Communities Agency,It - Rda Transition,Finance & Corporate Services,DEPOEL MANAGED SERVICES LTD,DAP0387-SERVICE TMS Technical Architect,22/09/2017," 2,844.98 ",L,80111600,Temporary personnel services
Communities and Local Government,Homes and Communities Agency,It - Rda Transition,Finance & Corporate Services,DEPOEL MANAGED SERVICES LTD,DAP0382-SERVICE-IMS Business Analyst,22/09/2017," 2,524.59 ",L,80111600,Temporary personnel services
Communities and Local Government,Homes and Communities Agency,It - Rda Transition,Finance & Corporate Services,DEPOEL MANAGED SERVICES LTD,DAP0374-SERVICE-- TMS .Net Developer,22/09/2017," 1,818.27 ",L,80111600,Temporary personnel services
Communities and Local Government,Homes and Communities Agency,It - Rda Transition,Finance & Corporate Services,DEPOEL MANAGED SERVICES LTD,DAP0385-SERVICE- IMS Test Analyst,22/09/2017," 1,955.06 ",L,80111600,Temporary personnel services
Communities and Local Government,Homes and Communities Agency,It - Rda Transition,Finance & Corporate Services,DEPOEL MANAGED SERVICES LTD,DAP0386-SERVICE- TMS Test Analyst,22/09/2017," 1,955.06 ",L,80111600,Temporary personnel services
Communities and Local Government,Homes and Communities Agency,It - Rda Transition,Finance & Corporate Services,DEPOEL MANAGED SERVICES LTD,DAP0383-SERVICE - TMS .Net Developer,22/09/2017," 2,743.28 ",L,80111600,Temporary personnel services
Communities and Local Government,Homes and Communities Agency,It - Rda Transition,Finance & Corporate Services,DEPOEL MANAGED SERVICES LTD,DAP0380-SERVICE- IMS Net Developer,22/09/2017," 2,514.39 ",L,80111600,Temporary personnel services
Communities and Local Government,Homes and Communities Agency,It - Rda Transition,Finance & Corporate Services,DEPOEL MANAGED SERVICES LTD,DAP0378-SERVICETMS Net Developer,22/09/2017," 2,743.28 ",L,80111600,Temporary personnel services
Communities and Local Government,Homes and Communities Agency,It - Rda Transition,Finance & Corporate Services,DEPOEL MANAGED SERVICES LTD,DAP0995-SERVICEContract until 30/06/17,25/09/2017, 375.02 ,L,80111600,Temporary personnel services
Communities and Local Government,Homes and Communities Agency,It - Rda Transition,Finance & Corporate Services,DEPOEL MANAGED SERVICES LTD,DAP0387-SERVICE TMS Technical Architect,28/09/2017," 2,844.98 ",L,80111600,Temporary personnel services
Communities and Local Government,Homes and Communities Agency,It - Rda Transition,Finance & Corporate Services,DEPOEL MANAGED SERVICES LTD,DAP0382-SERVICE IMS Business Analyst,28/09/2017," 2,524.59 ",L,80111600,Temporary personnel services
Communities and Local Government,Homes and Communities Agency,It - Rda Transition,Finance & Corporate Services,DEPOEL MANAGED SERVICES LTD,DAP0374-SERVICE - TMS .Net Developer,28/09/2017," 1,363.70 ",L,80111600,Temporary personnel services
Communities and Local Government,Homes and Communities Agency,It - Rda Transition,Finance & Corporate Services,DEPOEL MANAGED SERVICES LTD,DAP0385-SERVICE - IMS Test Analyst,28/09/2017," 1,955.06 ",L,80111600,Temporary personnel services
Communities and Local Government,Homes and Communities Agency,It - Rda Transition,Finance & Corporate Services,DEPOEL MANAGED SERVICES LTD,"DAP0386-SERVICE-Named ind, TMS Test Analyst",28/09/2017," 1,955.06 ",L,80111600,Temporary personnel services
Communities and Local Government,Homes and Communities Agency,It - Rda Transition,Finance & Corporate Services,DEPOEL MANAGED SERVICES LTD,DAP0383-SERVICE - TMS .Net Developer,28/09/2017," 2,743.28 ",L,80111600,Temporary personnel services
Communities and Local Government,Homes and Communities Agency,It - Rda Transition,Finance & Corporate Services,DEPOEL MANAGED SERVICES LTD,DAP0380-SERVICE IMS Net Developer,28/09/2017," 2,514.39 ",L,80111600,Temporary personnel services
Communities and Local Government,Homes and Communities Agency,It - Rda Transition,Finance & Corporate Services,DEPOEL MANAGED SERVICES LTD,DAP0995-SERVICE-Named Ind Contract until 30/06/17,29/09/2017, 625.04 ,L,80111600,Temporary personnel services
Communities and Local Government,Homes and Communities Agency,East And Se Essex And Kent,East And South East,DDS (DEMOLITION) LTD,DEE0076-SERVICE-Demolition of Connaught Barracks buildings,07/09/2017," 9,949.20 ",M,72141500,Land preparation services
Communities and Local Government,Homes and Communities Agency,It - Rda Transition,Finance & Corporate Services,DB GROUP LTD T/A ESUASIVE,DAP1067-SERVICE-Services to support the replacement of CRM v4,06/09/2017," 18,987.50 ",L,43231500,Business function specific software
Communities and Local Government,Homes and Communities Agency,Economic Assets S&Sw Prog,South West,ENQUIN ENVIRONMENTAL LIMITED,DAP1450-SERVICE-West End Honiton - R & D asbestos survey,19/09/2017," 4,165.96 ",S,80131800,Real estate management services
Communities and Local Government,Homes and Communities Agency,Area Dir Mids Worcs-Shrop-Here,Midlands,AMEC FOSTER WHEELER & INFASTRUCTURE UK LTD,IT70169-SERVICE-Lea Castle Outline Planning Application - Lea,01/09/2017," 8,000.00 ",L,80131800,Real estate management services
Communities and Local Government,Homes and Communities Agency,East And South East,East And South East,AMEC FOSTER WHEELER & INFASTRUCTURE UK LTD,IT73379-SERVICE-Towergate A,15/09/2017," 20,000.00 ",L,80131800,Real estate management services
Communities and Local Government,Homes and Communities Agency,South West Of Eng-Glouc-Oxford,South West,AMEC FOSTER WHEELER & INFASTRUCTURE UK LTD,IT71802-SERVICE-BOSELEY SITE,20/09/2017," 62,213.71 ",L,80131800,Real estate management services
Communities and Local Government,Homes and Communities Agency,Area Dir Mids Worcs-Shrop-Here,Midlands,AMEC FOSTER WHEELER & INFASTRUCTURE UK LTD,IT72024-SERVICE-Earthworks Monitoring,27/09/2017," 2,980.08 ",L,80131800,Real estate management services
Communities and Local Government,Homes and Communities Agency,East And Se Essex And Kent,East And South East,AMEC FOSTER WHEELER & INFASTRUCTURE UK LTD,IT72282-SERVICE-Planning Strategy Works - Meetings,29/09/2017," 5,934.33 ",L,80131800,Real estate management services
Communities and Local Government,Homes and Communities Agency,East And Se Essex And Kent,East And South East,AMEC FOSTER WHEELER & INFASTRUCTURE UK LTD,IT72280-SERVICE-Planning Strategy Works - Highways and Transp,29/09/2017," 3,080.76 ",L,80131800,Real estate management services
Communities and Local Government,Homes and Communities Agency,East And Se Essex And Kent,East And South East,AMEC FOSTER WHEELER & INFASTRUCTURE UK LTD,IT72279-SERVICE-Planning Strategy Works - Masterplanning,29/09/2017," 7,204.00 ",L,80131800,Real estate management services
Communities and Local Government,Homes and Communities Agency,East And Se Essex And Kent,East And South East,AMEC FOSTER WHEELER & INFASTRUCTURE UK LTD,IT72278-SERVICE-Planning Strategy Works - Town Planning,29/09/2017," 18,408.10 ",L,80131800,Real estate management services
Communities and Local Government,Homes and Communities Agency,Facilities Allerton Bywater,Finance & Corporate Services,REED BUSINESS INFORMATION LIMITED,DAP2135-SERVICE-Recruitment - 1 job advert. Senior Specialist,05/09/2017," 1,000.00 ",M,82101500,Print advertising
Communities and Local Government,Homes and Communities Agency,Facilities Allerton Bywater,Finance & Corporate Services,REED BUSINESS INFORMATION LIMITED,DAP2225-SERVICE-XpertHR Gender Pay Gap Survey 30/08/17,08/09/2017," 1,700.00 ",M,82101500,Print advertising
Communities and Local Government,Homes and Communities Agency,Economic Assets S&Sw Prog,South West,EAST DEVON DISTRICT COUNCIL,DAP2476-SERVICE-Former Ceram Tech Factory Colyton - Rates,29/09/2017," 39,238.63 ",G,80131500,Lease and rental of property or building
Communities and Local Government,Homes and Communities Agency,Facilities Allerton Bywater,Finance & Corporate Services,EDENRED (UK GROUP) LTD,DAP1901-SERVICE-Instant Recognition Scheme,26/09/2017, 275.00 ,L,14111803,Vouchers
Communities and Local Government,Homes and Communities Agency,It - Rda Transition,Finance & Corporate Services,EE LTD,DAP0517-SERVICE-Monthly mobile bill x 3 ,11/09/2017," 5,972.73 ",L,83101600,Mobile communications services
Communities and Local Government,Homes and Communities Agency,Economic Assets Hub Transition,Economic Assets Hub,ENJOY HOMES LTD,STF-Rectory Road-Sept17,15/09/2017," 154,000.00 ",,N/A,Loans
Communities and Local Government,Homes and Communities Agency,#N/A,#N/A,ENERGY ASSETS LIMITED,DAP2145-SERVICE-Dartford Magistrates Court - Isolate 2 x gas,04/09/2017," 5,113.12 ",M,72101500,Building maintenance and repair services
Communities and Local Government,Homes and Communities Agency,Estate Management Yorks,North West,ENVIRONMENTAL DESIGN,DAP1908-SERVICE-Netteswell Road - Removal of all identified c,26/09/2017, 286.00 ,S,72101500,Building maintenance and repair services
Communities and Local Government,Homes and Communities Agency,Economic Assets Hub Transition,Economic Assets Hub,EARLS COURT PARTNERSHIP LIMITED,LTF - Earls Court Village - L D - Sep 17,27/09/2017," 516,376.00 ",,N/A,Loans
Communities and Local Government,Homes and Communities Agency,Economic Assets S&Sw Prog,South West,AECOM LIMITED,IT73753-SERVICE-Former Pirbright Institute,01/09/2017," 52,500.00 ",L,72101500,Building maintenance and repair services
Communities and Local Government,Homes and Communities Agency,Ne-Yh Sheffield And Humb Ne-Y,North East And Yorkshire,AECOM LIMITED,IT70780-SERVICE-Brookvale,01/09/2017," 7,875.00 ",L,72101500,Building maintenance and repair services
Communities and Local Government,Homes and Communities Agency,Ne-Yh Sheffield And Humb Ne-Y,North East And Yorkshire,AECOM LIMITED,IT70779-SERVICE-Brookvale,01/09/2017," 2,475.00 ",L,72101500,Building maintenance and repair services
Communities and Local Government,Homes and Communities Agency,Land And Regeneration National,Programmes,AECOM LIMITED,IT72745-SERVICE-Energy masterplanning commission,04/09/2017," 10,795.00 ",L,72101500,Building maintenance and repair services
Communities and Local Government,Homes and Communities Agency,Area Dir Cumbria Lancs Skelmer,North West,AECOM LIMITED,IT72823-SERVICE-Ecological planning conditions discharge - pl,08/09/2017," 1,771.00 ",L,72101500,Building maintenance and repair services
Communities and Local Government,Homes and Communities Agency,LIF LS Loans Private additions,Programmes,AECOM LIMITED,IT71864-SERVICE-Project monitoring of Chilmington Green infra,11/09/2017," 2,271.00 ",L,72101500,Building maintenance and repair services
Communities and Local Government,Homes and Communities Agency,LIF LS Loans Private additions,Programmes,AECOM LIMITED,IT71864-SERVICE-Project monitoring of Chilmington Green infra,12/09/2017," 2,271.00 ",L,72101500,Building maintenance and repair services
Communities and Local Government,Homes and Communities Agency,East And South East,East And South East,AECOM LIMITED,IT73396-SERVICE-Wrest Park (Silsoe) - PLanning/ costs assessm,12/09/2017," 5,493.64 ",L,72101500,Building maintenance and repair services
Communities and Local Government,Homes and Communities Agency,Economic Assets Ne-Y Prog,North East And Yorkshire,AECOM LIMITED,IT74018-SERVICE-Provision of Technical Reports for Housing at,13/09/2017," 31,926.33 ",L,72101500,Building maintenance and repair services
Communities and Local Government,Homes and Communities Agency,South West Of Eng-Glouc-Oxford,South West,AECOM LIMITED,IT73701-SERVICE-Tecnical support to planning at Chalgrove,19/09/2017," 18,464.29 ",L,72101500,Building maintenance and repair services
Communities and Local Government,Homes and Communities Agency,Liverpool Cheshire Warrington,North West,AECOM LIMITED,IT73872-SERVICE-Altcar Lane Utilities Study,20/09/2017," 2,401.34 ",L,72101500,Building maintenance and repair services
Communities and Local Government,Homes and Communities Agency,Public Land and Regeneration,Programmes,AECOM LIMITED,IT70650-SERVICE-Louisburg Barracks Employment land delivery,22/09/2017," 2,500.00 ",L,72101500,Building maintenance and repair services
Communities and Local Government,Homes and Communities Agency,Economic Assets S&Sw Prog,South West,AECOM LIMITED,IT73753-SERVICE-Former Pirbright Institute,22/09/2017," 52,500.00 ",L,72101500,Building maintenance and repair services
Communities and Local Government,Homes and Communities Agency,Economic Assets Nw Prog,North West,AECOM LIMITED,IT74042-SERVICE-Ongoing Bat Surveying,26/09/2017," 15,304.00 ",L,72101500,Building maintenance and repair services
Communities and Local Government,Homes and Communities Agency,South West Of Eng-Glouc-Oxford,South West,AECOM LIMITED,IT73952-SERVICE-Cost consultancy fees,27/09/2017," 10,467.29 ",L,72101500,Building maintenance and repair services
Communities and Local Government,Homes and Communities Agency,Economic Assets Nw Prog,North West,AECOM LIMITED,IT72821-SERVICE-GCN,28/09/2017," 1,428.58 ",L,72101500,Building maintenance and repair services
Communities and Local Government,Homes and Communities Agency,Budget 2013 - Midlands Wm,Midlands,SAVILLS UK LIMITED,IT73940-SERVICE-122,08/09/2017, 901.75 ,L,80131800,Real estate management services
Communities and Local Government,Homes and Communities Agency,East And Se Essex And Kent,East And South East,SAVILLS UK LIMITED,IT72217-SERVICE-Land Agent Services - Lodge Hill NCL Sites,19/09/2017," 1,932.00 ",L,80131800,Real estate management services
Communities and Local Government,Homes and Communities Agency,Economic Assets S&Sw Prog,South West,SAVILLS UK LIMITED,IT74195-SERVICE-Tipner East Planning Statement,27/09/2017," 2,260.00 ",L,80131800,Real estate management services
Communities and Local Government,Homes and Communities Agency,East And South East,East And South East,SAVILLS UK LIMITED,IT73931-SERVICE-Pound Lane South,27/09/2017, 950.00 ,L,80131800,Real estate management services
Communities and Local Government,Homes and Communities Agency,Mk Development Control Mk,Midlands,SAVILLS UK LIMITED,IT71878-SERVICE-Upton Park - S106 Viability Review,28/09/2017," 1,225.00 ",L,80131800,Real estate management services
Communities and Local Government,Homes and Communities Agency,Land And Regeneration Mh,Programmes,SAVILLS UK LIMITED,IT73528-SERVICE-Valuation,29/09/2017," 3,000.00 ",L,80131800,Real estate management services
Communities and Local Government,Homes and Communities Agency,Mk Development Control Mk,Midlands,SAVILLS UK LIMITED,IT71878-SERVICE-Upton Park - S106 Viability Review,29/09/2017," 2,800.00 ",L,80131800,Real estate management services
Communities and Local Government,Homes and Communities Agency,Area Dir Cumbria Lancs Skelmer,North West,FISHER WRATHALL,DAP1821-SERVICE-Relocation Study for Carnforth Rangers,06/09/2017, 850.00 ,S,80131800,Real estate management services
Communities and Local Government,Homes and Communities Agency,Economic Assets S&Sw Prog,South West,R FOX T/A SOUTHCOAST MAINTENANCE,DAP2160-SERVICE-Daedalus Waterfront - B118 labour and materia,05/09/2017," 4,900.00 ",S,72101500,Building maintenance and repair services
Communities and Local Government,Homes and Communities Agency,Economic Assets S&Sw Prog,South West,R FOX T/A SOUTHCOAST MAINTENANCE,DAP2159-SERVICE-Woolston Riverside - Immediate repairs to sit,19/09/2017," 2,000.00 ",S,72101500,Building maintenance and repair services
Communities and Local Government,Homes and Communities Agency,Budget 2013 - Midlands Wm,Midlands,FALCON SECURITY,DAP1017-SERVICE-CCTV Monitoring and Patrols,01/09/2017," 2,800.00 ",M,92121500,Guard services
Communities and Local Government,Homes and Communities Agency,East And Se Cambs Herts And Bu,East And South East,FALCON SECURITY,DAM3490-SERVICE-HOUGHTON GRANGE     To cover for the remainde,19/09/2017," 14,631.68 ",M,92121500,Guard services
Communities and Local Government,Homes and Communities Agency,East And South East,East And South East,FALCON SECURITY,DAP1084-SERVICE-Oakington Barracks - To the provision of mann,19/09/2017," 15,244.96 ",M,92121500,Guard services
Communities and Local Government,Homes and Communities Agency,Spatial Intelligence Telford,Programmes,FALCON SECURITY,DAP2392-SERVICE-Monitoring costs for CCTV at Stourbridge CC,26/09/2017," 2,400.00 ",M,92121500,Guard services
Communities and Local Government,Homes and Communities Agency,#N/A,#N/A,FALCON SECURITY,DAP2383-SERVICE-Security call outs at Luddington,26/09/2017, 670.00 ,M,92121500,Guard services
Communities and Local Government,Homes and Communities Agency,Spatial Intelligence Telford,Programmes,FALCON SECURITY,DAP2373-SERVICE-Installation of CCTV at Burton MC,26/09/2017," 5,000.00 ",M,92121500,Guard services
Communities and Local Government,Homes and Communities Agency,Spatial Intelligence Telford,Programmes,FALCON SECURITY,DAP2376-SERVICE-CCTV monitoring at Hinckley MC,26/09/2017," 4,700.00 ",M,92121500,Guard services
Communities and Local Government,Homes and Communities Agency,#N/A,#N/A,FALCON SECURITY,DAP2383-SERVICE-CCTV monitoring at Luddington,26/09/2017," 1,120.00 ",M,92121500,Guard services
Communities and Local Government,Homes and Communities Agency,#N/A,#N/A,FALCON SECURITY,DAP2383-SERVICE-CCTV monitoring at Luddington,26/09/2017," 1,400.00 ",M,92121500,Guard services
Communities and Local Government,Homes and Communities Agency,Budget 2013 - Midlands Wm,Midlands,FALCON SECURITY,DAP2403-SERVICE-Maintenance visit at Gainsborough,26/09/2017," 1,100.00 ",M,92121500,Guard services
Communities and Local Government,Homes and Communities Agency,Spatial Intelligence Telford,Programmes,FALCON SECURITY,DAP2385-SERVICE-CCTV monitoring at Skegness MC,26/09/2017," 1,200.00 ",M,92121500,Guard services
Communities and Local Government,Homes and Communities Agency,Spatial Intelligence Telford,Programmes,FALCON SECURITY,DAP2385-SERVICE-CCTV monitoring at Skegness MC,26/09/2017," 1,500.00 ",M,92121500,Guard services
Communities and Local Government,Homes and Communities Agency,Spatial Intelligence Telford,Programmes,FALCON SECURITY,DAP2392-SERVICE-Monitoring costs for CCTV at Stourbridge CC,26/09/2017," 1,200.00 ",M,92121500,Guard services
Communities and Local Government,Homes and Communities Agency,Budget 2013 - Midlands Wm,Midlands,FALCON SECURITY,DAP2372-SERVICE-Installation of CCTV at Melton Mowbray,26/09/2017," 5,000.00 ",M,92121500,Guard services
Communities and Local Government,Homes and Communities Agency,Budget 2013 - Midlands Wm,Midlands,FALCON SECURITY,DAP2372-SERVICE-Installation of CCTV at Melton Mowbray,26/09/2017, 800.00 ,M,92121500,Guard services
Communities and Local Government,Homes and Communities Agency,Spatial Intelligence Telford,Programmes,FALCON SECURITY,DAP2373-SERVICE-CCTV monitoring at Burton MC,26/09/2017," 1,200.00 ",M,92121500,Guard services
Communities and Local Government,Homes and Communities Agency,Spatial Intelligence Telford,Programmes,FALCON SECURITY,DAP2376-SERVICE-CCTV monitoring at Hinckley MC,26/09/2017," 1,200.00 ",M,92121500,Guard services
Communities and Local Government,Homes and Communities Agency,#N/A,#N/A,FALCON SECURITY,DAP2383-SERVICE-Monitoring costs of CCTV at Luddington,26/09/2017," 1,120.00 ",M,92121500,Guard services
Communities and Local Government,Homes and Communities Agency,Budget 2013 - Midlands Wm,Midlands,FALCON SECURITY,DAP2403-SERVICE-Security call outs at Gainsborough,26/09/2017, 880.00 ,M,92121500,Guard services
Communities and Local Government,Homes and Communities Agency,Spatial Intelligence Telford,Programmes,FALCON SECURITY,DAP2385-SERVICE-CCTV monitoring at Skegness MC,26/09/2017," 1,200.00 ",M,92121500,Guard services
Communities and Local Government,Homes and Communities Agency,Spatial Intelligence Telford,Programmes,FALCON SECURITY,DAP2392-SERVICE-Monitoring costs for CCTV at Stourbridge CC,26/09/2017," 1,200.00 ",M,92121500,Guard services
Communities and Local Government,Homes and Communities Agency,Budget 2013 - Midlands Wm,Midlands,FALCON SECURITY,DAP2402-SERVICE-Monitoring costs CCTV at Washwood Heath,26/09/2017, 880.00 ,M,92121500,Guard services
Communities and Local Government,Homes and Communities Agency,Spatial Intelligence Telford,Programmes,FALCON SECURITY,DAP2385-SERVICE-Installation of 2 x PTZ at Skegness MC,26/09/2017," 3,460.00 ",M,92121500,Guard services
Communities and Local Government,Homes and Communities Agency,Spatial Intelligence Telford,Programmes,FALCON SECURITY,DAP2373-SERVICE-CCTV monitoring at Burton MC,26/09/2017," 1,500.00 ",M,92121500,Guard services
Communities and Local Government,Homes and Communities Agency,Spatial Intelligence Telford,Programmes,FALCON SECURITY,DAP2373-SERVICE-CCTV monitoring at Burton MC,26/09/2017," 1,200.00 ",M,92121500,Guard services
Communities and Local Government,Homes and Communities Agency,#N/A,#N/A,FALCON SECURITY,DAP2383-SERVICE-CCTV monitoring at Luddington,26/09/2017," 1,400.00 ",M,92121500,Guard services
Communities and Local Government,Homes and Communities Agency,#N/A,#N/A,FALCON SECURITY,DAP2383-SERVICE-Monitoring costs of CCTV at Luddington,26/09/2017," 1,120.00 ",M,92121500,Guard services
Communities and Local Government,Homes and Communities Agency,#N/A,#N/A,FALCON SECURITY,DAP2383-SERVICE-Repairs to CCTV Cable,26/09/2017, 790.00 ,M,92121500,Guard services
Communities and Local Government,Homes and Communities Agency,Spatial Intelligence Telford,Programmes,FALCON SECURITY,DAP2376-SERVICE-CCTV monitoring at Hinckley MC,26/09/2017," 1,500.00 ",M,92121500,Guard services
Communities and Local Government,Homes and Communities Agency,Spatial Intelligence Telford,Programmes,FALCON SECURITY,DAP2376-SERVICE-CCTV monitoring at Hinckley MC,26/09/2017," 1,200.00 ",M,92121500,Guard services
Communities and Local Government,Homes and Communities Agency,Budget 2013 - Midlands Wm,Midlands,FALCON SECURITY,DAP2372-SERVICE-CCTV monitoring at Melton Mowbray,26/09/2017," 1,500.00 ",M,92121500,Guard services
Communities and Local Government,Homes and Communities Agency,Budget 2013 - Midlands Wm,Midlands,FALCON SECURITY,DAP2372-SERVICE-Installation of CCTV at Melton Mowbray,26/09/2017," 1,200.00 ",M,92121500,Guard services
Communities and Local Government,Homes and Communities Agency,Budget 2013 - Midlands Wm,Midlands,FALCON SECURITY,DAP2372-SERVICE-CCTV monitoring at Melton Mowbray,26/09/2017, 980.00 ,M,92121500,Guard services
Communities and Local Government,Homes and Communities Agency,Budget 2013 - Midlands Wm,Midlands,FALCON SECURITY,DAP2372-SERVICE-CCTV monitoring at Melton Mowbray,26/09/2017, 505.00 ,M,92121500,Guard services
Communities and Local Government,Homes and Communities Agency,Budget 2013 - Midlands Wm,Midlands,FALCON SECURITY,DAP2372-SERVICE-Installation of CCTV at Melton Mowbray,26/09/2017, 840.00 ,M,92121500,Guard services
Communities and Local Government,Homes and Communities Agency,Spatial Intelligence Telford,Programmes,FALCON SECURITY,DAP2382-SERVICE-CCTV monitoring at Sandwell MC,26/09/2017," 1,500.00 ",M,92121500,Guard services
Communities and Local Government,Homes and Communities Agency,Spatial Intelligence Telford,Programmes,FALCON SECURITY,DAP2382-SERVICE-CCTV monitoring at Sandwell MC,26/09/2017," 1,200.00 ",M,92121500,Guard services
Communities and Local Government,Homes and Communities Agency,Spatial Intelligence Telford,Programmes,FALCON SECURITY,DAP2385-SERVICE-CCTV monitoring at Skegness MC,26/09/2017, 425.00 ,M,92121500,Guard services
Communities and Local Government,Homes and Communities Agency,Spatial Intelligence Telford,Programmes,FALCON SECURITY,DAP2385-SERVICE-CCTV monitoring at Skegness MC,26/09/2017," 1,200.00 ",M,92121500,Guard services
Communities and Local Government,Homes and Communities Agency,Spatial Intelligence Telford,Programmes,FALCON SECURITY,DAP2392-SERVICE-Monitoring costs for CCTV at Stourbridge CC,26/09/2017," 1,500.00 ",M,92121500,Guard services
Communities and Local Government,Homes and Communities Agency,Spatial Intelligence Telford,Programmes,FALCON SECURITY,DAP2392-SERVICE-Monitoring costs for CCTV at Stourbridge CC,26/09/2017," 1,200.00 ",M,92121500,Guard services
Communities and Local Government,Homes and Communities Agency,Budget 2013 - Midlands Wm,Midlands,FALCON SECURITY,DAP2402-SERVICE-Security call out to Electric Gate,26/09/2017," 1,240.00 ",M,92121500,Guard services
Communities and Local Government,Homes and Communities Agency,Budget 2013 - Midlands Wm,Midlands,FALCON SECURITY,DAP2403-SERVICE-Monitoring costs CCTV at Gainsborough,26/09/2017," 1,100.00 ",M,92121500,Guard services
Communities and Local Government,Homes and Communities Agency,Spatial Intelligence Telford,Programmes,FALCON SECURITY,DAP2404-SERVICE-CCTV monitoring at Chalfront Drive,26/09/2017," 5,460.00 ",M,92121500,Guard services
Communities and Local Government,Homes and Communities Agency,Mk Development Control Mk,Midlands,FALCON SECURITY,DAM3439-SERVICE-RANSOME ROAD     Security provision: February,28/09/2017," 5,665.00 ",M,92121500,Guard services
Communities and Local Government,Homes and Communities Agency,Budget 2013 - Midlands Wm,Midlands,FIRST NATIONAL SERVICES LTD,"DAP1883-SERVICE-Barnsley Hall - gas testing,  safety checks,",01/09/2017, 453.00 ,S,72102900,Facility maintenance and repair services
Communities and Local Government,Homes and Communities Agency,Budget 2013 - Midlands Wm,Midlands,FIRST NATIONAL SERVICES LTD,"DAP1883-SERVICE-Barnsley Hall - gas testing,  safety checks,",01/09/2017, 303.75 ,S,72102900,Facility maintenance and repair services
Communities and Local Government,Homes and Communities Agency,Budget 2013 - Midlands Wm,Midlands,FIRST NATIONAL SERVICES LTD,DAP2107-SERVICE-Barnsley Hall - To supply and install gas boi,15/09/2017," 3,281.40 ",S,72102900,Facility maintenance and repair services
Communities and Local Government,Homes and Communities Agency,Budget 2013 - Midlands Wm,Midlands,FIRST NATIONAL SERVICES LTD,DAP2107-SERVICE-Barnsley Hall - To supply and install gas boi,15/09/2017, 891.68 ,S,72102900,Facility maintenance and repair services
Communities and Local Government,Homes and Communities Agency,Budget 2013 - Midlands Wm,Midlands,FIRST NATIONAL SERVICES LTD,"DAP2240-SERVICE-Ridge Hill, disconnect dislodged roof mounted",15/09/2017," 1,051.70 ",S,72102900,Facility maintenance and repair services
Communities and Local Government,Homes and Communities Agency,Budget 2013 - Midlands Wm,Midlands,FIRST NATIONAL SERVICES LTD,"DAP1883-SERVICE-Barnsley Hall - gas testing,  safety checks,",21/09/2017, 263.25 ,S,72102900,Facility maintenance and repair services
Communities and Local Government,Homes and Communities Agency,Budget 2013 - Midlands Wm,Midlands,FIRST CHOICE CLEANING & MAINTENANCE LTD,"DAP2411-SERVICE-Final hire charges for lighting, generators e",22/09/2017," 2,138.59 ",S,72153501,Building exterior cleaning service  
Communities and Local Government,Homes and Communities Agency,Economic Assets S&Sw Prog,South West,FP MAILING LTD,DSW0885-SERVICE-Franking posting for tenants BBSP,04/09/2017, 800.00 ,S,78102200,Postal and small parcel and courier services
Communities and Local Government,Homes and Communities Agency,Economic Assets S&Sw Prog,South West,FP MAILING LTD,DSW0885-SERVICE-Franking posting for tenants BBSP,29/09/2017, 800.00 ,S,78102200,Postal and small parcel and courier services
Communities and Local Government,Homes and Communities Agency,Economic Assets Hub Transition,Economic Assets Hub,FAIRGROVE (NOTTINGHAM) LTD,STF - Kimberly Brewery - Ln Dd - Sep 17,26/09/2017," 232,778.00 ",,N/A,Loans
Communities and Local Government,Homes and Communities Agency,Economic Assets Hub Transition,Economic Assets Hub,FLOUR DEVELOPMENTS LIMITED,BtR-Flour Developments-Sept17,15/09/2017," 839,476.69 ",,N/A,Loans
Communities and Local Government,Homes and Communities Agency,Facilities Allerton Bywater,Finance & Corporate Services,KAPLAN FINANCIAL,DGC1393-SERVICE-Rebecca Jeffrey - AAT Level 2,08/09/2017, 871.33 ,M,86101800,In service training and manpower development
Communities and Local Government,Homes and Communities Agency,Estate Management Yorks,North West,F T GEARING L/S LTD,DAP0806-SERVICE-Clearance of fly tip left by tresspassers - H,05/09/2017, 580.00 ,M,72101500,Building maintenance and repair services
Communities and Local Government,Homes and Communities Agency,Estate Management Yorks,North West,F T GEARING L/S LTD,DAP0555-SERVICE-Repair/replace 7 knee rail bars and 5 knee ra,18/09/2017, 415.00 ,M,72101500,Building maintenance and repair services
Communities and Local Government,Homes and Communities Agency,Estate Management Yorks,North West,F T GEARING L/S LTD,DAP1132-SERVICE-Fly tip clearance at Potters Lane and Norton,18/09/2017, 520.00 ,M,72101500,Building maintenance and repair services
Communities and Local Government,Homes and Communities Agency,Estate Management Yorks,North West,F T GEARING L/S LTD,DAP1130-SERVICE-Paradise Fields - Annual Maintenance - Hedge,18/09/2017, 395.23 ,M,72101500,Building maintenance and repair services
Communities and Local Government,Homes and Communities Agency,Economic Assets S&Sw Prog,South West,GOOD ENERGY LTD,DAP2352-SERVICE-Plot 3 Temple Quay,21/09/2017, 319.65 ,M,83101800,Electric utilities
Communities and Local Government,Homes and Communities Agency,Budget 2013 - Midlands Wm,Midlands,GVA GRIMLEY,IT73809-SERVICE-Propery Inspections,01/09/2017," 3,000.00 ",L,80131800,Real estate management services
Communities and Local Government,Homes and Communities Agency,Budget 2013 - Midlands Wm,Midlands,GVA GRIMLEY,IT73807-SERVICE-Managing Agent,01/09/2017, 500.00 ,L,80131800,Real estate management services
Communities and Local Government,Homes and Communities Agency,Land And Regeneration Mh,Programmes,GVA GRIMLEY,IT70369-SERVICE-Guisborough - Redcar and Cleveland - Gentoo ,05/09/2017, 750.00 ,L,80131800,Real estate management services
Communities and Local Government,Homes and Communities Agency,Spatial Intelligence Telford,Programmes,GVA GRIMLEY,IT74028-SERVICE-Land at The Angle,05/09/2017," 4,500.00 ",L,80131800,Real estate management services
Communities and Local Government,Homes and Communities Agency,Affordable National,Programmes,GVA GRIMLEY,IT72417-SERVICE-ATLAS Viability support to large projects,05/09/2017," 7,080.00 ",L,80131800,Real estate management services
Communities and Local Government,Homes and Communities Agency,Land And Regeneration Mh,Programmes,GVA GRIMLEY,IT73768-SERVICE-Red Book Valuation for land at High Ash Farm,08/09/2017," 3,500.00 ",L,80131800,Real estate management services
Communities and Local Government,Homes and Communities Agency,Economic Assets Nw Prog,North West,GVA GRIMLEY,IT73779-SERVICE-I would like you to consider and advise on: 1,14/09/2017," 2,100.00 ",L,80131800,Real estate management services
Communities and Local Government,Homes and Communities Agency,Budget 2013 - Midlands Wm,Midlands,GVA GRIMLEY,IT73805-SERVICE-Managing Agent,15/09/2017," 1,500.00 ",L,80131800,Real estate management services
Communities and Local Government,Homes and Communities Agency,Budget 2013 - Midlands Wm,Midlands,GVA GRIMLEY,IT73807-SERVICE-Managing Agent,15/09/2017," 2,375.00 ",L,80131800,Real estate management services
Communities and Local Government,Homes and Communities Agency,Mk Development Control Mk,Midlands,GVA GRIMLEY,IT73546-SERVICE-Northampton Reactive Management Maintenance W,15/09/2017," 1,500.00 ",L,80131800,Real estate management services
Communities and Local Government,Homes and Communities Agency,Mk Development Control Mk,Midlands,GVA GRIMLEY,IT73480-SERVICE-Northampton Brownfield Management - Ransome R,15/09/2017," 2,250.00 ",L,80131800,Real estate management services
Communities and Local Government,Homes and Communities Agency,Spatial Intelligence Telford,Programmes,GVA GRIMLEY,IT74072-SERVICE-Site 18R Royal Quays,15/09/2017," 10,000.00 ",L,80131800,Real estate management services
Communities and Local Government,Homes and Communities Agency,Ne-Y North East Washington,North East And Yorkshire,GVA GRIMLEY,IT72791-SERVICE-Lease renewal and rent reappraisal,15/09/2017," 2,300.00 ",L,80131800,Real estate management services
Communities and Local Government,Homes and Communities Agency,Land And Regeneration Mh,Programmes,GVA GRIMLEY,IT70372-SERVICE-Cypress Avenue,18/09/2017, 750.00 ,L,80131800,Real estate management services
Communities and Local Government,Homes and Communities Agency,Land And Regeneration Mh,Programmes,GVA GRIMLEY,IT70367-SERVICE-Carlton,18/09/2017, 750.00 ,L,80131800,Real estate management services
Communities and Local Government,Homes and Communities Agency,Land And Regeneration Mh,Programmes,GVA GRIMLEY,IT70370-SERVICE-Wylam,18/09/2017, 750.00 ,L,80131800,Real estate management services
Communities and Local Government,Homes and Communities Agency,Land And Regeneration Mh,Programmes,GVA GRIMLEY,IT70369-SERVICE-Guisborough - Redcar and Cleveland - Gentoo,18/09/2017, 750.00 ,L,80131800,Real estate management services
Communities and Local Government,Homes and Communities Agency,Land And Regeneration Mh,Programmes,GVA GRIMLEY,IT70368-SERVICE-Benton,18/09/2017, 750.00 ,L,80131800,Real estate management services
Communities and Local Government,Homes and Communities Agency,Land And Regeneration Mh,Programmes,GVA GRIMLEY,IT70375-SERVICE-Doxford Park Monitoring Surveyor Instruction,18/09/2017, 850.00 ,L,80131800,Real estate management services
Communities and Local Government,Homes and Communities Agency,Land And Regeneration Mh,Programmes,GVA GRIMLEY,IT71994-SERVICE-BFF Monitoring Surveyor Appointment - Mill Mo,19/09/2017, 750.00 ,L,80131800,Real estate management services
Communities and Local Government,Homes and Communities Agency,Economic Assets S&Sw Prog,South West,GVA GRIMLEY,IT74016-SERVICE-BBSP letting fees,19/09/2017," 17,280.98 ",L,80131800,Real estate management services
Communities and Local Government,Homes and Communities Agency,Economic Assets Ne-Y Prog,North East And Yorkshire,GVA GRIMLEY,DAP1178-SERVICE-Villa Real - Void land management fee for 17/,20/09/2017, 375.00 ,L,80131800,Real estate management services
Communities and Local Government,Homes and Communities Agency,Economic Assets Ne-Y Prog,North East And Yorkshire,GVA GRIMLEY,DAP1178-SERVICE-Simonside Industrial Park - Void land managem,20/09/2017, 500.00 ,L,80131800,Real estate management services
Communities and Local Government,Homes and Communities Agency,Economic Assets Ne-Y Prog,North East And Yorkshire,GVA GRIMLEY,DAP1178-SERVICE-Sedgeletch Industrial Estate - Void land mana,20/09/2017, 250.00 ,L,80131800,Real estate management services
Communities and Local Government,Homes and Communities Agency,Economic Assets Ne-Y Prog,North East And Yorkshire,GVA GRIMLEY,DAP1178-SERVICE-Queens Meadow Business Park - Void land manag,20/09/2017, 500.00 ,L,80131800,Real estate management services
Communities and Local Government,Homes and Communities Agency,Economic Assets Ne-Y Prog,North East And Yorkshire,GVA GRIMLEY,DAP1178-SERVICE-Newburn Riverside - Void land management fee,20/09/2017, 250.00 ,L,80131800,Real estate management services
Communities and Local Government,Homes and Communities Agency,Economic Assets Ne-Y Prog,North East And Yorkshire,GVA GRIMLEY,DAP1178-SERVICE-Nelson Park Industrial Estate - Void land man,20/09/2017, 500.00 ,L,80131800,Real estate management services
Communities and Local Government,Homes and Communities Agency,Economic Assets Ne-Y Prog,North East And Yorkshire,GVA GRIMLEY,"DAP1178-SERVICE-Meadowfield Business Park, Durham - Void land",20/09/2017, 500.00 ,L,80131800,Real estate management services
Communities and Local Government,Homes and Communities Agency,Economic Assets Ne-Y Prog,North East And Yorkshire,GVA GRIMLEY,DAP1178-SERVICE-Kirkleatham Buisness Park - Void land managem,20/09/2017, 250.00 ,L,80131800,Real estate management services
Communities and Local Government,Homes and Communities Agency,Economic Assets Ne-Y Prog,North East And Yorkshire,GVA GRIMLEY,DAP1178-SERVICE-Ashwood Business Park - Void land management,20/09/2017, 375.00 ,L,80131800,Real estate management services
Communities and Local Government,Homes and Communities Agency,Land And Regeneration National,Programmes,GVA GRIMLEY,IT73794-SERVICE-Consultancy support 2.5 days per week,21/09/2017," 3,135.90 ",L,80131800,Real estate management services
Communities and Local Government,Homes and Communities Agency,Estate Management Yorks,North West,GVA GRIMLEY,IT73434-SERVICE-Security Management Ransome Road,21/09/2017," 1,000.00 ",L,80131800,Real estate management services
Communities and Local Government,Homes and Communities Agency,Land And Regeneration Mh,Programmes,GVA GRIMLEY,IT71419-SERVICE-To undertake Project Monitoring Services in l,22/09/2017, 750.00 ,L,80131800,Real estate management services
Communities and Local Government,Homes and Communities Agency,Budget 2013 - Midlands Wm,Midlands,GVA GRIMLEY,IT73806-SERVICE-Property Inspections,25/09/2017, 750.00 ,L,80131800,Real estate management services
Communities and Local Government,Homes and Communities Agency,Budget 2013 - Midlands Wm,Midlands,GVA GRIMLEY,IT73806-SERVICE-Property Inspections,25/09/2017, 750.00 ,L,80131800,Real estate management services
Communities and Local Government,Homes and Communities Agency,Public Land and Regeneration,Programmes,GVA GRIMLEY,IT73644-SERVICE-Vacant Property Inspections at Luddington,26/09/2017," 1,737.50 ",L,80131800,Real estate management services
Communities and Local Government,Homes and Communities Agency,Spatial Intelligence Telford,Programmes,GVA GRIMLEY,IT73642-SERVICE-Vacant Property Inspections Stourbridge CC,26/09/2017," 1,100.00 ",L,80131800,Real estate management services
Communities and Local Government,Homes and Communities Agency,Spatial Intelligence Telford,Programmes,GVA GRIMLEY,IT73643-SERVICE-Vacant Property Inspections Sandwell MC,26/09/2017," 1,125.00 ",L,80131800,Real estate management services
Communities and Local Government,Homes and Communities Agency,Spatial Intelligence Telford,Programmes,GVA GRIMLEY,IT73604-SERVICE-Vacant Property Inspections at Burton MC,26/09/2017," 1,125.00 ",L,80131800,Real estate management services
Communities and Local Government,Homes and Communities Agency,Public Land and Regeneration,Programmes,GVA GRIMLEY,IT73644-SERVICE-Vacant Property Inspections at Luddington,26/09/2017," 1,737.50 ",L,80131800,Real estate management services
Communities and Local Government,Homes and Communities Agency,Spatial Intelligence Telford,Programmes,GVA GRIMLEY,IT73642-SERVICE-Vacant Property Inspections Stourbridge CC,26/09/2017," 1,100.00 ",L,80131800,Real estate management services
Communities and Local Government,Homes and Communities Agency,East And Se Cambs Herts And Bu,East And South East,GVA GRIMLEY,IT73388-SERVICE-Marchmont Farm - Options Report,26/09/2017," 2,789.08 ",L,80131800,Real estate management services
Communities and Local Government,Homes and Communities Agency,Budget 2013 - Midlands Wm,Midlands,GVA GRIMLEY,IT73884-SERVICE-The Limes,28/09/2017," 4,500.00 ",L,80131800,Real estate management services
Communities and Local Government,Homes and Communities Agency,East And Se Cambs Herts And Bu,East And South East,GVA GRIMLEY,IT73297-SERVICE-West Stevenage Options Report,28/09/2017," 10,000.00 ",L,80131800,Real estate management services
Communities and Local Government,Homes and Communities Agency,Ne-Y North East Washington,North East And Yorkshire,GREENFINGERS LANDSCAPES LIMITED,DNE0562-SERVICE-All Saints Landscaping Maintenance 16/17,08/09/2017, 969.97 ,M,72101500,Building maintenance and repair services
Communities and Local Government,Homes and Communities Agency,It - Rda Transition,Finance & Corporate Services,GALTEC SOLUTIONS LIMITED,DAP2190-SERVICE-15 x HP Elitebook 820 G3 T9X42EA,08/09/2017," 15,975.00 ",S,81112300,Computer hardware maintenance and support
Communities and Local Government,Homes and Communities Agency,Economic Assets S&Sw Prog,South West,GVA,DAP2194-SERVICE-BBSP - HCA service charge for Grow on to Sept,19/09/2017," 7,438.00 ",L,80131500,Lease and rental of property or building
Communities and Local Government,Homes and Communities Agency,Economic Assets S&Sw Prog,South West,GVA,DAP2193-SERVICE-BBSP - HCA service charge for Innovation Cent,19/09/2017," 29,393.00 ",L,80131500,Lease and rental of property or building
Communities and Local Government,Homes and Communities Agency,Economic Assets S&Sw Prog,South West,GVA,DAP2194-SERVICE-BBSP - HCA service charge for Grow on to Sept,19/09/2017," 16,066.00 ",L,80131500,Lease and rental of property or building
Communities and Local Government,Homes and Communities Agency,Economic Assets S&Sw Prog,South West,GVA,DAP2194-SERVICE-BBSP - HCA service charge for Grow on to Sept,19/09/2017," 7,438.00 ",L,80131500,Lease and rental of property or building
Communities and Local Government,Homes and Communities Agency,Economic Assets S&Sw Prog,South West,GVA,DAP2193-SERVICE-BBSP - HCA service charge for Innovation Cent,19/09/2017," 29,393.00 ",L,80131500,Lease and rental of property or building
Communities and Local Government,Homes and Communities Agency,Economic Assets S&Sw Prog,South West,GVA,DAP2193-SERVICE-BBSP - HCA service charge for Innovation Cent,19/09/2017," 29,662.00 ",L,80131500,Lease and rental of property or building
Communities and Local Government,Homes and Communities Agency,Economic Assets S&Sw Prog,South West,GVA,DAP2194-SERVICE-BBSP - HCA service charge for Grow on to Sept,19/09/2017," 16,066.00 ",L,80131500,Lease and rental of property or building
Communities and Local Government,Homes and Communities Agency,Economic Assets Hub Transition,Economic Assets Hub,THE GROUND GROUP LTD,STF-Scrooby Roadd-Sept17,04/09/2017," 268,927.24 ",,N/A,Loans
Communities and Local Government,Homes and Communities Agency,Economic Assets Hub Transition,Economic Assets Hub,GLASSHOUSES123 LIMITED,STF-Glasshouses Mill-Sept17,22/09/2017," 225,729.00 ",,N/A,Loans
Communities and Local Government,Homes and Communities Agency,Economic Assets Hub Transition,Economic Assets Hub,GREGORY ROBINSON DEVELOPMENTS LTD,STF-Eccleshill-Sept17,13/09/2017," 144,629.07 ",,N/A,Loans
Communities and Local Government,Homes and Communities Agency,Economic Assets S&Sw Prog,South West,GLOUCESTERSHIRE COUNTY COUNCIL,GRANT FUNDING CONT GLOUCESTSHIRE COLLEGE,07/09/2017," 28,779.45 ",,N/A,Grant
Communities and Local Government,Homes and Communities Agency,Economic Assets Ne-Y Prog,North East And Yorkshire,GVA GRIMLEY LIMITED,DAP2104-SERVICE-Void service charge for period 31/03/2017 - 2,08/09/2017," 1,385.00 ",L,80131800,Real estate management services
Communities and Local Government,Homes and Communities Agency,Economic Assets Ne-Y Prog,North East And Yorkshire,GVA GRIMLEY LIMITED,DAP2102-SERVICE-Void Service charge for Nelson Park for perio,08/09/2017, 602.49 ,L,80131800,Real estate management services
Communities and Local Government,Homes and Communities Agency,Economic Assets Ne-Y Prog,North East And Yorkshire,GVA GRIMLEY LIMITED,DAP2102-SERVICE-Void Service charge for Nelson Park for perio,08/09/2017, 586.89 ,L,80131800,Real estate management services
Communities and Local Government,Homes and Communities Agency,Economic Assets Ne-Y Prog,North East And Yorkshire,GVA GRIMLEY LIMITED,DAP2102-SERVICE-Void Service charge for Nelson Park for perio,08/09/2017," 2,316.68 ",L,80131800,Real estate management services
Communities and Local Government,Homes and Communities Agency,Economic Assets Ne-Y Prog,North East And Yorkshire,GVA GRIMLEY LIMITED,DAP2091-SERVICE-Balancing service charge,28/09/2017, 564.02 ,L,80131800,Real estate management services
Communities and Local Government,Homes and Communities Agency,Economic Assets S&Sw Prog,South West,GVA,DAP2233-SERVICE-BBSP - HCA service charge for development plo,12/09/2017," 21,385.00 ",L,80131500,Lease and rental of property or building
Communities and Local Government,Homes and Communities Agency,Economic Assets S&Sw Prog,South West,GVA,DAP2233-SERVICE-BBSP - HCA service charge for development plo,12/09/2017," 21,385.00 ",L,80131500,Lease and rental of property or building
Communities and Local Government,Homes and Communities Agency,It - Rda Transition,Finance & Corporate Services,PARTNERSHIP MEDIA GROUP LTD T/A GOVNET COMMUN,DAP2395-SERVICE-1 place at 'Digital Housing 2017' Conference,27/09/2017, 385.00 ,M,86101800,In service training and manpower development
Communities and Local Government,Homes and Communities Agency,Facilities Allerton Bywater,Finance & Corporate Services,GAAPWEB,DAP2231-SERVICE-Recruitment - 1 job advert,13/09/2017, 700.00 ,S,80111600,Temporary personnel services
Communities and Local Government,Homes and Communities Agency,Public Land and Regeneration,Programmes,GREENFIELDS GARDEN SERVICES LTD,DSW1088-SERVICE-Standish Hospital - annual maintainence under,29/09/2017, 654.69 ,S,72101500,Building maintenance and repair services
Communities and Local Government,Homes and Communities Agency,Economic Assets S&Sw Prog,South West,GET LANDSCAPED,DSW0770-SERVICE-ANNUAL LANDSCAPING MARCH 2016 - 17,12/09/2017, 337.09 ,S,72101500,Building maintenance and repair services
Communities and Local Government,Homes and Communities Agency,Economic Assets Ne-Y Prog,North East And Yorkshire,GREYS OF ELY,DAP2417-SERVICE-Hire coach for Northstowe tour,22/09/2017, 305.00 ,S,78111800,Passenger road transportation
Communities and Local Government,Homes and Communities Agency,East And Se Essex And Kent,East And South East,G.D.C LIMITED,DAP1081-SERVICE-H4 hedge cut to top and both sides. Total len,15/09/2017, 367.00 ,S,72101500,Building maintenance and repair services
Communities and Local Government,Homes and Communities Agency,East And Se Essex And Kent,East And South East,G.D.C LIMITED,DAP1081-SERVICE-W6 Woody Weed control to include cutting back,15/09/2017, 570.00 ,S,72101500,Building maintenance and repair services
Communities and Local Government,Homes and Communities Agency,Programme Management Mh,Finance & Corporate Services,HAYS ACCOUNTANCY & FINANCE,DGC1380-SERVICE- Named Ind (New Starter covering,13/09/2017, 755.15 ,L,80111600,Temporary personnel services
Communities and Local Government,Homes and Communities Agency,Land And Regeneration Mh,Programmes,ARCADIS CONSULTING (UK) LIMITED,IT71533-SERVICE-Conduit Lane and High St,06/09/2017," 1,780.00 ",L,811001500,Civil Engineering
Communities and Local Government,Homes and Communities Agency,Land And Regeneration Mh,Programmes,ARCADIS CONSULTING (UK) LIMITED,IT71533-SERVICE-Conduit Lane and High St,06/09/2017," 1,780.00 ",L,811001500,Civil Engineering
Communities and Local Government,Homes and Communities Agency,Land And Regeneration Mh,Programmes,ARCADIS CONSULTING (UK) LIMITED,IT71533-SERVICE-Conduit Lane and High St,06/09/2017," 1,780.00 ",L,811001500,Civil Engineering
Communities and Local Government,Homes and Communities Agency,Land And Regeneration Mh,Programmes,ARCADIS CONSULTING (UK) LIMITED,IT71533-SERVICE-Conduit Lane and High St,06/09/2017," 1,780.00 ",L,811001500,Civil Engineering
Communities and Local Government,Homes and Communities Agency,Land And Regeneration Mh,Programmes,ARCADIS CONSULTING (UK) LIMITED,IT71533-SERVICE-Conduit Lane and High St,13/09/2017," 1,780.00 ",L,811001500,Civil Engineering
Communities and Local Government,Homes and Communities Agency,Ftbi South East,East And South East,ARCADIS CONSULTING (UK) LIMITED,IT70838-SERVICE-Engineering Consultant,20/09/2017," 36,850.00 ",L,811001500,Civil Engineering
Communities and Local Government,Homes and Communities Agency,Ftbi South East,East And South East,ARCADIS CONSULTING (UK) LIMITED,IT70838-SERVICE-Engineering Consultant,20/09/2017," 46,369.00 ",L,811001500,Civil Engineering
Communities and Local Government,Homes and Communities Agency,Economic Assets Hub Transition,Economic Assets Hub,HEYWOOD DEVELOPMENTS (BROCKHOLES) LTD,STF - Heywood Developments - LD - Sep 17,29/09/2017," 169,724.00 ",,N/A,Loans
Communities and Local Government,Homes and Communities Agency,Economic Assets S&Sw Prog,South West,HENDERSON & TAYLOR FM LIMITED,DAP1498-SERVICE-Japanese Knotweed Excavation and Management,07/09/2017," 6,340.00 ",S,72101500,Building maintenance and repair services
Communities and Local Government,Homes and Communities Agency,Ne-Y North East Washington,North East And Yorkshire,CH2M HILL UNITED,IT71357-SERVICE-Demolition at Maiden Law Hospital - Full Desi,07/09/2017," 8,729.97 ",L,81121500,Economic analysis
Communities and Local Government,Homes and Communities Agency,Economic Assets Ne-Y Prog,North East And Yorkshire,CH2M HILL UNITED,IT73605-SERVICE-Demolition at North East Industrial Estate,12/09/2017," 8,181.17 ",L,81121500,Economic analysis
Communities and Local Government,Homes and Communities Agency,Economic Assets S&Sw Prog,South West,HARTNELL TAYLOR COOK LLP,DAP1483-SERVICE-Property & Facilties Management 2017-2018 - H,05/09/2017, 982.81 ,M,80131800,Real estate management services
Communities and Local Government,Homes and Communities Agency,Economic Assets S&Sw Prog,South West,HARTNELL TAYLOR COOK LLP,"DAP1063-SERVICE-Yr 1 Asset Management plus Mobilisation FM, i",06/09/2017, 858.44 ,M,80131800,Real estate management services
Communities and Local Government,Homes and Communities Agency,Economic Assets Hub Transition,Economic Assets Hub,HOLLINS HOMES (WHITCHURCH) LIMITED,"STF - Chester Rd, Whitchurch -LD- Sep 17",28/09/2017," 332,435.00 ",,N/A,Loans
Communities and Local Government,Homes and Communities Agency,Facilities Allerton Bywater,Finance & Corporate Services,HAYMARKET MEDIA GROUP,DAP1904-SERVICE-Recruitment advertising costs,06/09/2017," 2,079.00 ",M,55101500,Printed publications
Communities and Local Government,Homes and Communities Agency,Facilities Allerton Bywater,Finance & Corporate Services,HAYMARKET MEDIA GROUP,DAP2100-SERVICE-Senior Specialist -Midlands Advert,06/09/2017," 1,460.00 ",M,55101500,Printed publications
Communities and Local Government,Homes and Communities Agency,Land And Regeneration Mh,Programmes,HOUSING GROWTH PARTNERSHIP LIMITED,STF - Housing Growth Partnership -Sep 17,28/09/2017," 420,714.62 ",,N/A,Loans
Communities and Local Government,Homes and Communities Agency,Capital Grant to RPs,East And South East,CENTREPOINT,Daily IMS payment,25/09/2017," 11,696.00 ",,N/A,Loans
Communities and Local Government,Homes and Communities Agency,Economic Assets Hub Transition,Economic Assets Hub,HORNCASTLE GROUP PLC,"LTF - Land of Moor Road, Brough - Sep 17",05/09/2017," 419,844.00 ",,N/A,Loans
Communities and Local Government,Homes and Communities Agency,Economic Assets Hub Transition,Economic Assets Hub,HODSON DEVELOPMENTS (ASHFORD) LTD.,LTF-Chilmington Green-Sept17,20/09/2017," 646,996.11 ",,N/A,Loans
Communities and Local Government,Homes and Communities Agency,Estate Management Yorks,North West,HULTONS LANDSCAPES,DAM2741-SERVICE-RUNCORN     Delivery of Year 2 of Runcorn sit,11/09/2017," 1,233.83 ",M,72101500,Building maintenance and repair services
Communities and Local Government,Homes and Communities Agency,Estate Management Yorks,North West,HULTONS LANDSCAPES,DAM2882-SERVICE-Year 2  (2015 - 2018) Central Lancashire land,11/09/2017," 2,326.68 ",M,72101500,Building maintenance and repair services
Communities and Local Government,Homes and Communities Agency,Estate Management Yorks,North West,T HODGSON PLANT HIRE,"DAP2053-SERVICE-Moseley Road - works to open site entrance, r",01/09/2017," 2,595.00 ",S,72102900,Facility maintenance and repair services
Communities and Local Government,Homes and Communities Agency,Ad Manchester Trafford,North West,HEWITSONS SOLICITORS,IS10267-SERVICE-Bickershaw South Scheme,06/09/2017, 320.00 ,S,80121600,Business law services
Communities and Local Government,Homes and Communities Agency,Area Dir Cumbria Lancs Skelmer,North West,HEWITSONS SOLICITORS,IS12802-SERVICE-Eastway,06/09/2017, 400.00 ,S,80121600,Business law services
Communities and Local Government,Homes and Communities Agency,Ne-Yh Sheffield And Humb Ne-Y,North East And Yorkshire,HEWITSONS SOLICITORS,IS11344-SERVICE-Grimsby District General Hospital,06/09/2017, 320.00 ,S,80121600,Business law services
Communities and Local Government,Homes and Communities Agency,Mk Development Control Mk,Midlands,HEWITSONS SOLICITORS,IS12774-SERVICE-Oxley Park Site 4a and Site 5,06/09/2017, 400.00 ,S,80121600,Business law services
Communities and Local Government,Homes and Communities Agency,East And Se Cambs Herts And Bu,East And South East,HEWITSONS SOLICITORS,IS11793-SERVICE-Spencers Park Phase 1,06/09/2017, 960.00 ,S,80121600,Business law services
Communities and Local Government,Homes and Communities Agency,Ad West Mids West Birmingham,Midlands,HEWITSONS SOLICITORS,IS11741-SERVICE-Telford Millenium Community Phase - TW Dev,06/09/2017, 400.00 ,S,80121600,Business law services
Communities and Local Government,Homes and Communities Agency,Economic Assets Ne-Y Prog,North East And Yorkshire,HEWITSONS SOLICITORS,IS11945-SERVICE-Brookvale Phase 1,07/09/2017, 720.00 ,S,80121600,Business law services
Communities and Local Government,Homes and Communities Agency,Mk Development Control Mk,Midlands,HEWITSONS SOLICITORS,IS10983-SERVICE-Campbell Park - Phase 1 Residential - Disburs,07/09/2017," 2,720.00 ",S,80121600,Business law services
Communities and Local Government,Homes and Communities Agency,Ad Manchester Trafford,North West,HEWITSONS SOLICITORS,IS09959-SERVICE-K1/K2 Cottam Hall Preston,07/09/2017, 320.00 ,S,80121600,Business law services
Communities and Local Government,Homes and Communities Agency,Ad West Mids West Birmingham,Midlands,HEWITSONS SOLICITORS,IS06346-SERVICE-amended code as should be coded to the projec,07/09/2017," 2,030.00 ",S,80121600,Business law services
Communities and Local Government,Homes and Communities Agency,Mk Development Control Mk,Midlands,HEWITSONS SOLICITORS,IS11751-SERVICE-Oakgrove Phase 2C,07/09/2017, 960.00 ,S,80121600,Business law services
Communities and Local Government,Homes and Communities Agency,East And Se Essex And Kent,East And South East,HEWITSONS SOLICITORS,IS12215-SERVICE-Runwell Hospital - Plot Sales,07/09/2017," 1,060.00 ",S,80121600,Business law services
Communities and Local Government,Homes and Communities Agency,Mk Development Control Mk,Midlands,HEWITSONS SOLICITORS,IS10284-SERVICE-non vatable,07/09/2017," 10,000.00 ",S,80121600,Business law services
Communities and Local Government,Homes and Communities Agency,East And South East,East And South East,HEWITSONS SOLICITORS,IS11508-SERVICE-Sector 13,08/09/2017, 400.00 ,S,80121600,Business law services
Communities and Local Government,Homes and Communities Agency,East And Se And Surr And Suss,East And South East,HEWITSONS SOLICITORS,IS07801-SERVICE-120822 FILE CLOSED BY LEGAL - REPLICA,11/09/2017, 630.00 ,S,80121600,Business law services
Communities and Local Government,Homes and Communities Agency,Ne-Yh Nrth - West Yorks Ne-Y,North East And Yorkshire,HEWITSONS SOLICITORS,IS11021-SERVICE-Millennium Community,12/09/2017, 400.00 ,S,80121600,Business law services
Communities and Local Government,Homes and Communities Agency,Area Dir Mids Notts-Derby-Linc,Midlands,HEWITSONS SOLICITORS,IS09771-SERVICE-SITE 1 Manor & Kingsway Hospital - Plot Dispo,13/09/2017, 320.00 ,S,80121600,Business law services
Communities and Local Government,Homes and Communities Agency,Ftbi South East,East And South East,HEWITSONS SOLICITORS,IS12641-SERVICE-Northstowe - FLB - Messrs Jones -  81 acres -,13/09/2017, 268.00 ,S,80121600,Business law services
Communities and Local Government,Homes and Communities Agency,Ftbi South East,East And South East,HEWITSONS SOLICITORS,IS12641-SERVICE-Northstowe - FLB - Messrs Jones -  81 acres,13/09/2017," 4,115.00 ",S,80121600,Business law services
Communities and Local Government,Homes and Communities Agency,Land And Regeneration Mh,Programmes,HEWITSONS SOLICITORS,"TS00032-SERVICE-27559 - Parkside Homes Norfolk Ltd, Parkside ",13/09/2017," 11,800.00 ",S,80121600,Business law services
Communities and Local Government,Homes and Communities Agency,Ftbi South East,East And South East,HEWITSONS SOLICITORS,IS12639-SERVICE-Northstowe - FLB - Bankrupt 16.4,14/09/2017," 2,425.00 ",S,80121600,Business law services
Communities and Local Government,Homes and Communities Agency,East And Se Essex And Kent,East And South East,HEWITSONS SOLICITORS,IS12019-SERVICE-Legal Advice for Lodge Hilll,19/09/2017," 3,877.20 ",S,80121600,Business law services
Communities and Local Government,Homes and Communities Agency,East And Se Essex And Kent,East And South East,HEWITSONS SOLICITORS,IS09347-SERVICE-Five Links Phase 3,19/09/2017, 396.00 ,S,80121600,Business law services
Communities and Local Government,Homes and Communities Agency,East And Se Essex And Kent,East And South East,HEWITSONS SOLICITORS,IS06025-SERVICE-Leybourne Grange,20/09/2017," 1,400.00 ",S,80121600,Business law services
Communities and Local Government,Homes and Communities Agency,East And South East,East And South East,HEWITSONS SOLICITORS,IS12937-SERVICE-Terminus Drive,20/09/2017," 2,400.00 ",S,80121600,Business law services
Communities and Local Government,Homes and Communities Agency,Capital Grant to RPs,South West,CHELTENHAM YOUNG MEN'S CHRISTIAN ASSOCIATION,Daily IMS payment,22/09/2017," 255,000.00 ",,N/A,Grant
Communities and Local Government,Homes and Communities Agency,South West Hants-Iow-Dorset-Bu,South West,HAVANT BOROUGH COUNCIL,DAP2356-SERVICE-Colt International Havant Part NNDR for 2017/,19/09/2017," 30,229.96 ",G,80131500,Lease and rental of property or building
Communities and Local Government,Homes and Communities Agency,South West Hants-Iow-Dorset-Bu,South West,HAVANT BOROUGH COUNCIL,DAP2356-SERVICE-Colt International Havant Part NNDR for 2017/,26/09/2017," 4,125.78 ",G,80131500,Lease and rental of property or building
Communities and Local Government,Homes and Communities Agency,Economic Assets S&Sw Prog,South West,ISLE OF WIGHT COUNCIL,DAP2448-SERVICE-East Cowes Isle of Wight - Carry in NNDR foll,26/09/2017, 340.15 ,G,80131500,Lease and rental of property or building
Communities and Local Government,Homes and Communities Agency,Comms Transition Budget,Finance & Corporate Services,INDUSTRIAL LANDSCAPES LIMITED,DAP0098-SERVICE-Landsacping Services to HCA SGH Gateshead,04/09/2017, 293.85 ,S,72101500,Building maintenance and repair services
Communities and Local Government,Homes and Communities Agency,East And South East,East And South East,IAN FARMER ASSOCIATES,DAP1690-SERVICE-Rochester Riverside - Stockpile Sampling and,18/09/2017," 4,165.00 ",S,811001500,Civil Engineering
Communities and Local Government,Homes and Communities Agency,Ne-Yh Sheffield And Humb Ne-Y,North East And Yorkshire,INCHCAPE FLEET SOLUTIONS LIMITED,DGC1228-SERVICE-PY62AWJ 6 MONTHS INFORMAL SERVICE COSTS,01/09/2017, 266.10 ,L,25101500,Passenger motor vehicles
Communities and Local Government,Homes and Communities Agency,Liverpool Cheshire Warrington,North West,INCHCAPE FLEET SOLUTIONS LIMITED,DGC1179-SERVICE-YK62HYM 6 MONTHS INFORMAL SERVICE COST,01/09/2017, 257.95 ,L,25101500,Passenger motor vehicles
Communities and Local Government,Homes and Communities Agency,Economic Assets S&Sw Prog,South West,INCHCAPE FLEET SOLUTIONS LIMITED,DGC1715-SERVICE-NK13VRO TERMINATION DAMAGE,14/09/2017, 280.00 ,L,25101500,Passenger motor vehicles
Communities and Local Government,Homes and Communities Agency,It - Rda Transition,Finance & Corporate Services,INCHCAPE FLEET SOLUTIONS LIMITED,DGC1552-SERVICE-INFORMAL EXT SERVICE COSTS,25/09/2017, 318.96 ,L,25101500,Passenger motor vehicles
Communities and Local Government,Homes and Communities Agency,Economic Assets Ne-Y Prog,North East And Yorkshire,INTEGRATED UTILITY SERVICES,"DAP1179-SERVICE-Electrolux, Spennymoor.  Maintenance Contract",27/09/2017," 8,154.00 ",M,72101500,Building maintenance and repair services
Communities and Local Government,Homes and Communities Agency,Area Dir Mids Worcs-Shrop-Here,Midlands,INTEGRITY FACILITIES MANAGEMENT LTD.,DAP1471-SERVICE-Warwick Bar - Banana Warehouse removal of gra,08/09/2017," 1,120.00 ",S,72153501,Building exterior cleaning service  
Communities and Local Government,Homes and Communities Agency,Economic Assets Nw Prog,North West,JONES LANG LASALLE,IT73984-SERVICE-franking valuation for North Road,01/09/2017," 1,000.00 ",L,80131800,Real estate management services
Communities and Local Government,Homes and Communities Agency,Budget 2013 - Midlands Wm,Midlands,JONES LANG LASALLE,IT72453-SERVICE-Middlefield - Overage ,05/09/2017," 3,000.00 ",L,80131800,Real estate management services
Communities and Local Government,Homes and Communities Agency,Budget 2013 - Midlands Wm,Midlands,JONES LANG LASALLE,IT72697-SERVICE-Ellesmere Brownlow Road - Pre App Work,05/09/2017," 9,250.00 ",L,80131800,Real estate management services
Communities and Local Government,Homes and Communities Agency,Budget 2013 - Midlands Wm,Midlands,JONES LANG LASALLE,IT73974-SERVICE-Sandwell - Court  - Development Assessment Wo,12/09/2017, 895.00 ,L,80131800,Real estate management services
Communities and Local Government,Homes and Communities Agency,Economic Assets Nw Prog,North West,JONES LANG LASALLE,IT73784-SERVICE-SH Due Dilligence - Norfolk Street,21/09/2017," 2,500.00 ",L,80131800,Real estate management services
Communities and Local Government,Homes and Communities Agency,Economic Assets Nw Prog,North West,JONES LANG LASALLE,IT73898-SERVICE-Franking Valuation - Plot 10,22/09/2017, 750.00 ,L,80131800,Real estate management services
Communities and Local Government,Homes and Communities Agency,Budget 2013 - Midlands Wm,Midlands,JONES LANG LASALLE,IT74041-SERVICE-Birmingham - Perry Barr - Site Review ,29/09/2017," 1,500.00 ",L,80131800,Real estate management services
Communities and Local Government,Homes and Communities Agency,Budget 2013 - Midlands Wm,Midlands,JONES LANG LASALLE,IT74041-SERVICE-Birmingham - Perry Barr - Site Review ,29/09/2017, 895.00 ,L,80131800,Real estate management services
Communities and Local Government,Homes and Communities Agency,Budget 2013 - Midlands Wm,Midlands,JONES LANG LASALLE,IT74040-SERVICE-Sandwell - BCLEP - Rolfe Steet - Island Site ,29/09/2017," 1,500.00 ",L,80131800,Real estate management services
Communities and Local Government,Homes and Communities Agency,Comms Transition Budget,Finance & Corporate Services,JOHNSONS MOVING SERVICES LIMITED,"DAP2249-SERVICE-Bedford general waste, confidential waste, fe",27/09/2017, 895.00 ,S,72102900,Facility maintenance and repair services
Communities and Local Government,Homes and Communities Agency,#N/A,#N/A,JOHNSONS MOVING SERVICES LIMITED,"DAP2163-SERVICE-Removal of all surplus furniture, appliances",28/09/2017," 6,498.00 ",S,72102900,Facility maintenance and repair services
Communities and Local Government,Homes and Communities Agency,Comms Transition Budget,Finance & Corporate Services,JCP LIGHT HAULAGE,DAP0810-SERVICE-Ad hoc courier services to HCA SGH period up,01/09/2017, 375.00 ,S,78102200,Postal and small parcel and courier services
Communities and Local Government,Homes and Communities Agency,Economic Assets Nw Prog,North West,KMS COMMERCIAL PROPERTY MAINTENANCE LTD,DAP2025-SERVICE-Water connection / drainage review works,05/09/2017," 2,756.18 ",M,72101500,Building maintenance and repair services
Communities and Local Government,Homes and Communities Agency,Economic Assets Nw Prog,North West,KMS COMMERCIAL PROPERTY MAINTENANCE LTD,DAP2008-SERVICE-Additional plant required: Hire of forklift t,11/09/2017, 400.00 ,M,72101500,Building maintenance and repair services
Communities and Local Government,Homes and Communities Agency,Economic Assets Nw Prog,North West,KMS COMMERCIAL PROPERTY MAINTENANCE LTD,"DAP2008-SERVICE-LRM.Baxi - To undertake testing, sorting and",11/09/2017," 1,728.00 ",M,72101500,Building maintenance and repair services
Communities and Local Government,Homes and Communities Agency,Economic Assets S&Sw Prog,South West,KERNOW TREE SURGERY,DAP0603-SERVICE-Annual Landscaping Works - Apr 17 - Mar 18,29/09/2017, 470.83 ,S,72101500,Building maintenance and repair services
Communities and Local Government,Homes and Communities Agency,East And South East,East And South East,KENT COUNTY COUNCIL,"DAP2327-SERVICE-Cut back vegetation at Buckland Mill, Dover  ",18/09/2017, 273.31 ,G,72153501,Building exterior cleaning service  
Communities and Local Government,Homes and Communities Agency,Area Dir Mids Worcs-Shrop-Here,Midlands,CHUBB FIRE LIMITED,DWM0660-SERVICE-Annual service and monitoring of fire detecti,19/09/2017," 1,140.16 ",L,72102900,Facility maintenance and repair services
Communities and Local Government,Homes and Communities Agency,Economic Assets Hub Transition,Economic Assets Hub,KINGSWOOD HOMES DEVELOPMENTS LTD,STF-Gib Lane-Sept17,05/09/2017," 392,103.64 ",,N/A,Loans
Communities and Local Government,Homes and Communities Agency,Economic Assets Ne-Y Prog,North East And Yorkshire,KELMEC DRAINAGE LTD.,"DAP2131-SERVICE-Gully Clearance - Electrolux, Spennymoor",04/09/2017, 550.00 ,S,72153501,Building exterior cleaning service  
Communities and Local Government,Homes and Communities Agency,Estate Management Yorks,North West,KINGS LANDSCAPES,DAM3521-SERVICE-CRAWLEY GENERAL     Remove green waste at Ifi,15/09/2017, 250.00 ,S,72101500,Building maintenance and repair services
Communities and Local Government,Homes and Communities Agency,Estate Management Yorks,North West,KINGS LANDSCAPES,"DAP1235-SERVICE-Clear fly-tipped rubble, soil and waste and r",15/09/2017, 795.00 ,S,72101500,Building maintenance and repair services
Communities and Local Government,Homes and Communities Agency,Estate Management Yorks,North West,KINGS LANDSCAPES,DAP1628-SERVICE-Mow old Rentokil site and leave arisings. Rem,15/09/2017, 740.00 ,S,72101500,Building maintenance and repair services
Communities and Local Government,Homes and Communities Agency,Land And Regeneration Mh,Programmes,LAMBERT SMITH HAMPTON,IT73646-SERVICE-Red book valuation of Middlewood Locks,01/09/2017," 27,000.00 ",L,80131800,Real estate management services
Communities and Local Government,Homes and Communities Agency,Affordable National,Programmes,LAMBERT SMITH HAMPTON,IT72416-SERVICE-ATLAS viability support to large projects ,05/09/2017," 6,407.32 ",L,80131800,Real estate management services
Communities and Local Government,Homes and Communities Agency,Public Land and Regeneration,Programmes,LAMBERT SMITH HAMPTON,IT70308-SERVICE-HMP Camp Hill prison and surrounding parcels,11/09/2017," 1,500.00 ",L,80131800,Real estate management services
Communities and Local Government,Homes and Communities Agency,Land And Regeneration Mh,Programmes,LAMBERT SMITH HAMPTON,IT73932-SERVICE-Red Book Development Valuation: The Former Or,12/09/2017," 2,500.00 ",L,80131800,Real estate management services
Communities and Local Government,Homes and Communities Agency,Land And Regeneration Mh,Programmes,LAMBERT SMITH HAMPTON,IT74074-SERVICE-Melford Construction - Guinea Hall Lane,12/09/2017," 2,000.00 ",L,80131800,Real estate management services
Communities and Local Government,Homes and Communities Agency,Land And Regeneration Mh,Programmes,LAMBERT SMITH HAMPTON,IT74198-SERVICE-Beauchief Homes Ltd - Sheffield Road,20/09/2017," 2,000.00 ",L,80131800,Real estate management services
Communities and Local Government,Homes and Communities Agency,Land And Regeneration Mh,Programmes,LAMBERT SMITH HAMPTON,IT73971-SERVICE-Former Peacemills Site,25/09/2017," 3,333.33 ",L,80131800,Real estate management services
Communities and Local Government,Homes and Communities Agency,Land And Regeneration Mh,Programmes,LAMBERT SMITH HAMPTON,IT73439-SERVICE-The Sidings Skate Park,25/09/2017, 650.00 ,L,80131800,Real estate management services
Communities and Local Government,Homes and Communities Agency,Budget 2013 - Midlands Wm,Midlands,LAMBERT SMITH HAMPTON,IT74087-SERVICE-Plot A(ii) Wheat Leasows East - Review of TWC,25/09/2017," 1,176.00 ",L,80131800,Real estate management services
Communities and Local Government,Homes and Communities Agency,Budget 2013 - Midlands Wm,Midlands,LAMBERT SMITH HAMPTON,IT74085-SERVICE-Plot A(ii) Wheat Leasows East - Franking Valu,25/09/2017," 1,500.00 ",L,80131800,Real estate management services
Communities and Local Government,Homes and Communities Agency,Budget 2013 - Midlands Wm,Midlands,LAMBERT SMITH HAMPTON,IT74086-SERVICE-Plot A(iii) Wheat Leasows East - Franking Val,25/09/2017," 1,500.00 ",L,80131800,Real estate management services
Communities and Local Government,Homes and Communities Agency,Capital Grant to RPs,Midlands,HASTOE HOUSING ASSOCIATION LIMITED,Daily IMS payment,29/09/2017," 294,000.00 ",,N/A,Grants
Communities and Local Government,Homes and Communities Agency,Capital Grant to RPs,North East And Yorkshire,THE RIVERSIDE GROUP,Daily IMS payment,06/09/2017," 130,045.00 ",,N/A,Grants
Communities and Local Government,Homes and Communities Agency,Capital Grant to RPs,North East And Yorkshire,THE RIVERSIDE GROUP,Daily IMS payment,21/09/2017," 450,000.00 ",,N/A,Grants
Communities and Local Government,Homes and Communities Agency,Capital Grant to RPs,North East And Yorkshire,THE RIVERSIDE GROUP,Daily IMS payment,02/10/2017," 168,000.00 ",,N/A,Grants
Communities and Local Government,Homes and Communities Agency,Economic Assets S&Sw Prog,South West,LOCKTON COMPANIES LLP,DAP2346-SERVICE-Broxhead House - Contractors All Risks & Liab,18/09/2017, 550.00 ,M,84131500,Insurance services for strcutures and property and possessions
Communities and Local Government,Homes and Communities Agency,Capital Grant to RPs,Programmes,SANCTUARY HOUSING ASSOCIATION,Daily IMS payment,19/09/2017," 10,000.00 ",,N/A,Grants
Communities and Local Government,Homes and Communities Agency,Capital Grant to RPs,Programmes,SANCTUARY HOUSING ASSOCIATION,Daily IMS payment,19/09/2017," 9,000.00 ",,N/A,Grants
Communities and Local Government,Homes and Communities Agency,Capital Grant to RPs,Programmes,SANCTUARY HOUSING ASSOCIATION,Daily IMS payment,19/09/2017," 9,000.00 ",,N/A,Grants
Communities and Local Government,Homes and Communities Agency,Capital Grant to RPs,Programmes,SANCTUARY HOUSING ASSOCIATION,Daily IMS payment,20/09/2017," 9,000.00 ",,N/A,Grants
Communities and Local Government,Homes and Communities Agency,Capital Grant to RPs,Programmes,SANCTUARY HOUSING ASSOCIATION,Daily IMS payment,21/09/2017," 10,000.00 ",,N/A,Grants
Communities and Local Government,Homes and Communities Agency,Capital Grant to RPs,Programmes,SANCTUARY HOUSING ASSOCIATION,Daily IMS payment,21/09/2017," 11,000.00 ",,N/A,Grants
Communities and Local Government,Homes and Communities Agency,Capital Grant to RPs,Programmes,SANCTUARY HOUSING ASSOCIATION,Daily IMS payment,21/09/2017," 9,000.00 ",,N/A,Grants
Communities and Local Government,Homes and Communities Agency,Capital Grant to RPs,South West,KNIGHTSTONE HOUSING ASSOCIATION LIMITED,Daily IMS payment,28/09/2017," 162,900.00 ",,N/A,Grants
Communities and Local Government,Homes and Communities Agency,Help to Buy Additions,North West,HAREWOOD HOUSING SOCIETY LIMITED,Daily IMS payment,05/09/2017," 32,999.00 ",,N/A,Grants
Communities and Local Government,Homes and Communities Agency,Help to Buy Additions,North West,HAREWOOD HOUSING SOCIETY LIMITED,Daily IMS payment,05/09/2017," 35,999.00 ",,N/A,Grants
Communities and Local Government,Homes and Communities Agency,Economic Assets Ne-Y Prog,North East And Yorkshire,LSH CLIENT PROPERTY MANAGEMENT A/C NOTTINGHAM,DAP2185-SERVICE-Service Charge at Advance Manufacturing Busin,05/09/2017," 1,306.78 ",L,80131800,Real estate management services
Communities and Local Government,Homes and Communities Agency,Economic Assets Hub Transition,Economic Assets Hub,LINCOLNSHIRE LAKES LAND LIMITED,LTF-Lincolnshire Lakes-Spet17,15/09/2017," 684,995.74 ",,N/A,Loans
Communities and Local Government,Homes and Communities Agency,Capital Grant to RPs,East And South East,THAMES VALLEY HOUSING ASSOCIATION LTD,Daily IMS payment,13/09/2017," 70,000.00 ",,N/A,Grants
Communities and Local Government,Homes and Communities Agency,Capital Grant to RPs,East And South East,THAMES VALLEY HOUSING ASSOCIATION LTD,Daily IMS payment,13/09/2017," 67,000.00 ",,N/A,Grants
Communities and Local Government,Homes and Communities Agency,Budget 2013 - Midlands Wm,Midlands,THOMAS LISTER LTD,IT73394-SERVICE-P10 - Project Director,01/09/2017," 2,731.25 ",S,80131800,Real estate management services
Communities and Local Government,Homes and Communities Agency,Budget 2013 - Midlands Wm,Midlands,THOMAS LISTER LTD,IT73816-SERVICE-East Birmingham Site Search,08/09/2017," 2,750.00 ",S,80131800,Real estate management services
Communities and Local Government,Homes and Communities Agency,Spatial Intelligence Telford,Programmes,THOMAS LISTER LTD,IT74024-SERVICE-Valuation Russell Street Peterborough,08/09/2017, 600.00 ,S,80131800,Real estate management services
Communities and Local Government,Homes and Communities Agency,Spatial Intelligence Telford,Programmes,THOMAS LISTER LTD,IT74060-SERVICE-Tramway Lane,08/09/2017," 1,950.00 ",S,80131800,Real estate management services
Communities and Local Government,Homes and Communities Agency,Economic Assets S&Sw Prog,South West,THOMAS LISTER LTD,IT73511-SERVICE-Bridgwater Innovia - Plot A. Thomas Lister - ,12/09/2017, 750.00 ,S,80131800,Real estate management services
Communities and Local Government,Homes and Communities Agency,Ne-Yh Sheffield And Humb Ne-Y,North East And Yorkshire,THOMAS LISTER LTD,IT70209-SERVICE-Marketing & Disposal,14/09/2017, 750.00 ,S,80131800,Real estate management services
Communities and Local Government,Homes and Communities Agency,Ne-Yh Sheffield And Humb Ne-Y,North East And Yorkshire,THOMAS LISTER LTD,IT70209-SERVICE-Marketing & Disposal,14/09/2017," 3,375.00 ",S,80131800,Real estate management services
Communities and Local Government,Homes and Communities Agency,Ne-Yh Sheffield And Humb Ne-Y,North East And Yorkshire,THOMAS LISTER LTD,IT70209-SERVICE-Marketing & Disposal,14/09/2017, 750.00 ,S,80131800,Real estate management services
Communities and Local Government,Homes and Communities Agency,Budget 2013 - Midlands Wm,Midlands,THOMAS LISTER LTD,IT73710-SERVICE-Impairment Advice - City Hospital,14/09/2017," 1,700.00 ",S,80131800,Real estate management services
Communities and Local Government,Homes and Communities Agency,Economic Assets S&Sw Prog,South West,THOMAS LISTER LTD,IT73538-SERVICE-Red Book Valuation of the former TA Centre si,20/09/2017," 1,500.00 ",S,80131800,Real estate management services
Communities and Local Government,Homes and Communities Agency,Land And Regeneration National,Programmes,THOMAS LISTER LTD,IT73795-SERVICE-Consultancy support - 3 days per week,21/09/2017," 5,934.05 ",S,80131800,Real estate management services
Communities and Local Government,Homes and Communities Agency,Spatial Intelligence Telford,Programmes,THOMAS LISTER LTD,IT72466-SERVICE-Consultancy Support - Aquisition Manager,21/09/2017," 10,755.46 ",S,80131800,Real estate management services
Communities and Local Government,Homes and Communities Agency,Budget 2013 - Midlands Wm,Midlands,THOMAS LISTER LTD,IT73394-SERVICE-P10 - Project Director,25/09/2017," 3,162.50 ",S,80131800,Real estate management services
Communities and Local Government,Homes and Communities Agency,Help to Buy Additions,South West,SWAYTHLING HOUSING SOCIETY LIMITED,Daily IMS payment,04/09/2017, 361.00 ,,N/A,Grants
Communities and Local Government,Homes and Communities Agency,Help to Buy Additions,South West,SWAYTHLING HOUSING SOCIETY LIMITED,Daily IMS payment,04/09/2017, 361.00 ,,N/A,Grants
Communities and Local Government,Homes and Communities Agency,Help to Buy Additions,South West,SWAYTHLING HOUSING SOCIETY LIMITED,Daily IMS payment,04/09/2017, 361.00 ,,N/A,Grants
Communities and Local Government,Homes and Communities Agency,Help to Buy Additions,South West,SWAYTHLING HOUSING SOCIETY LIMITED,Daily IMS payment,04/09/2017, 361.00 ,,N/A,Grants
Communities and Local Government,Homes and Communities Agency,Help to Buy Additions,South West,SWAYTHLING HOUSING SOCIETY LIMITED,Daily IMS payment,04/09/2017, 361.00 ,,N/A,Grants
Communities and Local Government,Homes and Communities Agency,Help to Buy Additions,South West,SWAYTHLING HOUSING SOCIETY LIMITED,Daily IMS payment,04/09/2017, 361.00 ,,N/A,Grants
Communities and Local Government,Homes and Communities Agency,Help to Buy Additions,South West,SWAYTHLING HOUSING SOCIETY LIMITED,Daily IMS payment,04/09/2017, 361.00 ,,N/A,Grants
Communities and Local Government,Homes and Communities Agency,Help to Buy Additions,South West,SWAYTHLING HOUSING SOCIETY LIMITED,Daily IMS payment,04/09/2017, 361.00 ,,N/A,Grants
Communities and Local Government,Homes and Communities Agency,Help to Buy Additions,South West,SWAYTHLING HOUSING SOCIETY LIMITED,Daily IMS payment,04/09/2017, 361.00 ,,N/A,Grants
Communities and Local Government,Homes and Communities Agency,Help to Buy Additions,South West,SWAYTHLING HOUSING SOCIETY LIMITED,Daily IMS payment,04/09/2017, 361.00 ,,N/A,Grants
Communities and Local Government,Homes and Communities Agency,Help to Buy Additions,South West,SWAYTHLING HOUSING SOCIETY LIMITED,Daily IMS payment,04/09/2017, 361.00 ,,N/A,Grants
Communities and Local Government,Homes and Communities Agency,Help to Buy Additions,South West,SWAYTHLING HOUSING SOCIETY LIMITED,Daily IMS payment,04/09/2017, 361.00 ,,N/A,Grants
Communities and Local Government,Homes and Communities Agency,Help to Buy Additions,South West,SWAYTHLING HOUSING SOCIETY LIMITED,Daily IMS payment,04/09/2017, 361.00 ,,N/A,Grants
Communities and Local Government,Homes and Communities Agency,Help to Buy Additions,South West,SWAYTHLING HOUSING SOCIETY LIMITED,Daily IMS payment,04/09/2017, 361.00 ,,N/A,Grants
Communities and Local Government,Homes and Communities Agency,Help to Buy Additions,South West,SWAYTHLING HOUSING SOCIETY LIMITED,Daily IMS payment,04/09/2017, 361.00 ,,N/A,Grants
Communities and Local Government,Homes and Communities Agency,Help to Buy Additions,South West,SWAYTHLING HOUSING SOCIETY LIMITED,Daily IMS payment,04/09/2017, 361.00 ,,N/A,Grants
Communities and Local Government,Homes and Communities Agency,Help to Buy Additions,South West,SWAYTHLING HOUSING SOCIETY LIMITED,Daily IMS payment,04/09/2017, 361.00 ,,N/A,Grants
Communities and Local Government,Homes and Communities Agency,Help to Buy Additions,South West,SWAYTHLING HOUSING SOCIETY LIMITED,Daily IMS payment,04/09/2017, 361.00 ,,N/A,Grants
Communities and Local Government,Homes and Communities Agency,Help to Buy Additions,South West,SWAYTHLING HOUSING SOCIETY LIMITED,Daily IMS payment,04/09/2017, 361.00 ,,N/A,Grants
Communities and Local Government,Homes and Communities Agency,Help to Buy Additions,South West,SWAYTHLING HOUSING SOCIETY LIMITED,Daily IMS payment,05/09/2017, 361.00 ,,N/A,Grants
Communities and Local Government,Homes and Communities Agency,Help to Buy Additions,South West,SWAYTHLING HOUSING SOCIETY LIMITED,Daily IMS payment,05/09/2017, 361.00 ,,N/A,Grants
Communities and Local Government,Homes and Communities Agency,Help to Buy Additions,South West,SWAYTHLING HOUSING SOCIETY LIMITED,Daily IMS payment,05/09/2017, 361.00 ,,N/A,Grants
Communities and Local Government,Homes and Communities Agency,Help to Buy Additions,South West,SWAYTHLING HOUSING SOCIETY LIMITED,Daily IMS payment,05/09/2017, 361.00 ,,N/A,Grants
Communities and Local Government,Homes and Communities Agency,Help to Buy Additions,South West,SWAYTHLING HOUSING SOCIETY LIMITED,Daily IMS payment,05/09/2017, 361.00 ,,N/A,Grants
Communities and Local Government,Homes and Communities Agency,Help to Buy Additions,South West,SWAYTHLING HOUSING SOCIETY LIMITED,Daily IMS payment,05/09/2017, 361.00 ,,N/A,Grants
Communities and Local Government,Homes and Communities Agency,Help to Buy Additions,South West,SWAYTHLING HOUSING SOCIETY LIMITED,Daily IMS payment,05/09/2017, 361.00 ,,N/A,Grants
Communities and Local Government,Homes and Communities Agency,Help to Buy Additions,South West,SWAYTHLING HOUSING SOCIETY LIMITED,Daily IMS payment,05/09/2017, 361.00 ,,N/A,Grants
Communities and Local Government,Homes and Communities Agency,Help to Buy Additions,South West,SWAYTHLING HOUSING SOCIETY LIMITED,Daily IMS payment,06/09/2017, 361.00 ,,N/A,Grants
Communities and Local Government,Homes and Communities Agency,Help to Buy Additions,South West,SWAYTHLING HOUSING SOCIETY LIMITED,Daily IMS payment,06/09/2017, 361.00 ,,N/A,Grants
Communities and Local Government,Homes and Communities Agency,Help to Buy Additions,South West,SWAYTHLING HOUSING SOCIETY LIMITED,Daily IMS payment,06/09/2017, 361.00 ,,N/A,Grants
Communities and Local Government,Homes and Communities Agency,Help to Buy Additions,South West,SWAYTHLING HOUSING SOCIETY LIMITED,Daily IMS payment,06/09/2017, 361.00 ,,N/A,Grants
Communities and Local Government,Homes and Communities Agency,Help to Buy Additions,South West,SWAYTHLING HOUSING SOCIETY LIMITED,Daily IMS payment,06/09/2017, 361.00 ,,N/A,Grants
Communities and Local Government,Homes and Communities Agency,Help to Buy Additions,South West,SWAYTHLING HOUSING SOCIETY LIMITED,Daily IMS payment,06/09/2017, 361.00 ,,N/A,Grants
Communities and Local Government,Homes and Communities Agency,Help to Buy Additions,South West,SWAYTHLING HOUSING SOCIETY LIMITED,Daily IMS payment,06/09/2017, 361.00 ,,N/A,Grants
Communities and Local Government,Homes and Communities Agency,Help to Buy Additions,South West,SWAYTHLING HOUSING SOCIETY LIMITED,Daily IMS payment,06/09/2017, 361.00 ,,N/A,Grants
Communities and Local Government,Homes and Communities Agency,Help to Buy Additions,South West,SWAYTHLING HOUSING SOCIETY LIMITED,Daily IMS payment,06/09/2017, 361.00 ,,N/A,Grants
Communities and Local Government,Homes and Communities Agency,Help to Buy Additions,South West,SWAYTHLING HOUSING SOCIETY LIMITED,Daily IMS payment,06/09/2017, 361.00 ,,N/A,Grants
Communities and Local Government,Homes and Communities Agency,Help to Buy Additions,South West,SWAYTHLING HOUSING SOCIETY LIMITED,Daily IMS payment,06/09/2017, 361.00 ,,N/A,Grants
Communities and Local Government,Homes and Communities Agency,Help to Buy Additions,South West,SWAYTHLING HOUSING SOCIETY LIMITED,Daily IMS payment,06/09/2017, 361.00 ,,N/A,Grants
Communities and Local Government,Homes and Communities Agency,Help to Buy Additions,South West,SWAYTHLING HOUSING SOCIETY LIMITED,Daily IMS payment,06/09/2017, 361.00 ,,N/A,Grants
Communities and Local Government,Homes and Communities Agency,Help to Buy Additions,South West,SWAYTHLING HOUSING SOCIETY LIMITED,Daily IMS payment,06/09/2017, 361.00 ,,N/A,Grants
Communities and Local Government,Homes and Communities Agency,Help to Buy Additions,South West,SWAYTHLING HOUSING SOCIETY LIMITED,Daily IMS payment,06/09/2017, 361.00 ,,N/A,Grants
Communities and Local Government,Homes and Communities Agency,Help to Buy Additions,South West,SWAYTHLING HOUSING SOCIETY LIMITED,Daily IMS payment,06/09/2017, 361.00 ,,N/A,Grants
Communities and Local Government,Homes and Communities Agency,Help to Buy Additions,South West,SWAYTHLING HOUSING SOCIETY LIMITED,Daily IMS payment,06/09/2017, 361.00 ,,N/A,Grants
Communities and Local Government,Homes and Communities Agency,Help to Buy Additions,South West,SWAYTHLING HOUSING SOCIETY LIMITED,Daily IMS payment,06/09/2017, 361.00 ,,N/A,Grants
Communities and Local Government,Homes and Communities Agency,Help to Buy Additions,South West,SWAYTHLING HOUSING SOCIETY LIMITED,Daily IMS payment,06/09/2017, 361.00 ,,N/A,Grants
Communities and Local Government,Homes and Communities Agency,Help to Buy Additions,South West,SWAYTHLING HOUSING SOCIETY LIMITED,Daily IMS payment,06/09/2017, 361.00 ,,N/A,Grants
Communities and Local Government,Homes and Communities Agency,Help to Buy Additions,South West,SWAYTHLING HOUSING SOCIETY LIMITED,Daily IMS payment,06/09/2017, 361.00 ,,N/A,Grants
Communities and Local Government,Homes and Communities Agency,Help to Buy Additions,South West,SWAYTHLING HOUSING SOCIETY LIMITED,Daily IMS payment,06/09/2017, 361.00 ,,N/A,Grants
Communities and Local Government,Homes and Communities Agency,Help to Buy Additions,South West,SWAYTHLING HOUSING SOCIETY LIMITED,Daily IMS payment,06/09/2017, 361.00 ,,N/A,Grants
Communities and Local Government,Homes and Communities Agency,Help to Buy Additions,South West,SWAYTHLING HOUSING SOCIETY LIMITED,Daily IMS payment,06/09/2017, 361.00 ,,N/A,Grants
Communities and Local Government,Homes and Communities Agency,Help to Buy Additions,South West,SWAYTHLING HOUSING SOCIETY LIMITED,Daily IMS payment,06/09/2017, 361.00 ,,N/A,Grants
Communities and Local Government,Homes and Communities Agency,Help to Buy Additions,South West,SWAYTHLING HOUSING SOCIETY LIMITED,Daily IMS payment,06/09/2017, 361.00 ,,N/A,Grants
Communities and Local Government,Homes and Communities Agency,Help to Buy Additions,South West,SWAYTHLING HOUSING SOCIETY LIMITED,Daily IMS payment,06/09/2017, 361.00 ,,N/A,Grants
Communities and Local Government,Homes and Communities Agency,Help to Buy Additions,South West,SWAYTHLING HOUSING SOCIETY LIMITED,Daily IMS payment,06/09/2017, 361.00 ,,N/A,Grants
Communities and Local Government,Homes and Communities Agency,Help to Buy Additions,South West,SWAYTHLING HOUSING SOCIETY LIMITED,Daily IMS payment,06/09/2017, 361.00 ,,N/A,Grants
Communities and Local Government,Homes and Communities Agency,Help to Buy Additions,South West,SWAYTHLING HOUSING SOCIETY LIMITED,Daily IMS payment,06/09/2017, 361.00 ,,N/A,Grants
Communities and Local Government,Homes and Communities Agency,Help to Buy Additions,South West,SWAYTHLING HOUSING SOCIETY LIMITED,Daily IMS payment,06/09/2017, 361.00 ,,N/A,Grants
Communities and Local Government,Homes and Communities Agency,Help to Buy Additions,South West,SWAYTHLING HOUSING SOCIETY LIMITED,Daily IMS payment,07/09/2017, 361.00 ,,N/A,Grants
Communities and Local Government,Homes and Communities Agency,Help to Buy Additions,South West,SWAYTHLING HOUSING SOCIETY LIMITED,Daily IMS payment,07/09/2017, 361.00 ,,N/A,Grants
Communities and Local Government,Homes and Communities Agency,Help to Buy Additions,South West,SWAYTHLING HOUSING SOCIETY LIMITED,Daily IMS payment,07/09/2017, 361.00 ,,N/A,Grants
Communities and Local Government,Homes and Communities Agency,Help to Buy Additions,South West,SWAYTHLING HOUSING SOCIETY LIMITED,Daily IMS payment,07/09/2017, 361.00 ,,N/A,Grants
Communities and Local Government,Homes and Communities Agency,Help to Buy Additions,South West,SWAYTHLING HOUSING SOCIETY LIMITED,Daily IMS payment,07/09/2017, 361.00 ,,N/A,Grants
Communities and Local Government,Homes and Communities Agency,Help to Buy Additions,South West,SWAYTHLING HOUSING SOCIETY LIMITED,Daily IMS payment,07/09/2017, 361.00 ,,N/A,Grants
Communities and Local Government,Homes and Communities Agency,Help to Buy Additions,South West,SWAYTHLING HOUSING SOCIETY LIMITED,Daily IMS payment,07/09/2017, 361.00 ,,N/A,Grants
Communities and Local Government,Homes and Communities Agency,Help to Buy Additions,South West,SWAYTHLING HOUSING SOCIETY LIMITED,Daily IMS payment,07/09/2017, 361.00 ,,N/A,Grants
Communities and Local Government,Homes and Communities Agency,Help to Buy Additions,South West,SWAYTHLING HOUSING SOCIETY LIMITED,Daily IMS payment,07/09/2017, 361.00 ,,N/A,Grants
Communities and Local Government,Homes and Communities Agency,Help to Buy Additions,South West,SWAYTHLING HOUSING SOCIETY LIMITED,Daily IMS payment,07/09/2017, 361.00 ,,N/A,Grants
Communities and Local Government,Homes and Communities Agency,Help to Buy Additions,South West,SWAYTHLING HOUSING SOCIETY LIMITED,Daily IMS payment,07/09/2017, 361.00 ,,N/A,Grants
Communities and Local Government,Homes and Communities Agency,Help to Buy Additions,South West,SWAYTHLING HOUSING SOCIETY LIMITED,Daily IMS payment,07/09/2017, 361.00 ,,N/A,Grants
Communities and Local Government,Homes and Communities Agency,Help to Buy Additions,South West,SWAYTHLING HOUSING SOCIETY LIMITED,Daily IMS payment,07/09/2017, 361.00 ,,N/A,Grants
Communities and Local Government,Homes and Communities Agency,Help to Buy Additions,South West,SWAYTHLING HOUSING SOCIETY LIMITED,Daily IMS payment,07/09/2017, 361.00 ,,N/A,Grants
Communities and Local Government,Homes and Communities Agency,Help to Buy Additions,South West,SWAYTHLING HOUSING SOCIETY LIMITED,Daily IMS payment,07/09/2017, 361.00 ,,N/A,Grants
Communities and Local Government,Homes and Communities Agency,Help to Buy Additions,South West,SWAYTHLING HOUSING SOCIETY LIMITED,Daily IMS payment,08/09/2017, 361.00 ,,N/A,Grants
Communities and Local Government,Homes and Communities Agency,Help to Buy Additions,South West,SWAYTHLING HOUSING SOCIETY LIMITED,Daily IMS payment,08/09/2017, 361.00 ,,N/A,Grants
Communities and Local Government,Homes and Communities Agency,Help to Buy Additions,South West,SWAYTHLING HOUSING SOCIETY LIMITED,Daily IMS payment,08/09/2017, 361.00 ,,N/A,Grants
Communities and Local Government,Homes and Communities Agency,Help to Buy Additions,South West,SWAYTHLING HOUSING SOCIETY LIMITED,Daily IMS payment,08/09/2017, 361.00 ,,N/A,Grants
Communities and Local Government,Homes and Communities Agency,Help to Buy Additions,South West,SWAYTHLING HOUSING SOCIETY LIMITED,Daily IMS payment,08/09/2017, 361.00 ,,N/A,Grants
Communities and Local Government,Homes and Communities Agency,Help to Buy Additions,South West,SWAYTHLING HOUSING SOCIETY LIMITED,Daily IMS payment,08/09/2017, 361.00 ,,N/A,Grants
Communities and Local Government,Homes and Communities Agency,Help to Buy Additions,South West,SWAYTHLING HOUSING SOCIETY LIMITED,Daily IMS payment,08/09/2017, 361.00 ,,N/A,Grants
Communities and Local Government,Homes and Communities Agency,Help to Buy Additions,South West,SWAYTHLING HOUSING SOCIETY LIMITED,Daily IMS payment,08/09/2017, 361.00 ,,N/A,Grants
Communities and Local Government,Homes and Communities Agency,Help to Buy Additions,South West,SWAYTHLING HOUSING SOCIETY LIMITED,Daily IMS payment,08/09/2017, 361.00 ,,N/A,Grants
Communities and Local Government,Homes and Communities Agency,Help to Buy Additions,South West,SWAYTHLING HOUSING SOCIETY LIMITED,Daily IMS payment,08/09/2017, 361.00 ,,N/A,Grants
Communities and Local Government,Homes and Communities Agency,Help to Buy Additions,South West,SWAYTHLING HOUSING SOCIETY LIMITED,Daily IMS payment,08/09/2017, 361.00 ,,N/A,Grants
Communities and Local Government,Homes and Communities Agency,Help to Buy Additions,South West,SWAYTHLING HOUSING SOCIETY LIMITED,Daily IMS payment,08/09/2017, 361.00 ,,N/A,Grants
Communities and Local Government,Homes and Communities Agency,Help to Buy Additions,South West,SWAYTHLING HOUSING SOCIETY LIMITED,Daily IMS payment,08/09/2017, 361.00 ,,N/A,Grants
Communities and Local Government,Homes and Communities Agency,Help to Buy Additions,South West,SWAYTHLING HOUSING SOCIETY LIMITED,Daily IMS payment,08/09/2017, 361.00 ,,N/A,Grants
Communities and Local Government,Homes and Communities Agency,Help to Buy Additions,South West,SWAYTHLING HOUSING SOCIETY LIMITED,Daily IMS payment,08/09/2017, 361.00 ,,N/A,Grants
Communities and Local Government,Homes and Communities Agency,Help to Buy Additions,South West,SWAYTHLING HOUSING SOCIETY LIMITED,Daily IMS payment,08/09/2017, 361.00 ,,N/A,Grants
Communities and Local Government,Homes and Communities Agency,Help to Buy Additions,South West,SWAYTHLING HOUSING SOCIETY LIMITED,Daily IMS payment,08/09/2017, 361.00 ,,N/A,Grants
Communities and Local Government,Homes and Communities Agency,Help to Buy Additions,South West,SWAYTHLING HOUSING SOCIETY LIMITED,Daily IMS payment,08/09/2017, 361.00 ,,N/A,Grants
Communities and Local Government,Homes and Communities Agency,Help to Buy Additions,South West,SWAYTHLING HOUSING SOCIETY LIMITED,Daily IMS payment,08/09/2017, 361.00 ,,N/A,Grants
Communities and Local Government,Homes and Communities Agency,Help to Buy Additions,South West,SWAYTHLING HOUSING SOCIETY LIMITED,Daily IMS payment,08/09/2017, 361.00 ,,N/A,Grants
Communities and Local Government,Homes and Communities Agency,Help to Buy Additions,South West,SWAYTHLING HOUSING SOCIETY LIMITED,Daily IMS payment,08/09/2017, 361.00 ,,N/A,Grants
Communities and Local Government,Homes and Communities Agency,Help to Buy Additions,South West,SWAYTHLING HOUSING SOCIETY LIMITED,Daily IMS payment,08/09/2017, 361.00 ,,N/A,Grants
Communities and Local Government,Homes and Communities Agency,Help to Buy Additions,South West,SWAYTHLING HOUSING SOCIETY LIMITED,Daily IMS payment,08/09/2017, 361.00 ,,N/A,Grants
Communities and Local Government,Homes and Communities Agency,Help to Buy Additions,South West,SWAYTHLING HOUSING SOCIETY LIMITED,Daily IMS payment,08/09/2017, 361.00 ,,N/A,Grants
Communities and Local Government,Homes and Communities Agency,Help to Buy Additions,South West,SWAYTHLING HOUSING SOCIETY LIMITED,Daily IMS payment,11/09/2017, 361.00 ,,N/A,Grants
Communities and Local Government,Homes and Communities Agency,Help to Buy Additions,South West,SWAYTHLING HOUSING SOCIETY LIMITED,Daily IMS payment,11/09/2017, 361.00 ,,N/A,Grants
Communities and Local Government,Homes and Communities Agency,Help to Buy Additions,South West,SWAYTHLING HOUSING SOCIETY LIMITED,Daily IMS payment,11/09/2017, 361.00 ,,N/A,Grants
Communities and Local Government,Homes and Communities Agency,Help to Buy Additions,South West,SWAYTHLING HOUSING SOCIETY LIMITED,Daily IMS payment,11/09/2017, 361.00 ,,N/A,Grants
Communities and Local Government,Homes and Communities Agency,Help to Buy Additions,South West,SWAYTHLING HOUSING SOCIETY LIMITED,Daily IMS payment,11/09/2017, 361.00 ,,N/A,Grants
Communities and Local Government,Homes and Communities Agency,Help to Buy Additions,South West,SWAYTHLING HOUSING SOCIETY LIMITED,Daily IMS payment,11/09/2017, 361.00 ,,N/A,Grants
Communities and Local Government,Homes and Communities Agency,Help to Buy Additions,South West,SWAYTHLING HOUSING SOCIETY LIMITED,Daily IMS payment,11/09/2017, 361.00 ,,N/A,Grants
Communities and Local Government,Homes and Communities Agency,Help to Buy Additions,South West,SWAYTHLING HOUSING SOCIETY LIMITED,Daily IMS payment,11/09/2017, 361.00 ,,N/A,Grants
Communities and Local Government,Homes and Communities Agency,Help to Buy Additions,South West,SWAYTHLING HOUSING SOCIETY LIMITED,Daily IMS payment,11/09/2017, 361.00 ,,N/A,Grants
Communities and Local Government,Homes and Communities Agency,Help to Buy Additions,South West,SWAYTHLING HOUSING SOCIETY LIMITED,Daily IMS payment,11/09/2017, 361.00 ,,N/A,Grants
Communities and Local Government,Homes and Communities Agency,Help to Buy Additions,South West,SWAYTHLING HOUSING SOCIETY LIMITED,Daily IMS payment,11/09/2017, 361.00 ,,N/A,Grants
Communities and Local Government,Homes and Communities Agency,Help to Buy Additions,South West,SWAYTHLING HOUSING SOCIETY LIMITED,Daily IMS payment,11/09/2017, 361.00 ,,N/A,Grants
Communities and Local Government,Homes and Communities Agency,Help to Buy Additions,South West,SWAYTHLING HOUSING SOCIETY LIMITED,Daily IMS payment,11/09/2017, 361.00 ,,N/A,Grants
Communities and Local Government,Homes and Communities Agency,Help to Buy Additions,South West,SWAYTHLING HOUSING SOCIETY LIMITED,Daily IMS payment,11/09/2017, 361.00 ,,N/A,Grants
Communities and Local Government,Homes and Communities Agency,Help to Buy Additions,South West,SWAYTHLING HOUSING SOCIETY LIMITED,Daily IMS payment,11/09/2017, 361.00 ,,N/A,Grants
Communities and Local Government,Homes and Communities Agency,Help to Buy Additions,South West,SWAYTHLING HOUSING SOCIETY LIMITED,Daily IMS payment,11/09/2017, 361.00 ,,N/A,Grants
Communities and Local Government,Homes and Communities Agency,Help to Buy Additions,South West,SWAYTHLING HOUSING SOCIETY LIMITED,Daily IMS payment,11/09/2017, 361.00 ,,N/A,Grants
Communities and Local Government,Homes and Communities Agency,Help to Buy Additions,South West,SWAYTHLING HOUSING SOCIETY LIMITED,Daily IMS payment,11/09/2017, 361.00 ,,N/A,Grants
Communities and Local Government,Homes and Communities Agency,Help to Buy Additions,South West,SWAYTHLING HOUSING SOCIETY LIMITED,Daily IMS payment,11/09/2017, 361.00 ,,N/A,Grants
Communities and Local Government,Homes and Communities Agency,Help to Buy Additions,South West,SWAYTHLING HOUSING SOCIETY LIMITED,Daily IMS payment,11/09/2017, 361.00 ,,N/A,Grants
Communities and Local Government,Homes and Communities Agency,Help to Buy Additions,South West,SWAYTHLING HOUSING SOCIETY LIMITED,Daily IMS payment,11/09/2017, 361.00 ,,N/A,Grants
Communities and Local Government,Homes and Communities Agency,Help to Buy Additions,South West,SWAYTHLING HOUSING SOCIETY LIMITED,Daily IMS payment,11/09/2017, 361.00 ,,N/A,Grants
Communities and Local Government,Homes and Communities Agency,Help to Buy Additions,South West,SWAYTHLING HOUSING SOCIETY LIMITED,Daily IMS payment,11/09/2017, 361.00 ,,N/A,Grants
Communities and Local Government,Homes and Communities Agency,Help to Buy Additions,South West,SWAYTHLING HOUSING SOCIETY LIMITED,Daily IMS payment,11/09/2017, 361.00 ,,N/A,Grants
Communities and Local Government,Homes and Communities Agency,Help to Buy Additions,South West,SWAYTHLING HOUSING SOCIETY LIMITED,Daily IMS payment,12/09/2017, 361.00 ,,N/A,Grants
Communities and Local Government,Homes and Communities Agency,Help to Buy Additions,South West,SWAYTHLING HOUSING SOCIETY LIMITED,Daily IMS payment,12/09/2017, 361.00 ,,N/A,Grants
Communities and Local Government,Homes and Communities Agency,Help to Buy Additions,South West,SWAYTHLING HOUSING SOCIETY LIMITED,Daily IMS payment,12/09/2017, 361.00 ,,N/A,Grants
Communities and Local Government,Homes and Communities Agency,Help to Buy Additions,South West,SWAYTHLING HOUSING SOCIETY LIMITED,Daily IMS payment,12/09/2017, 361.00 ,,N/A,Grants
Communities and Local Government,Homes and Communities Agency,Help to Buy Additions,South West,SWAYTHLING HOUSING SOCIETY LIMITED,Daily IMS payment,12/09/2017, 361.00 ,,N/A,Grants
Communities and Local Government,Homes and Communities Agency,Help to Buy Additions,South West,SWAYTHLING HOUSING SOCIETY LIMITED,Daily IMS payment,12/09/2017, 361.00 ,,N/A,Grants
Communities and Local Government,Homes and Communities Agency,Help to Buy Additions,South West,SWAYTHLING HOUSING SOCIETY LIMITED,Daily IMS payment,12/09/2017, 361.00 ,,N/A,Grants
Communities and Local Government,Homes and Communities Agency,Help to Buy Additions,South West,SWAYTHLING HOUSING SOCIETY LIMITED,Daily IMS payment,13/09/2017, 361.00 ,,N/A,Grants
Communities and Local Government,Homes and Communities Agency,Help to Buy Additions,South West,SWAYTHLING HOUSING SOCIETY LIMITED,Daily IMS payment,13/09/2017, 361.00 ,,N/A,Grants
Communities and Local Government,Homes and Communities Agency,Help to Buy Additions,South West,SWAYTHLING HOUSING SOCIETY LIMITED,Daily IMS payment,13/09/2017, 361.00 ,,N/A,Grants
Communities and Local Government,Homes and Communities Agency,Help to Buy Additions,South West,SWAYTHLING HOUSING SOCIETY LIMITED,Daily IMS payment,13/09/2017, 361.00 ,,N/A,Grants
Communities and Local Government,Homes and Communities Agency,Help to Buy Additions,South West,SWAYTHLING HOUSING SOCIETY LIMITED,Daily IMS payment,13/09/2017, 361.00 ,,N/A,Grants
Communities and Local Government,Homes and Communities Agency,Help to Buy Additions,South West,SWAYTHLING HOUSING SOCIETY LIMITED,Daily IMS payment,13/09/2017, 361.00 ,,N/A,Grants
Communities and Local Government,Homes and Communities Agency,Help to Buy Additions,South West,SWAYTHLING HOUSING SOCIETY LIMITED,Daily IMS payment,13/09/2017, 361.00 ,,N/A,Grants
Communities and Local Government,Homes and Communities Agency,Help to Buy Additions,South West,SWAYTHLING HOUSING SOCIETY LIMITED,Daily IMS payment,13/09/2017, 361.00 ,,N/A,Grants
Communities and Local Government,Homes and Communities Agency,Help to Buy Additions,South West,SWAYTHLING HOUSING SOCIETY LIMITED,Daily IMS payment,13/09/2017, 361.00 ,,N/A,Grants
Communities and Local Government,Homes and Communities Agency,Help to Buy Additions,South West,SWAYTHLING HOUSING SOCIETY LIMITED,Daily IMS payment,13/09/2017, 361.00 ,,N/A,Grants
Communities and Local Government,Homes and Communities Agency,Help to Buy Additions,South West,SWAYTHLING HOUSING SOCIETY LIMITED,Daily IMS payment,13/09/2017, 361.00 ,,N/A,Grants
Communities and Local Government,Homes and Communities Agency,Help to Buy Additions,South West,SWAYTHLING HOUSING SOCIETY LIMITED,Daily IMS payment,13/09/2017, 361.00 ,,N/A,Grants
Communities and Local Government,Homes and Communities Agency,Help to Buy Additions,South West,SWAYTHLING HOUSING SOCIETY LIMITED,Daily IMS payment,13/09/2017, 361.00 ,,N/A,Grants
Communities and Local Government,Homes and Communities Agency,Help to Buy Additions,South West,SWAYTHLING HOUSING SOCIETY LIMITED,Daily IMS payment,13/09/2017, 361.00 ,,N/A,Grants
Communities and Local Government,Homes and Communities Agency,Help to Buy Additions,South West,SWAYTHLING HOUSING SOCIETY LIMITED,Daily IMS payment,13/09/2017, 361.00 ,,N/A,Grants
Communities and Local Government,Homes and Communities Agency,Help to Buy Additions,South West,SWAYTHLING HOUSING SOCIETY LIMITED,Daily IMS payment,13/09/2017, 361.00 ,,N/A,Grants
Communities and Local Government,Homes and Communities Agency,Help to Buy Additions,South West,SWAYTHLING HOUSING SOCIETY LIMITED,Daily IMS payment,13/09/2017, 361.00 ,,N/A,Grants
Communities and Local Government,Homes and Communities Agency,Help to Buy Additions,South West,SWAYTHLING HOUSING SOCIETY LIMITED,Daily IMS payment,13/09/2017, 361.00 ,,N/A,Grants
Communities and Local Government,Homes and Communities Agency,Help to Buy Additions,South West,SWAYTHLING HOUSING SOCIETY LIMITED,Daily IMS payment,13/09/2017, 361.00 ,,N/A,Grants
Communities and Local Government,Homes and Communities Agency,Help to Buy Additions,South West,SWAYTHLING HOUSING SOCIETY LIMITED,Daily IMS payment,13/09/2017, 361.00 ,,N/A,Grants
Communities and Local Government,Homes and Communities Agency,Help to Buy Additions,South West,SWAYTHLING HOUSING SOCIETY LIMITED,Daily IMS payment,13/09/2017, 361.00 ,,N/A,Grants
Communities and Local Government,Homes and Communities Agency,Help to Buy Additions,South West,SWAYTHLING HOUSING SOCIETY LIMITED,Daily IMS payment,13/09/2017, 361.00 ,,N/A,Grants
Communities and Local Government,Homes and Communities Agency,Help to Buy Additions,South West,SWAYTHLING HOUSING SOCIETY LIMITED,Daily IMS payment,13/09/2017, 361.00 ,,N/A,Grants
Communities and Local Government,Homes and Communities Agency,Help to Buy Additions,South West,SWAYTHLING HOUSING SOCIETY LIMITED,Daily IMS payment,13/09/2017, 361.00 ,,N/A,Grants
Communities and Local Government,Homes and Communities Agency,Help to Buy Additions,South West,SWAYTHLING HOUSING SOCIETY LIMITED,Daily IMS payment,13/09/2017, 361.00 ,,N/A,Grants
Communities and Local Government,Homes and Communities Agency,Help to Buy Additions,South West,SWAYTHLING HOUSING SOCIETY LIMITED,Daily IMS payment,13/09/2017, 361.00 ,,N/A,Grants
Communities and Local Government,Homes and Communities Agency,Help to Buy Additions,South West,SWAYTHLING HOUSING SOCIETY LIMITED,Daily IMS payment,13/09/2017, 361.00 ,,N/A,Grants
Communities and Local Government,Homes and Communities Agency,Help to Buy Additions,South West,SWAYTHLING HOUSING SOCIETY LIMITED,Daily IMS payment,13/09/2017, 361.00 ,,N/A,Grants
Communities and Local Government,Homes and Communities Agency,Help to Buy Additions,South West,SWAYTHLING HOUSING SOCIETY LIMITED,Daily IMS payment,13/09/2017, 361.00 ,,N/A,Grants
Communities and Local Government,Homes and Communities Agency,Help to Buy Additions,South West,SWAYTHLING HOUSING SOCIETY LIMITED,Daily IMS payment,13/09/2017, 361.00 ,,N/A,Grants
Communities and Local Government,Homes and Communities Agency,Help to Buy Additions,South West,SWAYTHLING HOUSING SOCIETY LIMITED,Daily IMS payment,13/09/2017, 361.00 ,,N/A,Grants
Communities and Local Government,Homes and Communities Agency,Help to Buy Additions,South West,SWAYTHLING HOUSING SOCIETY LIMITED,Daily IMS payment,13/09/2017, 361.00 ,,N/A,Grants
Communities and Local Government,Homes and Communities Agency,Help to Buy Additions,South West,SWAYTHLING HOUSING SOCIETY LIMITED,Daily IMS payment,13/09/2017, 361.00 ,,N/A,Grants
Communities and Local Government,Homes and Communities Agency,Help to Buy Additions,South West,SWAYTHLING HOUSING SOCIETY LIMITED,Daily IMS payment,13/09/2017, 361.00 ,,N/A,Grants
Communities and Local Government,Homes and Communities Agency,Help to Buy Additions,South West,SWAYTHLING HOUSING SOCIETY LIMITED,Daily IMS payment,13/09/2017, 361.00 ,,N/A,Grants
Communities and Local Government,Homes and Communities Agency,Help to Buy Additions,South West,SWAYTHLING HOUSING SOCIETY LIMITED,Daily IMS payment,13/09/2017, 361.00 ,,N/A,Grants
Communities and Local Government,Homes and Communities Agency,Help to Buy Additions,South West,SWAYTHLING HOUSING SOCIETY LIMITED,Daily IMS payment,13/09/2017, 361.00 ,,N/A,Grants
Communities and Local Government,Homes and Communities Agency,Help to Buy Additions,South West,SWAYTHLING HOUSING SOCIETY LIMITED,Daily IMS payment,13/09/2017, 361.00 ,,N/A,Grants
Communities and Local Government,Homes and Communities Agency,Help to Buy Additions,South West,SWAYTHLING HOUSING SOCIETY LIMITED,Daily IMS payment,13/09/2017, 361.00 ,,N/A,Grants
Communities and Local Government,Homes and Communities Agency,Help to Buy Additions,South West,SWAYTHLING HOUSING SOCIETY LIMITED,Daily IMS payment,14/09/2017, 361.00 ,,N/A,Grants
Communities and Local Government,Homes and Communities Agency,Help to Buy Additions,South West,SWAYTHLING HOUSING SOCIETY LIMITED,Daily IMS payment,14/09/2017, 361.00 ,,N/A,Grants
Communities and Local Government,Homes and Communities Agency,Help to Buy Additions,South West,SWAYTHLING HOUSING SOCIETY LIMITED,Daily IMS payment,14/09/2017, 361.00 ,,N/A,Grants
Communities and Local Government,Homes and Communities Agency,Help to Buy Additions,South West,SWAYTHLING HOUSING SOCIETY LIMITED,Daily IMS payment,14/09/2017, 361.00 ,,N/A,Grants
Communities and Local Government,Homes and Communities Agency,Help to Buy Additions,South West,SWAYTHLING HOUSING SOCIETY LIMITED,Daily IMS payment,14/09/2017, 361.00 ,,N/A,Grants
Communities and Local Government,Homes and Communities Agency,Help to Buy Additions,South West,SWAYTHLING HOUSING SOCIETY LIMITED,Daily IMS payment,14/09/2017, 361.00 ,,N/A,Grants
Communities and Local Government,Homes and Communities Agency,Help to Buy Additions,South West,SWAYTHLING HOUSING SOCIETY LIMITED,Daily IMS payment,14/09/2017, 361.00 ,,N/A,Grants
Communities and Local Government,Homes and Communities Agency,Help to Buy Additions,South West,SWAYTHLING HOUSING SOCIETY LIMITED,Daily IMS payment,14/09/2017, 361.00 ,,N/A,Grants
Communities and Local Government,Homes and Communities Agency,Help to Buy Additions,South West,SWAYTHLING HOUSING SOCIETY LIMITED,Daily IMS payment,14/09/2017, 361.00 ,,N/A,Grants
Communities and Local Government,Homes and Communities Agency,Help to Buy Additions,South West,SWAYTHLING HOUSING SOCIETY LIMITED,Daily IMS payment,14/09/2017, 361.00 ,,N/A,Grants
Communities and Local Government,Homes and Communities Agency,Help to Buy Additions,South West,SWAYTHLING HOUSING SOCIETY LIMITED,Daily IMS payment,14/09/2017, 361.00 ,,N/A,Grants
Communities and Local Government,Homes and Communities Agency,Help to Buy Additions,South West,SWAYTHLING HOUSING SOCIETY LIMITED,Daily IMS payment,14/09/2017, 361.00 ,,N/A,Grants
Communities and Local Government,Homes and Communities Agency,Help to Buy Additions,South West,SWAYTHLING HOUSING SOCIETY LIMITED,Daily IMS payment,14/09/2017, 361.00 ,,N/A,Grants
Communities and Local Government,Homes and Communities Agency,Help to Buy Additions,South West,SWAYTHLING HOUSING SOCIETY LIMITED,Daily IMS payment,14/09/2017, 361.00 ,,N/A,Grants
Communities and Local Government,Homes and Communities Agency,Help to Buy Additions,South West,SWAYTHLING HOUSING SOCIETY LIMITED,Daily IMS payment,14/09/2017, 361.00 ,,N/A,Grants
Communities and Local Government,Homes and Communities Agency,Help to Buy Additions,South West,SWAYTHLING HOUSING SOCIETY LIMITED,Daily IMS payment,14/09/2017, 361.00 ,,N/A,Grants
Communities and Local Government,Homes and Communities Agency,Help to Buy Additions,South West,SWAYTHLING HOUSING SOCIETY LIMITED,Daily IMS payment,14/09/2017, 361.00 ,,N/A,Grants
Communities and Local Government,Homes and Communities Agency,Help to Buy Additions,South West,SWAYTHLING HOUSING SOCIETY LIMITED,Daily IMS payment,14/09/2017, 361.00 ,,N/A,Grants
Communities and Local Government,Homes and Communities Agency,Help to Buy Additions,South West,SWAYTHLING HOUSING SOCIETY LIMITED,Daily IMS payment,14/09/2017, 361.00 ,,N/A,Grants
Communities and Local Government,Homes and Communities Agency,Help to Buy Additions,South West,SWAYTHLING HOUSING SOCIETY LIMITED,Daily IMS payment,14/09/2017, 361.00 ,,N/A,Grants
Communities and Local Government,Homes and Communities Agency,Help to Buy Additions,South West,SWAYTHLING HOUSING SOCIETY LIMITED,Daily IMS payment,14/09/2017, 361.00 ,,N/A,Grants
Communities and Local Government,Homes and Communities Agency,Help to Buy Additions,South West,SWAYTHLING HOUSING SOCIETY LIMITED,Daily IMS payment,14/09/2017, 361.00 ,,N/A,Grants
Communities and Local Government,Homes and Communities Agency,Help to Buy Additions,South West,SWAYTHLING HOUSING SOCIETY LIMITED,Daily IMS payment,14/09/2017, 361.00 ,,N/A,Grants
Communities and Local Government,Homes and Communities Agency,Help to Buy Additions,South West,SWAYTHLING HOUSING SOCIETY LIMITED,Daily IMS payment,15/09/2017, 361.00 ,,N/A,Grants
Communities and Local Government,Homes and Communities Agency,Help to Buy Additions,South West,SWAYTHLING HOUSING SOCIETY LIMITED,Daily IMS payment,15/09/2017, 361.00 ,,N/A,Grants
Communities and Local Government,Homes and Communities Agency,Help to Buy Additions,South West,SWAYTHLING HOUSING SOCIETY LIMITED,Daily IMS payment,15/09/2017, 361.00 ,,N/A,Grants
Communities and Local Government,Homes and Communities Agency,Help to Buy Additions,South West,SWAYTHLING HOUSING SOCIETY LIMITED,Daily IMS payment,15/09/2017, 361.00 ,,N/A,Grants
Communities and Local Government,Homes and Communities Agency,Help to Buy Additions,South West,SWAYTHLING HOUSING SOCIETY LIMITED,Daily IMS payment,15/09/2017, 361.00 ,,N/A,Grants
Communities and Local Government,Homes and Communities Agency,Help to Buy Additions,South West,SWAYTHLING HOUSING SOCIETY LIMITED,Daily IMS payment,15/09/2017, 361.00 ,,N/A,Grants
Communities and Local Government,Homes and Communities Agency,Help to Buy Additions,South West,SWAYTHLING HOUSING SOCIETY LIMITED,Daily IMS payment,15/09/2017, 361.00 ,,N/A,Grants
Communities and Local Government,Homes and Communities Agency,Help to Buy Additions,South West,SWAYTHLING HOUSING SOCIETY LIMITED,Daily IMS payment,15/09/2017, 361.00 ,,N/A,Grants
Communities and Local Government,Homes and Communities Agency,Help to Buy Additions,South West,SWAYTHLING HOUSING SOCIETY LIMITED,Daily IMS payment,15/09/2017, 361.00 ,,N/A,Grants
Communities and Local Government,Homes and Communities Agency,Help to Buy Additions,South West,SWAYTHLING HOUSING SOCIETY LIMITED,Daily IMS payment,15/09/2017, 361.00 ,,N/A,Grants
Communities and Local Government,Homes and Communities Agency,Help to Buy Additions,South West,SWAYTHLING HOUSING SOCIETY LIMITED,Daily IMS payment,18/09/2017, 361.00 ,,N/A,Grants
Communities and Local Government,Homes and Communities Agency,Help to Buy Additions,South West,SWAYTHLING HOUSING SOCIETY LIMITED,Daily IMS payment,18/09/2017, 361.00 ,,N/A,Grants
Communities and Local Government,Homes and Communities Agency,Help to Buy Additions,South West,SWAYTHLING HOUSING SOCIETY LIMITED,Daily IMS payment,18/09/2017, 361.00 ,,N/A,Grants
Communities and Local Government,Homes and Communities Agency,Help to Buy Additions,South West,SWAYTHLING HOUSING SOCIETY LIMITED,Daily IMS payment,18/09/2017, 361.00 ,,N/A,Grants
Communities and Local Government,Homes and Communities Agency,Help to Buy Additions,South West,SWAYTHLING HOUSING SOCIETY LIMITED,Daily IMS payment,18/09/2017, 361.00 ,,N/A,Grants
